Workbook

Sheet チーム表
B1: 第２７回 いしかわスポーツ・レクリエーション交流大会 「第１１回ふれあいドッジボール大会」
B2: 参 加 チ ー ム
B3: 番号 | C3: ﾌﾞﾛｯｸ | D3: チ ー ム 名 | E3: 代表者名 | F3: 県 名
B4: 1 | C4: A1 | D4: 下関福光サンダージュニア | E4: 中澤 美樹子 | F4: 富 山
B5: 2 | C5: A2 | D5: NISHIファイヤースターズ | E5: 足滝 信雄 | F5: 石 川
B6: 3 | C6: A3 | D6: 小木クラブ | E6: 福田 陽三 | F6: 石 川
B7: 4 | C7: A4 | D7: 松任の大魔陣 | E7: 吉岡 正敏 | F7: 石 川
B8: 5 | C8: B1 | D8: 杉っ子ドッジファイターズ | E8: 大井 孝弘 | F8: 富 山
B9: 6 | C9: B2 | D9: 鵜川ミラクルフェニックス | E9: 新谷 信之 | F9: 石 川
B10: 7 | C10: B3 | D10: 向本折クラブA | E10: 中嶋 大樹 | F10: 石 川
B11: 8 | C11: B4 | D11: 鞍月アタッカーズ | E11: 廣岡 俊和 | F11: 石 川
B12: 9 | C12: C1 | D12: 田上闘球DREAMS | E12: 盛一 純平 | F12: 石 川
B13: 10 | C13: C2 | D13: 千坂ドッジファイヤーズ | E13: 成瀬 章宏 | F13: 石 川
B14: 11 | C14: C3 | D14: あさひスーパーファイターズ | E14: 飯田 真由美 | F14: 富 山 | G14: 欠場
B15: 12 | C15: C4 | D15: 寺井クラブ | E15: 端野 智博 | F15: 石 川
B16: 13 | C16: D1 | D16: 大門ドッジボールクラブ | E16: 大橋 潤子 | F16: 富 山
B17: 14 | C17: D2 | D17: 鳳至ドッジボールクラブ | E17: 中野 悟 | F17: 石 川
B18: 15 | C18: D3 | D18: 山中SPARS | E18: 中田 勝博 | F18: 石 川
B19: 16 | C19: D4 | D19: 三馬パワフル | E19: 石田 一栄 | F19: 石 川
B20: Jr1 | C20: E1 | D20: 鵜川フェニックスｷｯｽﾞ | E20: 新谷 信之 | F20: 石 川
B21: Jr2 | C21: E2 | D21: 千坂ロータスルート | E21: 成瀬 章宏 | F21: 石 川
B22: Jr3 | C22: E3 | D22: 寺井クラブJr | E22: 端野 智博 | F22: 石 川
B23: Jr4 | C23: F1 | D23: 鳳至ジュニア | E23: 中野 悟 | F23: 石 川
B24: Jr5 | C24: F2 | D24: 向本折クラブNew | E24: 中嶋 大樹 | F24: 石 川
B25: Jr6 | C25: F3 | D25: 鞍月アタッカーズジュニア | E25: 廣岡 俊和 | F25: 石 川
B26: Jr7 | C26: G1 | D26: 九十九クラブ | E26: 福田 陽三 | F26: 石 川
B27: Jr8 | C27: G2 | D27: 松任の大魔陣Jr | E27: 吉岡 正敏 | F27: 石 川
B28: Jr9 | C28: G3 | D28: ドッジの王子様 | E28: 石田 一栄 | F28: 石 川
B29: 一1 | C29: H1 | D29: THUNDER(ｻﾝﾀﾞｰ) | E29: 寺岡 佑香 | F29: 富 山
B30: 一2 | C30: H2 | D30: ＳＫＩＰＰＥＲＳ | E30: 成瀬 章宏 | F30: 石 川
B31: 一3 | C31: H3 | D31: 山中SPAーS | E31: 中田 勝博 | F31: 石 川
B32: 一4 | C32: I1 | D32: ペヤング | E32: 吉岡 正敏 | F32: 石 川
B33: 一5 | C33: I2 | D33: 鞍月アタッカーズＯＮＥ | E33: 廣岡 俊和 | F33: 石 川
B34: 一6 | C34: I3 | D34: 新撰組 | E34: 石田 一栄 | F34: 石 川
B35: パ1 | C35: J1 | D35: 杉っ子ダディー | E35: 大井 孝弘 | F35: 富 山
B36: パ2 | C36: J2 | D36: 松任の大魔陣オールディーズ | E36: 吉岡 正敏 | F36: 石 川
B37: パ3 | C37: J3 | D37: パパ合同チーム | F37: 石 川
B38: マ1 | C38: K1 | D38: 松任の大魔陣Ladies | E38: 吉岡 正敏 | F38: 石 川
B39: マ2 | C39: K2 | D39: 鞍月マミ～ズ | E39: 廣岡 俊和 | F39: 石 川
B40: マ3 | C40: K3 | D40: 田上闘球HAPPYS | E40: 盛一 純平 | F40: 石 川
B41: マ4 | C41: K4 | D41: ママ合同チーム | F41: 石 川
B42: 親１ | C42: L1 | D42: 田上闘球親子 | E42: 盛一 純平 | F42: 石 川
B43: 親２ | C43: L2 | D43: フェニックスと頑固なお父さん | E43: 新谷 信之 | F43: 石 川
B44: 親３ | C44: L3 | D44: 松任の大魔陣ファミリー | E44: 吉岡 正敏 | F44: 石 川
B45: 親４ | C45: L4 | D45: 三馬パワフルファミリー | E45: 石田 一栄 | F45: 石 川
B46: 親５ | C46: M1 | D46: NISHIファミリーズ | E46: 足滝 信雄 | F46: 石 川
B47: 親６ | C47: M2 | D47: 鳳至ファミリーズ | E47: 中野 悟 | F47: 石 川
B48: 親７ | C48: M3 | D48: テライFamily’＄ | E48: 端野 智博 | F48: 石 川
B49: 親８ | C49: M4 | D49: 鞍月ファミリーズ | E49: 廣岡 俊和 | F49: 石 川
B50: ミ親１ | C50: N1 | D50: 田上闘球ミドル | E50: 盛一 純平 | F50: 石 川
B51: ミ親２ | C51: N2 | D51: 鳳至あまさんず | E51: 中野 悟 | F51: 石 川
B52: ミ親３ | C52: N3 | D52: 松任の大魔陣ミドルファミリー | E52: 吉岡 正敏 | F52: 石 川
B53: ミ親４ | C53: O1 | D53: 宇出津っ子と優しいお母さん | E53: 新谷 信之 | F53: 石 川
B54: ミ親５ | C54: O2 | D54: 向本折ファミリー | E54: 中嶋 大樹 | F54: 石 川
B55: ミ親６ | C55: O3 | D55: 鞍月ミドルファミリーズ | E55: 廣岡 俊和 | F55: 石 川
B56: ミ親７ | C56: P1 | D56: 千坂ゼブラーズG | E56: 成瀬 章宏 | F56: 石 川
B57: ミ親８ | C57: P2 | D57: 小木クLOVE♡楽球会 | E57: 福田 奈央 | F57: 石 川
B58: ミ親９ | C58: P3 | D58: Ｊ－テライｆａｍｉｌｙ’＄ | E58: 端野 智博 | F58: 石 川

Sheet 対戦表
A1: =チーム表!$B$1 -> 第２７回 いしかわスポーツ・レクリエーション交流大会 「第１１回ふれあいドッジボール大会」 | AD1: 予選試合数 | AE1: 31
A2: 試合スケジュール | Z2: 最大試合数４０ | AD2: 注意： | AG2: 行挿入は行わないで下さい。
B3: 時間 | E3: 点 | F3: Ａコート | J3: 点 | K3: Ａコート | O3: 点 | P3: Ｂコート | T3: 点 | U3: Ｂコート
A4: 1 | B4: 09:30:00 | C4: =組合表!AG4 -> A1 | D4: =CONCATENATE(C4,H4) -> A1A2 | E4: 11 | F4: =VLOOKUP(C4,チーム表!C:D,2,FALSE) -> 下関福光サンダージュニア | G4: × | H4: =組合表!AH4 -> A2 | I4: =CONCATENATE(H4,C4) -> A2A1 | J4: 4 | K4: =VLOOKUP(H4,チーム表!C:D,2,FALSE) -> NISHIファイヤースターズ | M4: =組合表!AI4 -> B1 | N4: =CONCATENATE(M4,R4) -> B1B2 | O4: 8 | P4: =VLOOKUP(M4,チーム表!C:D,2,FALSE) -> 杉っ子ドッジファイターズ | Q4: × | R4: =組合表!AJ4 -> B2 | S4: =CONCATENATE(R4,M4) -> B2B1 | T4: 4 | U4: =VLOOKUP(R4,チーム表!C:D,2,FALSE) -> 鵜川ミラクルフェニックス
A5: 2 | B5: 09:40:00 | C5: =組合表!AG5 -> C1 | D5: =CONCATENATE(C5,H5) -> C1C2 | E5: 3 | F5: =VLOOKUP(C5,チーム表!C:D,2,FALSE) -> 田上闘球DREAMS | G5: × | H5: =組合表!AH5 -> C2 | I5: =CONCATENATE(H5,C5) -> C2C1 | J5: 9 | K5: =VLOOKUP(H5,チーム表!C:D,2,FALSE) -> 千坂ドッジファイヤーズ | M5: =組合表!AI5 -> D1 | N5: =CONCATENATE(M5,R5) -> D1D2 | O5: 8 | P5: =VLOOKUP(M5,チーム表!C:D,2,FALSE) -> 大門ドッジボールクラブ | Q5: × | R5: =組合表!AJ5 -> D2 | S5: =CONCATENATE(R5,M5) -> D2D1 | T5: 6 | U5: =VLOOKUP(R5,チーム表!C:D,2,FALSE) -> 鳳至ドッジボールクラブ
A6: 3 | B6: 09:50:00 | C6: =組合表!AG6 -> K1 | D6: K1K2 | E6: 0 | F6: =VLOOKUP(C6,チーム表!C:D,2,FALSE) -> 松任の大魔陣Ladies | G6: × | H6: =組合表!AH6 -> K2 | I6: K2K1 | J6: 7 | K6: =VLOOKUP(H6,チーム表!C:D,2,FALSE) -> 鞍月マミ～ズ | M6: E1 | N6: E1E2 | O6: 4 | P6: =VLOOKUP(M6,チーム表!C:D,2,FALSE) -> 鵜川フェニックスｷｯｽﾞ | Q6: × | R6: E2 | S6: E2E1 | T6: 5 | U6: =VLOOKUP(R6,チーム表!C:D,2,FALSE) -> 千坂ロータスルート | AG6: =D4 -> A1A2 | AH6: =IF(E4="","",E4) -> 11
A7: 4 | B7: 10:00:00 | C7: F1 | D7: F1F2 | E7: 0 | F7: =VLOOKUP(C7,チーム表!C:D,2,FALSE) -> 鳳至ジュニア | G7: × | H7: F2 | I7: F2F1 | J7: 6 | K7: =VLOOKUP(H7,チーム表!C:D,2,FALSE) -> 向本折クラブNew | M7: G1 | N7: G1G2 | P7: =VLOOKUP(M7,チーム表!C:D,2,FALSE) -> 九十九クラブ | Q7: × | R7: G2 | S7: G2G1 | U7: =VLOOKUP(R7,チーム表!C:D,2,FALSE) -> 松任の大魔陣Jr | AG7: C1C2 | AH7: =IF(E5="","",E5) -> 3
A8: 5 | B8: 10:10:00 | C8: H1 | D8: H1H2 | E8: 7 | F8: =VLOOKUP(C8,チーム表!C:D,2,FALSE) -> THUNDER(ｻﾝﾀﾞｰ) | G8: × | H8: H2 | I8: H2H1 | J8: 1 | K8: =VLOOKUP(H8,チーム表!C:D,2,FALSE) -> ＳＫＩＰＰＥＲＳ | M8: I1 | N8: I1I2 | O8: 8 | P8: =VLOOKUP(M8,チーム表!C:D,2,FALSE) -> ペヤング | Q8: × | R8: I2 | S8: I2I1 | T8: 0 | U8: =VLOOKUP(R8,チーム表!C:D,2,FALSE) -> 鞍月アタッカーズＯＮＥ | AG8: K1K2 | AH8: 00:00:00
A9: 6 | B9: 10:20:00 | C9: J1 | D9: J1J2 | E9: 5 | F9: =VLOOKUP(C9,チーム表!C:D,2,FALSE) -> 杉っ子ダディー | G9: × | H9: J2 | I9: J2J1 | J9: 3 | K9: =VLOOKUP(H9,チーム表!C:D,2,FALSE) -> 松任の大魔陣オールディーズ | M9: E2 | N9: E2E3 | O9: 4 | P9: =VLOOKUP(M9,チーム表!C:D,2,FALSE) -> 千坂ロータスルート | Q9: × | R9: E3 | S9: E3E2 | T9: 0 | U9: =VLOOKUP(R9,チーム表!C:D,2,FALSE) -> 寺井クラブJr | AG9: F1F2 | AH9: 00:00:00
A10: 7 | B10: 10:30:00 | C10: A3 | D10: A3A4 | E10: 8 | F10: =VLOOKUP(C10,チーム表!C:D,2,FALSE) -> 小木クラブ | G10: × | H10: A4 | I10: A4A3 | J10: 6 | K10: =VLOOKUP(H10,チーム表!C:D,2,FALSE) -> 松任の大魔陣 | M10: D3 | N10: D3D4 | O10: 9 | P10: =VLOOKUP(M10,チーム表!C:D,2,FALSE) -> 山中SPARS | Q10: × | R10: D4 | S10: D4D3 | T10: 1 | U10: =VLOOKUP(R10,チーム表!C:D,2,FALSE) -> 三馬パワフル | AG10: H1H2 | AH10: 7
A11: 8 | B11: 10:40:00 | C11: C3 | D11: C3C4 | F11: =VLOOKUP(C11,チーム表!C:D,2,FALSE) -> あさひスーパーファイターズ | G11: × | H11: C4 | I11: C4C3 | K11: =VLOOKUP(H11,チーム表!C:D,2,FALSE) -> 寺井クラブ | M11: B3 | N11: B3B4 | O11: 9 | P11: =VLOOKUP(M11,チーム表!C:D,2,FALSE) -> 向本折クラブA | Q11: × | R11: B4 | S11: B4B3 | T11: 9 | U11: =VLOOKUP(R11,チーム表!C:D,2,FALSE) -> 鞍月アタッカーズ | AG11: J1J2 | AH11: 5
A12: 9 | B12: 10:50:00 | C12: K3 | D12: K3K4 | E12: 0 | F12: =VLOOKUP(C12,チーム表!C:D,2,FALSE) -> 田上闘球HAPPYS | G12: × | H12: K4 | I12: K4K3 | J12: 5 | K12: =VLOOKUP(H12,チーム表!C:D,2,FALSE) -> ママ合同チーム | M12: G2 | N12: G2G3 | O12: 4 | P12: =VLOOKUP(M12,チーム表!C:D,2,FALSE) -> 松任の大魔陣Jr | Q12: × | R12: G3 | S12: G3G2 | T12: 2 | U12: =VLOOKUP(R12,チーム表!C:D,2,FALSE) -> ドッジの王子様 | AG12: A3A4 | AH12: 8
A13: 10 | B13: 11:00:00 | C13: F2 | D13: F2F3 | E13: 7 | F13: =VLOOKUP(C13,チーム表!C:D,2,FALSE) -> 向本折クラブNew | G13: × | H13: F3 | I13: F3F2 | J13: 0 | K13: =VLOOKUP(H13,チーム表!C:D,2,FALSE) -> 鞍月アタッカーズジュニア | M13: D2 | N13: D2D3 | O13: 8 | P13: =VLOOKUP(M13,チーム表!C:D,2,FALSE) -> 鳳至ドッジボールクラブ | Q13: × | R13: D3 | S13: D3D2 | T13: 9 | U13: =VLOOKUP(R13,チーム表!C:D,2,FALSE) -> 山中SPARS | AG13: C3C4
A14: 11 | B14: 11:10:00 | C14: H2 | D14: H2H3 | E14: 0 | F14: =VLOOKUP(C14,チーム表!C:D,2,FALSE) -> ＳＫＩＰＰＥＲＳ | G14: × | H14: H3 | I14: H3H2 | J14: 6 | K14: =VLOOKUP(H14,チーム表!C:D,2,FALSE) -> 山中SPAーS | M14: B2 | N14: B2B3 | O14: 8 | P14: =VLOOKUP(M14,チーム表!C:D,2,FALSE) -> 鵜川ミラクルフェニックス | Q14: × | R14: B3 | S14: B3B2 | T14: 8 | U14: =VLOOKUP(R14,チーム表!C:D,2,FALSE) -> 向本折クラブA | AG14: K3K4 | AH14: 00:00:00
A15: 12 | B15: 11:20:00 | C15: J2 | D15: J2J3 | E15: 7 | F15: =VLOOKUP(C15,チーム表!C:D,2,FALSE) -> 松任の大魔陣オールディーズ | G15: × | H15: J3 | I15: J3J2 | J15: 3 | K15: =VLOOKUP(H15,チーム表!C:D,2,FALSE) -> パパ合同チーム | M15: I2 | N15: I2I3 | O15: 4 | P15: =VLOOKUP(M15,チーム表!C:D,2,FALSE) -> 鞍月アタッカーズＯＮＥ | Q15: × | R15: I3 | S15: I3I2 | T15: 4 | U15: =VLOOKUP(R15,チーム表!C:D,2,FALSE) -> 新撰組 | AG15: F2F3 | AH15: 7
A16: 13 | B16: 11:30:00 | C16: A2 | D16: A2A3 | E16: 6 | F16: =VLOOKUP(C16,チーム表!C:D,2,FALSE) -> NISHIファイヤースターズ | G16: × | H16: A3 | I16: A3A2 | J16: 5 | K16: =VLOOKUP(H16,チーム表!C:D,2,FALSE) -> 小木クラブ | M16: E1 | N16: E1E3 | O16: 4 | P16: =VLOOKUP(M16,チーム表!C:D,2,FALSE) -> 鵜川フェニックスｷｯｽﾞ | Q16: × | R16: E3 | S16: E3E1 | T16: 3 | U16: =VLOOKUP(R16,チーム表!C:D,2,FALSE) -> 寺井クラブJr | AG16: H2H3 | AH16: 00:00:00
A17: 14 | B17: 11:40:00 | C17: C2 | D17: C2C3 | F17: =VLOOKUP(C17,チーム表!C:D,2,FALSE) -> 千坂ドッジファイヤーズ | G17: × | H17: C3 | I17: C3C2 | K17: =VLOOKUP(H17,チーム表!C:D,2,FALSE) -> あさひスーパーファイターズ | M17: G1 | N17: G1G3 | P17: =VLOOKUP(M17,チーム表!C:D,2,FALSE) -> 九十九クラブ | Q17: × | R17: G3 | S17: G3G1 | U17: =VLOOKUP(R17,チーム表!C:D,2,FALSE) -> ドッジの王子様 | AG17: J2J3 | AH17: 7
A18: 15 | B18: 11:50:00 | C18: K2 | D18: K2K3 | E18: 5 | F18: =VLOOKUP(C18,チーム表!C:D,2,FALSE) -> 鞍月マミ～ズ | G18: × | H18: K3 | I18: K3K2 | J18: 0 | K18: =VLOOKUP(H18,チーム表!C:D,2,FALSE) -> 田上闘球HAPPYS | M18: I1 | N18: I1I3 | O18: 3 | P18: =VLOOKUP(M18,チーム表!C:D,2,FALSE) -> ペヤング | Q18: × | R18: I3 | S18: I3I1 | T18: 4 | U18: =VLOOKUP(R18,チーム表!C:D,2,FALSE) -> 新撰組 | AG18: A2A3 | AH18: 6
A19: 16 | B19: 12:00:00 | C19: F1 | D19: F1F3 | E19: 3 | F19: =VLOOKUP(C19,チーム表!C:D,2,FALSE) -> 鳳至ジュニア | G19: × | H19: F3 | I19: F3F1 | J19: 4 | K19: =VLOOKUP(H19,チーム表!C:D,2,FALSE) -> 鞍月アタッカーズジュニア | M19: B1 | N19: B1B4 | O19: 10 | P19: =VLOOKUP(M19,チーム表!C:D,2,FALSE) -> 杉っ子ドッジファイターズ | Q19: × | R19: B4 | S19: B4B1 | T19: 7 | U19: =VLOOKUP(R19,チーム表!C:D,2,FALSE) -> 鞍月アタッカーズ | AG19: C2C3
A20: 17 | B20: 12:10:00 | C20: H1 | D20: H1H3 | E20: 6 | F20: =VLOOKUP(C20,チーム表!C:D,2,FALSE) -> THUNDER(ｻﾝﾀﾞｰ) | G20: × | H20: H3 | I20: H3H1 | J20: 5 | K20: =VLOOKUP(H20,チーム表!C:D,2,FALSE) -> 山中SPAーS | M20: D1 | N20: D1D4 | O20: 9 | P20: =VLOOKUP(M20,チーム表!C:D,2,FALSE) -> 大門ドッジボールクラブ | Q20: × | R20: D4 | S20: D4D1 | T20: 5 | U20: =VLOOKUP(R20,チーム表!C:D,2,FALSE) -> 三馬パワフル | AG20: K2K3 | AH20: 5
A21: 18 | B21: 12:20:00 | C21: J1 | D21: J1J3 | E21: 5 | F21: =VLOOKUP(C21,チーム表!C:D,2,FALSE) -> 杉っ子ダディー | G21: × | H21: J3 | I21: J3J1 | J21: 5 | K21: =VLOOKUP(H21,チーム表!C:D,2,FALSE) -> パパ合同チーム | M21: A1 | N21: A1A3 | O21: 9 | P21: =VLOOKUP(M21,チーム表!C:D,2,FALSE) -> 下関福光サンダージュニア | Q21: × | R21: A3 | S21: A3A1 | T21: 3 | U21: =VLOOKUP(R21,チーム表!C:D,2,FALSE) -> 小木クラブ | AG21: F1F3 | AH21: 3
A22: 19 | B22: 12:30:00 | C22: A1 | D22: A1A4 | E22: 10 | F22: =VLOOKUP(C22,チーム表!C:D,2,FALSE) -> 下関福光サンダージュニア | G22: × | H22: A4 | I22: A4A1 | J22: 5 | K22: =VLOOKUP(H22,チーム表!C:D,2,FALSE) -> 松任の大魔陣 | M22: C1 | N22: C1C3 | P22: =VLOOKUP(M22,チーム表!C:D,2,FALSE) -> 田上闘球DREAMS | Q22: × | R22: C3 | S22: C3C1 | U22: =VLOOKUP(R22,チーム表!C:D,2,FALSE) -> あさひスーパーファイターズ | AG22: H1H3 | AH22: 6
A23: 20 | B23: 12:40:00 | C23: C1 | D23: C1C4 | E23: 8 | F23: =VLOOKUP(C23,チーム表!C:D,2,FALSE) -> 田上闘球DREAMS | G23: × | H23: C4 | I23: C4C1 | J23: 8 | K23: =VLOOKUP(H23,チーム表!C:D,2,FALSE) -> 寺井クラブ | M23: B2 | N23: B2B4 | O23: 1 | P23: =VLOOKUP(M23,チーム表!C:D,2,FALSE) -> 鵜川ミラクルフェニックス | Q23: × | R23: B4 | S23: B4B2 | T23: 11 | U23: =VLOOKUP(R23,チーム表!C:D,2,FALSE) -> 鞍月アタッカーズ | AG23: J1J3 | AH23: 5
A24: 21 | B24: 12:50:00 | C24: D1 | D24: D1D3 | E24: 6 | F24: =VLOOKUP(C24,チーム表!C:D,2,FALSE) -> 大門ドッジボールクラブ | G24: × | H24: D3 | I24: D3D1 | J24: 8 | K24: =VLOOKUP(H24,チーム表!C:D,2,FALSE) -> 山中SPARS | M24: K1 | N24: K1K3 | O24: 3 | P24: =VLOOKUP(M24,チーム表!C:D,2,FALSE) -> 松任の大魔陣Ladies | Q24: × | R24: K3 | S24: K3K1 | T24: 5 | U24: =VLOOKUP(R24,チーム表!C:D,2,FALSE) -> 田上闘球HAPPYS | AG24: A1A4 | AH24: 10
A25: 22 | B25: 13:00:00 | C25: B1 | D25: B1B3 | E25: 9 | F25: =VLOOKUP(C25,チーム表!C:D,2,FALSE) -> 杉っ子ドッジファイターズ | G25: × | H25: B3 | I25: B3B1 | J25: 7 | K25: =VLOOKUP(H25,チーム表!C:D,2,FALSE) -> 向本折クラブA | M25: D2 | N25: D2D4 | O25: 10 | P25: =VLOOKUP(M25,チーム表!C:D,2,FALSE) -> 鳳至ドッジボールクラブ | Q25: × | R25: D4 | S25: D4D2 | T25: 3 | U25: =VLOOKUP(R25,チーム表!C:D,2,FALSE) -> 三馬パワフル | AG25: C1C4 | AH25: 8
A26: 23 | B26: 13:10:00 | C26: K1 | D26: K1K4 | E26: 3 | F26: =VLOOKUP(C26,チーム表!C:D,2,FALSE) -> 松任の大魔陣Ladies | G26: × | H26: K4 | I26: K4K1 | J26: 2 | K26: =VLOOKUP(H26,チーム表!C:D,2,FALSE) -> ママ合同チーム | M26: L1 | N26: L1L2 | O26: 4 | P26: =VLOOKUP(M26,チーム表!C:D,2,FALSE) -> 田上闘球親子 | Q26: × | R26: L2 | S26: L2L1 | T26: 3 | U26: =VLOOKUP(R26,チーム表!C:D,2,FALSE) -> フェニックスと頑固なお父さん | AG26: D1D3 | AH26: 6
A27: 24 | B27: 13:20:00 | C27: A2 | D27: A2A4 | E27: 9 | F27: =VLOOKUP(C27,チーム表!C:D,2,FALSE) -> NISHIファイヤースターズ | G27: × | H27: A4 | I27: A4A2 | J27: 8 | K27: =VLOOKUP(H27,チーム表!C:D,2,FALSE) -> 松任の大魔陣 | M27: P1 | N27: P1P2 | O27: 5 | P27: =VLOOKUP(M27,チーム表!C:D,2,FALSE) -> 千坂ゼブラーズG | Q27: × | R27: P2 | S27: P2P1 | T27: 6 | U27: =VLOOKUP(R27,チーム表!C:D,2,FALSE) -> 小木クLOVE♡楽球会 | AG27: B1B3 | AH27: 9
A28: 25 | B28: 13:30:00 | C28: C2 | D28: C2C4 | E28: 10 | F28: =VLOOKUP(C28,チーム表!C:D,2,FALSE) -> 千坂ドッジファイヤーズ | G28: × | H28: C4 | I28: C4C2 | J28: 5 | K28: =VLOOKUP(H28,チーム表!C:D,2,FALSE) -> 寺井クラブ | M28: N1 | N28: N1N2 | O28: 8 | P28: =VLOOKUP(M28,チーム表!C:D,2,FALSE) -> 田上闘球ミドル | Q28: × | R28: N2 | S28: N2N1 | T28: 0 | U28: =VLOOKUP(R28,チーム表!C:D,2,FALSE) -> 鳳至あまさんず | AG28: K1K4 | AH28: 3
A29: 26 | B29: 13:40:00 | C29: K2 | D29: K2K4 | E29: 1 | F29: =VLOOKUP(C29,チーム表!C:D,2,FALSE) -> 鞍月マミ～ズ | G29: × | H29: K4 | I29: K4K2 | J29: 2 | K29: =VLOOKUP(H29,チーム表!C:D,2,FALSE) -> ママ合同チーム | M29: L3 | N29: L3L4 | O29: 7 | P29: =VLOOKUP(M29,チーム表!C:D,2,FALSE) -> 松任の大魔陣ファミリー | Q29: × | R29: L4 | S29: L4L3 | T29: 0 | U29: =VLOOKUP(R29,チーム表!C:D,2,FALSE) -> 三馬パワフルファミリー | AG29: A2A4 | AH29: 9
A30: 27 | B30: 13:50:00 | C30: M1 | D30: M1M2 | E30: 3 | F30: =VLOOKUP(C30,チーム表!C:D,2,FALSE) -> NISHIファミリーズ | G30: × | H30: M2 | I30: M2M1 | J30: 0 | K30: =VLOOKUP(H30,チーム表!C:D,2,FALSE) -> 鳳至ファミリーズ | M30: N2 | N30: N2N3 | O30: 2 | P30: =VLOOKUP(M30,チーム表!C:D,2,FALSE) -> 鳳至あまさんず | Q30: × | R30: N3 | S30: N3N2 | T30: 5 | U30: =VLOOKUP(R30,チーム表!C:D,2,FALSE) -> 松任の大魔陣ミドルファミリー | AG30: C2C4 | AH30: 10
A31: 28 | B31: 14:00:00 | C31: O1 | D31: O1O2 | E31: 4 | F31: =VLOOKUP(C31,チーム表!C:D,2,FALSE) -> 宇出津っ子と優しいお母さん | G31: × | H31: O2 | I31: O2O1 | J31: 6 | K31: =VLOOKUP(H31,チーム表!C:D,2,FALSE) -> 向本折ファミリー | M31: P2 | N31: P2P3 | O31: 8 | P31: =VLOOKUP(M31,チーム表!C:D,2,FALSE) -> 小木クLOVE♡楽球会 | Q31: × | R31: P3 | S31: P3P2 | T31: 0 | U31: =VLOOKUP(R31,チーム表!C:D,2,FALSE) -> Ｊ－テライｆａｍｉｌｙ’＄ | AG31: K2K4 | AH31: 1
A32: 29 | B32: 14:10:00 | C32: M3 | D32: M3M4 | E32: 3 | F32: =VLOOKUP(C32,チーム表!C:D,2,FALSE) -> テライFamily’＄ | G32: × | H32: M4 | I32: M4M3 | J32: 4 | K32: =VLOOKUP(H32,チーム表!C:D,2,FALSE) -> 鞍月ファミリーズ | M32: L2 | N32: L2L3 | O32: 3 | P32: =VLOOKUP(M32,チーム表!C:D,2,FALSE) -> フェニックスと頑固なお父さん | Q32: × | R32: L3 | S32: L3L2 | T32: 3 | U32: =VLOOKUP(R32,チーム表!C:D,2,FALSE) -> 松任の大魔陣ファミリー | AG32: M1M2 | AH32: 3
A33: 30 | B33: 14:20:00 | C33: O2 | D33: O2O3 | E33: 2 | F33: =VLOOKUP(C33,チーム表!C:D,2,FALSE) -> 向本折ファミリー | G33: × | H33: O3 | I33: O3O2 | J33: 4 | K33: =VLOOKUP(H33,チーム表!C:D,2,FALSE) -> 鞍月ミドルファミリーズ | M33: N1 | N33: N1N3 | O33: 3 | P33: =VLOOKUP(M33,チーム表!C:D,2,FALSE) -> 田上闘球ミドル | Q33: × | R33: N3 | S33: N3N1 | T33: 5 | U33: =VLOOKUP(R33,チーム表!C:D,2,FALSE) -> 松任の大魔陣ミドルファミリー | AG33: O1O2 | AH33: 4
A34: 31 | B34: 14:30:00 | C34: M2 | D34: M2M3 | E34: 5 | F34: =VLOOKUP(C34,チーム表!C:D,2,FALSE) -> 鳳至ファミリーズ | G34: × | H34: M3 | I34: M3M2 | J34: 1 | K34: =VLOOKUP(H34,チーム表!C:D,2,FALSE) -> テライFamily’＄ | M34: L1 | N34: L1L4 | O34: 5 | P34: =VLOOKUP(M34,チーム表!C:D,2,FALSE) -> 田上闘球親子 | Q34: × | R34: L4 | S34: L4L1 | T34: 3 | U34: =VLOOKUP(R34,チーム表!C:D,2,FALSE) -> 三馬パワフルファミリー | AG34: M3M4 | AH34: 3
A35: 32 | B35: 14:40:00 | C35: O1 | D35: O1O3 | E35: 0 | F35: =VLOOKUP(C35,チーム表!C:D,2,FALSE) -> 宇出津っ子と優しいお母さん | G35: × | H35: O3 | I35: O3O1 | J35: 6 | K35: =VLOOKUP(H35,チーム表!C:D,2,FALSE) -> 鞍月ミドルファミリーズ | M35: P1 | N35: P1P3 | O35: 2 | P35: =VLOOKUP(M35,チーム表!C:D,2,FALSE) -> 千坂ゼブラーズG | Q35: × | R35: P3 | S35: P3P1 | T35: 6 | U35: =VLOOKUP(R35,チーム表!C:D,2,FALSE) -> Ｊ－テライｆａｍｉｌｙ’＄ | AG35: O2O3 | AH35: 2
A36: 33 | B36: 14:50:00 | C36: M1 | D36: M1M4 | E36: 1 | F36: =VLOOKUP(C36,チーム表!C:D,2,FALSE) -> NISHIファミリーズ | G36: × | H36: M4 | I36: M4M1 | J36: 6 | K36: =VLOOKUP(H36,チーム表!C:D,2,FALSE) -> 鞍月ファミリーズ | M36: L2 | N36: L2L4 | O36: 6 | P36: =VLOOKUP(M36,チーム表!C:D,2,FALSE) -> フェニックスと頑固なお父さん | Q36: × | R36: L4 | S36: L4L2 | T36: 2 | U36: =VLOOKUP(R36,チーム表!C:D,2,FALSE) -> 三馬パワフルファミリー | AG36: M2M3 | AH36: 5
A37: 34 | B37: 15:00:00 | C37: L1 | D37: =CONCATENATE(C37,H37) -> L1L3 | E37: 1 | F37: =VLOOKUP(C37,チーム表!C:D,2,FALSE) -> 田上闘球親子 | G37: × | H37: L3 | I37: =CONCATENATE(H37,C37) -> L3L1 | J37: 5 | K37: =VLOOKUP(H37,チーム表!C:D,2,FALSE) -> 松任の大魔陣ファミリー | M37: M1 | N37: =CONCATENATE(M37,R37) -> M1M3 | O37: 3 | P37: =VLOOKUP(M37,チーム表!C:D,2,FALSE) -> NISHIファミリーズ | Q37: × | R37: M3 | S37: =CONCATENATE(R37,M37) -> M3M1 | T37: 2 | U37: =VLOOKUP(R37,チーム表!C:D,2,FALSE) -> テライFamily’＄ | AG37: O1O3 | AH37: 00:00:00
A38: 35 | B38: 15:10:00 | C38: M2 | D38: =CONCATENATE(C38,H38) -> M2M4 | E38: 3 | F38: =VLOOKUP(C38,チーム表!C:D,2,FALSE) -> 鳳至ファミリーズ | G38: × | H38: M4 | I38: =CONCATENATE(H38,C38) -> M4M2 | J38: 6 | K38: =VLOOKUP(H38,チーム表!C:D,2,FALSE) -> 鞍月ファミリーズ | M38: =組合表!AI38 ->  | N38: =CONCATENATE(M38,R38) ->  | P38: =VLOOKUP(M38,チーム表!C:D,2,FALSE) ->  | Q38: × | R38: =組合表!AJ38 ->  | S38: =CONCATENATE(R38,M38) ->  | U38: =VLOOKUP(R38,チーム表!C:D,2,FALSE) ->  | AG38: M1M4 | AH38: 1
A39: 36 | B39: 15:20:00 | C39: 1 | F39: 決勝トーナメント 一般の部 １回戦 | M39: 1 | P39: 決勝トーナメント ｼﾞｭﾆｱ･ｷｯｽﾞの部 準決勝 | AG39: L1L3 | AH39: 1
A40: 37 | B40: 15:30:00 | C40: 2 | F40: 決勝トーナメント 一般の部 １回戦 | M40: 2 | P40: 決勝トーナメント ｼﾞｭﾆｱ･ｷｯｽﾞの部 決勝 | AG40: M2M4 | AH40: 3
A41: 38 | B41: 15:40:00 | C41: 3 | F41: 決勝トーナメント 一般の部 準決勝 | M41: 3 | P41: 決勝トーナメント 一般の部 準決勝 | AG41: =#REF! ->  | AH41: =IF(#REF!="","",#REF!) -> 
A42: 39 | B42: 15:50:00 | C42: 4 | F42: 決勝トーナメント 一般の部 決勝 | M42: 4 | P42: 決勝トーナメント 一般の部 ３位決定戦 | AG42: =#REF! ->  | AH42: =IF(#REF!="","",#REF!) -> 
A43: 40 | B43: 16:00:00 | C43: 5 | F43: 決勝トーナメント 親子の部 準決勝 | M43: 5 | P43: 決勝トーナメント 親子の部 準決勝 | AG43: =#REF! ->  | AH43: =IF(#REF!="","",#REF!) -> 
A44: 41 | B44: 16:10:00 | C44: 6 | F44: 決勝トーナメント 親子の部 決勝 | M44: 6 | AG44: =#REF! ->  | AH44: =IF(#REF!="","",#REF!) -> 
A45: 42 | B45: 16:20:00 | C45: 7 | F45: 決勝トーナメント ミドル親子の部 １回戦 | M45: 7 | P45: 決勝トーナメント ミドル親子の部 １回戦 | AG45: =#REF! ->  | AH45: =IF(#REF!="","",#REF!) -> 
A46: 43 | B46: 16:30:00 | C46: 8 | F46: 決勝トーナメント ミドル親子の部 準決勝 | M46: 8 | P46: 決勝トーナメント ミドル親子の部 準決勝 | AG46: =I4 -> A2A1 | AH46: =IF(J4="","",J4) -> 4
A47: 44 | B47: 16:40:00 | C47: 9 | M47: 9 | P47: 決勝トーナメント ミドル親子の部 決勝 | AG47: =I5 -> C2C1 | AH47: =IF(J5="","",J5) -> 9
A48: 45 | B48: 16:50:00 | C48: 10 | F48: 決勝トーナメント 小学生の部 準決勝 | M48: 10 | P48: 決勝トーナメント 小学生の部 準決勝
A49: 46 | B49: 17:00:00 | C49: 11 | F49: 決勝トーナメント 小学生の部 決勝 | M49: 11 | P49: 決勝トーナメント 小学生の部 ３位決定戦 | AG49: =I6 -> K2K1 | AH49: =IF(J6="","",J6) -> 7
AG50: F2F1 | AH50: 6
AG51: H2H1 | AH51: 1
AG52: J2J1 | AH52: 3
AG53: A4A3 | AH53: 6
AG54: C4C3
AG55: K4K3 | AH55: 5
AG56: F3F2 | AH56: 0
AG57: H3H2 | AH57: 6
AG58: J3J2 | AH58: 3
AG59: A3A2 | AH59: 5
AG60: C3C2
AG61: K3K2 | AH61: 0
AG62: F3F1 | AH62: 4
AG63: H3H1 | AH63: 5
AG64: J3J1 | AH64: 5
AG65: A4A1 | AH65: 5
AG66: C4C1 | AH66: 8
AG67: D3D1 | AH67: 8
AG68: B3B1 | AH68: 7
AG69: K4K1 | AH69: 2
AG70: A4A2 | AH70: 8
AG71: C4C2 | AH71: 5
AG72: K4K2 | AH72: 2
AG73: M2M1 | AH73: 0
AG74: O2O1 | AH74: 6
AG75: M4M3 | AH75: 4
AG76: O3O2 | AH76: 4
AG77: M3M2 | AH77: 1
AG78: O3O1 | AH78: 6
AG79: M4M1 | AH79: 6
AG80: L3L1 | AH80: 5
AG81: M4M2 | AH81: 6
AG82: =#REF! ->  | AH82: =IF(#REF!="","",#REF!) -> 
AG83: =#REF! ->  | AH83: =IF(#REF!="","",#REF!) -> 
AG84: =#REF! ->  | AH84: =IF(#REF!="","",#REF!) -> 
AG85: =#REF! ->  | AH85: =IF(#REF!="","",#REF!) -> 
AG86: =#REF! ->  | AH86: =IF(#REF!="","",#REF!) -> 
AG87: =N4 -> B1B2 | AH87: =IF(O4="","",O4) -> 8
AG88: D1D2 | AH88: =IF(O5="","",O5) -> 8
AG89: E1E2 | AH89: 4
AG90: G1G2
AG91: I1I2 | AH91: 8
AG92: E2E3 | AH92: 4
AG93: D3D4 | AH93: 9
AG94: B3B4 | AH94: 9
AG95: G2G3 | AH95: 4
AG96: D2D3 | AH96: 8
AG97: B2B3 | AH97: 8
AG98: I2I3 | AH98: 4
AG99: E1E3 | AH99: 4
AG100: G1G3
AG101: I1I3 | AH101: 3
AG102: B1B4 | AH102: 10
AG103: D1D4 | AH103: 9
AG104: A1A3 | AH104: 9
AG105: C1C3
AG106: B2B4 | AH106: 1
AG107: K1K3 | AH107: 3
AG108: D2D4 | AH108: 10
AG109: L1L2 | AH109: 4
AG110: P1P2 | AH110: 5
AG111: N1N2 | AH111: 8
AG112: L3L4 | AH112: 7
AG113: N2N3 | AH113: 2
AG114: P2P3 | AH114: 8
AG115: L2L3 | AH115: 3
AG116: N1N3 | AH116: 3
AG117: L1L4 | AH117: 5
AG118: P1P3 | AH118: 2
AG119: L2L4 | AH119: 6
AG120: M1M3 | AH120: 3
AG122: =#REF! ->  | AH122: =IF(#REF!="","",#REF!) -> 
AG123: =#REF! ->  | AH123: =IF(#REF!="","",#REF!) -> 
AG124: =#REF! ->  | AH124: =IF(#REF!="","",#REF!) -> 
AG125: =#REF! ->  | AH125: =IF(#REF!="","",#REF!) -> 
AG126: =#REF! ->  | AH126: =IF(#REF!="","",#REF!) -> 
AG127: =S4 -> B2B1 | AH127: =IF(T4="","",T4) -> 4
AG128: D2D1 | AH128: =IF(T5="","",T5) -> 6
AG129: E2E1 | AH129: 5
AG130: G2G1
AG131: I2I1 | AH131: 0
AG132: E3E2 | AH132: 0
AG133: D4D3 | AH133: 1
AG134: B4B3 | AH134: 9
AG135: G3G2 | AH135: 2
AG136: D3D2 | AH136: 9
AG137: B3B2 | AH137: 8
AG138: I3I2 | AH138: 4
AG139: E3E1 | AH139: 3
AG140: G3G1
AG141: I3I1 | AH141: 4
AG142: B4B1 | AH142: 7
AG143: D4D1 | AH143: 5
AG144: A3A1 | AH144: 3
AG145: C3C1
AG146: B4B2 | AH146: 11
AG147: K3K1 | AH147: 5
AG148: D4D2 | AH148: 3
AG149: L2L1 | AH149: 3
AG150: P2P1 | AH150: 6
AG151: N2N1 | AH151: 0
AG152: L4L3 | AH152: 0
AG153: N3N2 | AH153: 5
AG154: P3P2 | AH154: 0
AG155: L3L2 | AH155: 3
AG156: N3N1 | AH156: 5
AG157: L4L1 | AH157: 3
AG158: P3P1 | AH158: 6
AG159: L4L2 | AH159: 2
AG160: M3M1 | AH160: 2
AG162: =#REF! ->  | AH162: =IF(#REF!="","",#REF!) -> 
AG163: =#REF! ->  | AH163: =IF(#REF!="","",#REF!) -> 
AG164: =#REF! ->  | AH164: =IF(#REF!="","",#REF!) -> 
AG165: =#REF! ->  | AH165: =IF(#REF!="","",#REF!) -> 
AG166: =#REF! ->  | AH166: =IF(#REF!="","",#REF!) -> 

Sheet リーグ戦表
B1: =チーム表!$B$1 -> 第２７回 いしかわスポーツ・レクリエーション交流大会 「第１１回ふれあいドッジボール大会」
C2: リーグ戦表
B3: 小学生の部
E4: =CONCATENATE(A5,"1") -> A1 | H4: =CONCATENATE(A5,"2") -> A2 | K4: =CONCATENATE(A5,"3") -> A3 | N4: =CONCATENATE(A5,"4") -> A4
A5: A | B5: チーム名 | D5: =B7 -> 下関福光サンダージュニア | G5: =B9 -> NISHIファイヤースターズ | J5: =B11 -> 小木クラブ | M5: =B13 -> 松任の大魔陣 | Y5: 勝 | Z5: 負 | AA5: 分 | AB5: 点 | AC5: 内野 | AD5: 順位決定点 | AE5: 相手内野 | AF5: 順位 | AG5: kaku
A7: =CONCATENATE(A5,1) -> A1 | B7: =VLOOKUP(A7,チーム表!C:D,2,FALSE) -> 下関福光サンダージュニア | G7: =CONCATENATE($A7,H4) -> A1A2 | H7: =IF(G8="","",IF(G8=I8,"△",IF(G8>I8,"〇","×"))) -> 〇 | I7: =CONCATENATE(H4,$A7) -> A2A1 | J7: =CONCATENATE($A7,K4) -> A1A3 | K7: =IF(J8="","",IF(J8=L8,"△",IF(J8>L8,"〇","×"))) -> 〇 | L7: =CONCATENATE(K4,$A7) -> A3A1 | M7: =CONCATENATE($A7,N4) -> A1A4 | N7: =IF(M8="","",IF(M8=O8,"△",IF(M8>O8,"〇","×"))) -> 〇 | O7: =CONCATENATE(N4,$A7) -> A4A1 | Y7: =COUNTIF($E7:$N7,"〇") -> 3 | Z7: =COUNTIF($E7:$N7,"×") -> 0 | AA7: =COUNTIF($E7:$N7,"△") -> 0 | AB7: =Y7*2+AA7 -> 6 | AC7: =IF(G8="","",D8+G8+M8+J8) -> 30 | AD7: =IF(AC7="","",AB7*100+AC7) -> 630 | AE7: =IF(AC7="","",F8+I8+L8+O8) -> 12 | AF7: =IF(AD7="","",RANK(AD7,AD7:AD14,0)) -> 1 | AH7: =CONCATENATE(A5,AF7) -> A1 | AI7: =B7 -> 下関福光サンダージュニア
G8: =VLOOKUP(G7,対戦表!$AG:$AH,2,0) -> 11 | H8: - | I8: =VLOOKUP(I7,対戦表!$AG:$AH,2,0) -> 4 | J8: =VLOOKUP(J7,対戦表!$AG:$AH,2,0) -> 9 | K8: - | L8: =VLOOKUP(L7,対戦表!$AG:$AH,2,0) -> 3 | M8: =VLOOKUP(M7,対戦表!$AG:$AH,2,0) -> 10 | N8: - | O8: =VLOOKUP(O7,対戦表!$AG:$AH,2,0) -> 5
A9: =CONCATENATE(A5,2) -> A2 | B9: =VLOOKUP(A9,チーム表!C:D,2,FALSE) -> NISHIファイヤースターズ | E9: =IF(D10="","",IF(D10=F10,"△",IF(D10>F10,"〇","×"))) -> × | J9: =CONCATENATE($A9,K4) -> A2A3 | K9: =IF(J10="","",IF(J10=L10,"△",IF(J10>L10,"〇","×"))) -> 〇 | L9: =CONCATENATE(K4,$A9) -> A3A2 | M9: =CONCATENATE($A9,N4) -> A2A4 | N9: =IF(M10="","",IF(M10=O10,"△",IF(M10>O10,"〇","×"))) -> 〇 | O9: =CONCATENATE(N4,$A9) -> A4A2 | Y9: =COUNTIF($E9:$N9,"〇") -> 2 | Z9: =COUNTIF($E9:$N9,"×") -> 1 | AA9: =COUNTIF($E9:$N9,"△") -> 0 | AB9: =Y9*2+AA9 -> 4 | AC9: =IF(D10="","",D10+G10+M10+J10) -> 19 | AD9: =IF(AC9="","",AB9*100+AC9) -> 419 | AE9: =IF(AC9="","",F10+I10+L10+O10) -> 24 | AF9: =IF(AD9="","",RANK(AD9,AD7:AD14,0)) -> 2 | AH9: =CONCATENATE(A5,AF9) -> A2 | AI9: =B9 -> NISHIファイヤースターズ
D10: =IF(I8="","",I8) -> 4 | E10: - | F10: =IF(G8="","",G8) -> 11 | J10: =VLOOKUP(J9,対戦表!$AG:$AH,2,0) -> 6 | K10: - | L10: =VLOOKUP(L9,対戦表!$AG:$AH,2,0) -> 5 | M10: =VLOOKUP(M9,対戦表!$AG:$AH,2,0) -> 9 | N10: - | O10: =VLOOKUP(O9,対戦表!$AG:$AH,2,0) -> 8
A11: =CONCATENATE(A5,3) -> A3 | B11: =VLOOKUP(A11,チーム表!C:D,2,FALSE) -> 小木クラブ | E11: =IF(D12="","",IF(D12=F12,"△",IF(D12>F12,"〇","×"))) -> × | H11: =IF(G12="","",IF(G12=I12,"△",IF(G12>I12,"〇","×"))) -> × | M11: =CONCATENATE($A11,N4) -> A3A4 | N11: =IF(M12="","",IF(M12=O12,"△",IF(M12>O12,"〇","×"))) -> 〇 | O11: =CONCATENATE(N4,$A11) -> A4A3 | Y11: =COUNTIF($E11:$N11,"〇") -> 1 | Z11: =COUNTIF($E11:$N11,"×") -> 2 | AA11: =COUNTIF($E11:$N11,"△") -> 0 | AB11: =Y11*2+AA11 -> 2 | AC11: =IF(G12="","",D12+G12+M12+J12) -> 16 | AD11: =IF(AC11="","",AB11*100+AC11) -> 216 | AE11: =IF(AC11="","",F12+I12+L12+O12) -> 21 | AF11: =IF(AD11="","",RANK(AD11,AD7:AD14,0)) -> 3 | AH11: =CONCATENATE(A5,AF11) -> A3 | AI11: =B11 -> 小木クラブ
D12: =IF(L8="","",L8) -> 3 | E12: - | F12: =IF(J8="","",J8) -> 9 | G12: =IF(L10="","",L10) -> 5 | H12: - | I12: =IF(J10="","",J10) -> 6 | M12: =VLOOKUP(M11,対戦表!$AG:$AH,2,0) -> 8 | N12: - | O12: =VLOOKUP(O11,対戦表!$AG:$AH,2,0) -> 6
A13: =CONCATENATE(A5,4) -> A4 | B13: =VLOOKUP(A13,チーム表!C:D,2,FALSE) -> 松任の大魔陣 | E13: =IF(D14="","",IF(D14=F14,"△",IF(D14>F14,"〇","×"))) -> × | H13: =IF(G14="","",IF(G14=I14,"△",IF(G14>I14,"〇","×"))) -> × | K13: =IF(J14="","",IF(J14=L14,"△",IF(J14>L14,"〇","×"))) -> × | Y13: =COUNTIF($E13:$N13,"〇") -> 0 | Z13: =COUNTIF($E13:$N13,"×") -> 3 | AA13: =COUNTIF($E13:$N13,"△") -> 0 | AB13: =Y13*2+AA13 -> 0 | AC13: =IF(G14="","",D14+G14+M14+J14) -> 19 | AD13: =IF(AC13="","",AB13*100+AC13) -> 19 | AE13: =IF(AC13="","",F14+I14+L14+O14) -> 27 | AF13: =IF(AD13="","",RANK(AD13,AD7:AD14,0)) -> 4 | AH13: =CONCATENATE(A5,AF13) -> A4 | AI13: =B13 -> 松任の大魔陣
D14: =IF(O8="","",O8) -> 5 | E14: - | F14: =IF(M8="","",M8) -> 10 | G14: =IF(O10="","",O10) -> 8 | H14: - | I14: =IF(M10="","",M10) -> 9 | J14: =IF(O12="","",O12) -> 6 | K14: - | L14: =IF(M12="","",M12) -> 8
E16: =CONCATENATE(A17,"1") -> B1 | H16: =CONCATENATE(A17,"2") -> B2 | K16: =CONCATENATE(A17,"3") -> B3 | N16: =CONCATENATE(A17,"4") -> B4
A17: B | B17: チーム名 | D17: =B19 -> 杉っ子ドッジファイターズ | G17: =B21 -> 鵜川ミラクルフェニックス | J17: =B23 -> 向本折クラブA | M17: =B25 -> 鞍月アタッカーズ | Y17: 勝 | Z17: 負 | AA17: 分 | AB17: 点 | AC17: 内野 | AD17: 順位決定点 | AE17: 相手内野 | AF17: 順位 | AG17: kaku
A19: =CONCATENATE(A17,1) -> B1 | B19: =VLOOKUP(A19,チーム表!C:D,2,FALSE) -> 杉っ子ドッジファイターズ | G19: =CONCATENATE($A19,H16) -> B1B2 | H19: =IF(G20="","",IF(G20=I20,"△",IF(G20>I20,"〇","×"))) -> 〇 | I19: =CONCATENATE(H16,$A19) -> B2B1 | J19: =CONCATENATE($A19,K16) -> B1B3 | K19: =IF(J20="","",IF(J20=L20,"△",IF(J20>L20,"〇","×"))) -> 〇 | L19: =CONCATENATE(K16,$A19) -> B3B1 | M19: =CONCATENATE($A19,N16) -> B1B4 | N19: =IF(M20="","",IF(M20=O20,"△",IF(M20>O20,"〇","×"))) -> 〇 | O19: =CONCATENATE(N16,$A19) -> B4B1 | Y19: =COUNTIF($E19:$N19,"〇") -> 3 | Z19: =COUNTIF($E19:$N19,"×") -> 0 | AA19: =COUNTIF($E19:$N19,"△") -> 0 | AB19: =Y19*2+AA19 -> 6 | AC19: =IF(G20="","",D20+G20+M20+J20) -> 27 | AD19: =IF(AC19="","",AB19*100+AC19) -> 627 | AE19: =IF(AC19="","",F20+I20+L20+O20) -> 18 | AF19: =IF(AD19="","",RANK(AD19,AD19:AD26,0)) -> 1 | AH19: =CONCATENATE(A17,AF19) -> B1 | AI19: =B19 -> 杉っ子ドッジファイターズ
G20: =VLOOKUP(G19,対戦表!$AG:$AH,2,0) -> 8 | H20: - | I20: =VLOOKUP(I19,対戦表!$AG:$AH,2,0) -> 4 | J20: =VLOOKUP(J19,対戦表!$AG:$AH,2,0) -> 9 | K20: - | L20: =VLOOKUP(L19,対戦表!$AG:$AH,2,0) -> 7 | M20: =VLOOKUP(M19,対戦表!$AG:$AH,2,0) -> 10 | N20: - | O20: =VLOOKUP(O19,対戦表!$AG:$AH,2,0) -> 7
A21: =CONCATENATE(A17,2) -> B2 | B21: =VLOOKUP(A21,チーム表!C:D,2,FALSE) -> 鵜川ミラクルフェニックス | E21: =IF(D22="","",IF(D22=F22,"△",IF(D22>F22,"〇","×"))) -> × | J21: =CONCATENATE($A21,K16) -> B2B3 | K21: =IF(J22="","",IF(J22=L22,"△",IF(J22>L22,"〇","×"))) -> △ | L21: =CONCATENATE(K16,$A21) -> B3B2 | M21: =CONCATENATE($A21,N16) -> B2B4 | N21: =IF(M22="","",IF(M22=O22,"△",IF(M22>O22,"〇","×"))) -> × | O21: =CONCATENATE(N16,$A21) -> B4B2 | Y21: =COUNTIF($E21:$N21,"〇") -> 0 | Z21: =COUNTIF($E21:$N21,"×") -> 2 | AA21: =COUNTIF($E21:$N21,"△") -> 1 | AB21: =Y21*2+AA21 -> 1 | AC21: =IF(D22="","",D22+G22+M22+J22) -> 13 | AD21: =IF(AC21="","",AB21*100+AC21) -> 113 | AE21: =IF(AC21="","",F22+I22+L22+O22) -> 27 | AF21: =IF(AD21="","",RANK(AD21,AD19:AD26,0)) -> 4 | AH21: =CONCATENATE(A17,AF21) -> B4 | AI21: =B21 -> 鵜川ミラクルフェニックス
D22: =IF(I20="","",I20) -> 4 | E22: - | F22: =IF(G20="","",G20) -> 8 | J22: =VLOOKUP(J21,対戦表!$AG:$AH,2,0) -> 8 | K22: - | L22: =VLOOKUP(L21,対戦表!$AG:$AH,2,0) -> 8 | M22: =VLOOKUP(M21,対戦表!$AG:$AH,2,0) -> 1 | N22: - | O22: =VLOOKUP(O21,対戦表!$AG:$AH,2,0) -> 11
A23: =CONCATENATE(A17,3) -> B3 | B23: =VLOOKUP(A23,チーム表!C:D,2,FALSE) -> 向本折クラブA | E23: =IF(D24="","",IF(D24=F24,"△",IF(D24>F24,"〇","×"))) -> × | H23: =IF(G24="","",IF(G24=I24,"△",IF(G24>I24,"〇","×"))) -> △ | M23: =CONCATENATE($A23,N16) -> B3B4 | N23: =IF(M24="","",IF(M24=O24,"△",IF(M24>O24,"〇","×"))) -> △ | O23: =CONCATENATE(N16,$A23) -> B4B3 | Y23: =COUNTIF($E23:$N23,"〇") -> 0 | Z23: =COUNTIF($E23:$N23,"×") -> 1 | AA23: =COUNTIF($E23:$N23,"△") -> 2 | AB23: =Y23*2+AA23 -> 2 | AC23: =IF(G24="","",D24+G24+M24+J24) -> 24 | AD23: =IF(AC23="","",AB23*100+AC23) -> 224 | AE23: =IF(AC23="","",F24+I24+L24+O24) -> 26 | AF23: =IF(AD23="","",RANK(AD23,AD19:AD26,0)) -> 3 | AH23: =CONCATENATE(A17,AF23) -> B3 | AI23: =B23 -> 向本折クラブA
D24: =IF(L20="","",L20) -> 7 | E24: - | F24: =IF(J20="","",J20) -> 9 | G24: =IF(L22="","",L22) -> 8 | H24: - | I24: =IF(J22="","",J22) -> 8 | M24: =VLOOKUP(M23,対戦表!$AG:$AH,2,0) -> 9 | N24: - | O24: =VLOOKUP(O23,対戦表!$AG:$AH,2,0) -> 9
A25: =CONCATENATE(A17,4) -> B4 | B25: =VLOOKUP(A25,チーム表!C:D,2,FALSE) -> 鞍月アタッカーズ | E25: =IF(D26="","",IF(D26=F26,"△",IF(D26>F26,"〇","×"))) -> × | H25: =IF(G26="","",IF(G26=I26,"△",IF(G26>I26,"〇","×"))) -> 〇 | K25: =IF(J26="","",IF(J26=L26,"△",IF(J26>L26,"〇","×"))) -> △ | Y25: =COUNTIF($E25:$N25,"〇") -> 1 | Z25: =COUNTIF($E25:$N25,"×") -> 1 | AA25: =COUNTIF($E25:$N25,"△") -> 1 | AB25: =Y25*2+AA25 -> 3 | AC25: =IF(G26="","",D26+G26+M26+J26) -> 27 | AD25: =IF(AC25="","",AB25*100+AC25) -> 327 | AE25: =IF(AC25="","",F26+I26+L26+O26) -> 20 | AF25: =IF(AD25="","",RANK(AD25,AD19:AD26,0)) -> 2 | AH25: =CONCATENATE(A17,AF25) -> B2 | AI25: =B25 -> 鞍月アタッカーズ
D26: =IF(O20="","",O20) -> 7 | E26: - | F26: =IF(M20="","",M20) -> 10 | G26: =IF(O22="","",O22) -> 11 | H26: - | I26: =IF(M22="","",M22) -> 1 | J26: =IF(O24="","",O24) -> 9 | K26: - | L26: =IF(M24="","",M24) -> 9
E28: =CONCATENATE(A29,"1") -> C1 | H28: =CONCATENATE(A29,"2") -> C2 | K28: =CONCATENATE(A29,"3") -> C3 | N28: =CONCATENATE(A29,"4") -> C4
A29: C | B29: チーム名 | D29: =B31 -> 田上闘球DREAMS | G29: =B33 -> 千坂ドッジファイヤーズ | J29: =B35 -> あさひスーパーファイターズ | M29: =B37 -> 寺井クラブ | Y29: 勝 | Z29: 負 | AA29: 分 | AB29: 点 | AC29: 内野 | AD29: 順位決定点 | AE29: 相手内野 | AF29: 順位 | AG29: kaku
A31: =CONCATENATE(A29,1) -> C1 | B31: =VLOOKUP(A31,チーム表!C:D,2,FALSE) -> 田上闘球DREAMS | G31: =CONCATENATE($A31,H28) -> C1C2 | H31: =IF(G32="","",IF(G32=I32,"△",IF(G32>I32,"〇","×"))) -> × | I31: =CONCATENATE(H28,$A31) -> C2C1 | J31: =CONCATENATE($A31,K28) -> C1C3 | K31: =IF(J32="","",IF(J32=L32,"△",IF(J32>L32,"〇","×"))) ->  | L31: =CONCATENATE(K28,$A31) -> C3C1 | M31: =CONCATENATE($A31,N28) -> C1C4 | N31: =IF(M32="","",IF(M32=O32,"△",IF(M32>O32,"〇","×"))) -> △ | O31: =CONCATENATE(N28,$A31) -> C4C1 | Y31: =COUNTIF($E31:$N31,"〇") -> 0 | Z31: =COUNTIF($E31:$N31,"×") -> 1 | AA31: =COUNTIF($E31:$N31,"△") -> 1 | AB31: =Y31*2+AA31 -> 1 | AC31: =IF(G32="","",D32+G32+M32) -> 11 | AD31: =IF(AC31="","",AB31*100+AC31) -> 111 | AE31: =IF(AC31="","",F32+I32+O32) -> 17 | AF31: =IF(AD31="","",RANK(AD31,AD31:AD38,0)) -> 3 | AH31: =CONCATENATE(A29,AF31) -> C3 | AI31: =B31 -> 田上闘球DREAMS
G32: =VLOOKUP(G31,対戦表!$AG:$AH,2,0) -> 3 | H32: - | I32: =VLOOKUP(I31,対戦表!$AG:$AH,2,0) -> 9 | J32: =VLOOKUP(J31,対戦表!$AG:$AH,2,0) ->  | K32: - | L32: =VLOOKUP(L31,対戦表!$AG:$AH,2,0) ->  | M32: =VLOOKUP(M31,対戦表!$AG:$AH,2,0) -> 8 | N32: - | O32: =VLOOKUP(O31,対戦表!$AG:$AH,2,0) -> 8
A33: =CONCATENATE(A29,2) -> C2 | B33: =VLOOKUP(A33,チーム表!C:D,2,FALSE) -> 千坂ドッジファイヤーズ | E33: =IF(D34="","",IF(D34=F34,"△",IF(D34>F34,"〇","×"))) -> 〇 | J33: =CONCATENATE($A33,K28) -> C2C3 | K33: =IF(J34="","",IF(J34=L34,"△",IF(J34>L34,"〇","×"))) ->  | L33: =CONCATENATE(K28,$A33) -> C3C2 | M33: =CONCATENATE($A33,N28) -> C2C4 | N33: =IF(M34="","",IF(M34=O34,"△",IF(M34>O34,"〇","×"))) -> 〇 | O33: =CONCATENATE(N28,$A33) -> C4C2 | Y33: =COUNTIF($E33:$N33,"〇") -> 2 | Z33: =COUNTIF($E33:$N33,"×") -> 0 | AA33: =COUNTIF($E33:$N33,"△") -> 0 | AB33: =Y33*2+AA33 -> 4 | AC33: =IF(D34="","",D34+G34+M34) -> 19 | AD33: =IF(AC33="","",AB33*100+AC33) -> 419 | AE33: =IF(AC33="","",F34+I34+O34) -> 8 | AF33: =IF(AD33="","",RANK(AD33,AD31:AD38,0)) -> 1 | AH33: =CONCATENATE(A29,AF33) -> C1 | AI33: =B33 -> 千坂ドッジファイヤーズ
D34: =IF(I32="","",I32) -> 9 | E34: - | F34: =IF(G32="","",G32) -> 3 | J34: =VLOOKUP(J33,対戦表!$AG:$AH,2,0) ->  | K34: - | L34: =VLOOKUP(L33,対戦表!$AG:$AH,2,0) ->  | M34: =VLOOKUP(M33,対戦表!$AG:$AH,2,0) -> 10 | N34: - | O34: =VLOOKUP(O33,対戦表!$AG:$AH,2,0) -> 5
A35: =CONCATENATE(A29,3) -> C3 | B35: =VLOOKUP(A35,チーム表!C:D,2,FALSE) -> あさひスーパーファイターズ | E35: =IF(D36="","",IF(D36=F36,"△",IF(D36>F36,"〇","×"))) ->  | H35: =IF(G36="","",IF(G36=I36,"△",IF(G36>I36,"〇","×"))) ->  | M35: =CONCATENATE($A35,N28) -> C3C4 | N35: =IF(M36="","",IF(M36=O36,"△",IF(M36>O36,"〇","×"))) ->  | O35: =CONCATENATE(N28,$A35) -> C4C3 | Y35: =COUNTIF($E35:$N35,"〇") -> 0 | Z35: =COUNTIF($E35:$N35,"×") -> 0 | AA35: =COUNTIF($E35:$N35,"△") -> 0 | AB35: =Y35*2+AA35 -> 0 | AC35: =IF(G36="","",D36+G36+M36+J36) ->  | AD35: =IF(AC35="","",AB35*100+AC35) ->  | AE35: =IF(AC35="","",F36+I36+L36+O36) ->  | AF35: =IF(AD35="","",RANK(AD35,AD31:AD38,0)) ->  | AH35: =CONCATENATE(A29,AF35) -> C | AI35: =B35 -> あさひスーパーファイターズ | AJ35: 欠場
D36: =IF(L32="","",L32) ->  | E36: - | F36: =IF(J32="","",J32) ->  | G36: =IF(L34="","",L34) ->  | H36: - | I36: =IF(J34="","",J34) ->  | M36: =VLOOKUP(M35,対戦表!$AG:$AH,2,0) ->  | N36: - | O36: =VLOOKUP(O35,対戦表!$AG:$AH,2,0) -> 
A37: =CONCATENATE(A29,4) -> C4 | B37: =VLOOKUP(A37,チーム表!C:D,2,FALSE) -> 寺井クラブ | E37: =IF(D38="","",IF(D38=F38,"△",IF(D38>F38,"〇","×"))) -> △ | H37: =IF(G38="","",IF(G38=I38,"△",IF(G38>I38,"〇","×"))) -> × | K37: =IF(J38="","",IF(J38=L38,"△",IF(J38>L38,"〇","×"))) ->  | Y37: =COUNTIF($E37:$N37,"〇") -> 0 | Z37: =COUNTIF($E37:$N37,"×") -> 1 | AA37: =COUNTIF($E37:$N37,"△") -> 1 | AB37: =Y37*2+AA37 -> 1 | AC37: =IF(G38="","",D38+G38+M38) -> 13 | AD37: =IF(AC37="","",AB37*100+AC37) -> 113 | AE37: =IF(AC37="","",F38+I38+O38) -> 18 | AF37: =IF(AD37="","",RANK(AD37,AD31:AD38,0)) -> 2 | AH37: =CONCATENATE(A29,AF37) -> C2 | AI37: =B37 -> 寺井クラブ
D38: =IF(O32="","",O32) -> 8 | E38: - | F38: =IF(M32="","",M32) -> 8 | G38: =IF(O34="","",O34) -> 5 | H38: - | I38: =IF(M34="","",M34) -> 10 | J38: =IF(O36="","",O36) ->  | K38: - | L38: =IF(M36="","",M36) -> 
E40: =CONCATENATE(A41,"1") -> D1 | H40: =CONCATENATE(A41,"2") -> D2 | K40: =CONCATENATE(A41,"3") -> D3 | N40: =CONCATENATE(A41,"4") -> D4
A41: D | B41: チーム名 | D41: =B43 -> 大門ドッジボールクラブ | G41: =B45 -> 鳳至ドッジボールクラブ | J41: =B47 -> 山中SPARS | M41: =B49 -> 三馬パワフル | Y41: 勝 | Z41: 負 | AA41: 分 | AB41: 点 | AC41: 内野 | AD41: 順位決定点 | AE41: 相手内野 | AF41: 順位 | AG41: kaku
A43: =CONCATENATE(A41,1) -> D1 | B43: =VLOOKUP(A43,チーム表!C:D,2,FALSE) -> 大門ドッジボールクラブ | G43: =CONCATENATE($A43,H40) -> D1D2 | H43: =IF(G44="","",IF(G44=I44,"△",IF(G44>I44,"〇","×"))) -> 〇 | I43: =CONCATENATE(H40,$A43) -> D2D1 | J43: =CONCATENATE($A43,K40) -> D1D3 | K43: =IF(J44="","",IF(J44=L44,"△",IF(J44>L44,"〇","×"))) -> × | L43: =CONCATENATE(K40,$A43) -> D3D1 | M43: =CONCATENATE($A43,N40) -> D1D4 | N43: =IF(M44="","",IF(M44=O44,"△",IF(M44>O44,"〇","×"))) -> 〇 | O43: =CONCATENATE(N40,$A43) -> D4D1 | Y43: =COUNTIF($E43:$N43,"〇") -> 2 | Z43: =COUNTIF($E43:$N43,"×") -> 1 | AA43: =COUNTIF($E43:$N43,"△") -> 0 | AB43: =Y43*2+AA43 -> 4 | AC43: =IF(G44="","",D44+G44+M44+J44) -> 23 | AD43: =IF(AC43="","",AB43*100+AC43) -> 423 | AE43: =IF(AC43="","",F44+I44+L44+O44) -> 19 | AF43: =IF(AD43="","",RANK(AD43,AD43:AD50,0)) -> 2 | AH43: =CONCATENATE(A41,AF43) -> D2 | AI43: =B43 -> 大門ドッジボールクラブ
G44: =VLOOKUP(G43,対戦表!$AG:$AH,2,0) -> 8 | H44: - | I44: =VLOOKUP(I43,対戦表!$AG:$AH,2,0) -> 6 | J44: =VLOOKUP(J43,対戦表!$AG:$AH,2,0) -> 6 | K44: - | L44: =VLOOKUP(L43,対戦表!$AG:$AH,2,0) -> 8 | M44: =VLOOKUP(M43,対戦表!$AG:$AH,2,0) -> 9 | N44: - | O44: =VLOOKUP(O43,対戦表!$AG:$AH,2,0) -> 5
A45: =CONCATENATE(A41,2) -> D2 | B45: =VLOOKUP(A45,チーム表!C:D,2,FALSE) -> 鳳至ドッジボールクラブ | E45: =IF(D46="","",IF(D46=F46,"△",IF(D46>F46,"〇","×"))) -> × | J45: =CONCATENATE($A45,K40) -> D2D3 | K45: =IF(J46="","",IF(J46=L46,"△",IF(J46>L46,"〇","×"))) -> × | L45: =CONCATENATE(K40,$A45) -> D3D2 | M45: =CONCATENATE($A45,N40) -> D2D4 | N45: =IF(M46="","",IF(M46=O46,"△",IF(M46>O46,"〇","×"))) -> 〇 | O45: =CONCATENATE(N40,$A45) -> D4D2 | Y45: =COUNTIF($E45:$N45,"〇") -> 1 | Z45: =COUNTIF($E45:$N45,"×") -> 2 | AA45: =COUNTIF($E45:$N45,"△") -> 0 | AB45: =Y45*2+AA45 -> 2 | AC45: =IF(D46="","",D46+G46+M46+J46) -> 24 | AD45: =IF(AC45="","",AB45*100+AC45) -> 224 | AE45: =IF(AC45="","",F46+I46+L46+O46) -> 20 | AF45: =IF(AD45="","",RANK(AD45,AD43:AD50,0)) -> 3 | AH45: =CONCATENATE(A41,AF45) -> D3 | AI45: =B45 -> 鳳至ドッジボールクラブ
D46: =IF(I44="","",I44) -> 6 | E46: - | F46: =IF(G44="","",G44) -> 8 | J46: =VLOOKUP(J45,対戦表!$AG:$AH,2,0) -> 8 | K46: - | L46: =VLOOKUP(L45,対戦表!$AG:$AH,2,0) -> 9 | M46: =VLOOKUP(M45,対戦表!$AG:$AH,2,0) -> 10 | N46: - | O46: =VLOOKUP(O45,対戦表!$AG:$AH,2,0) -> 3
A47: =CONCATENATE(A41,3) -> D3 | B47: =VLOOKUP(A47,チーム表!C:D,2,FALSE) -> 山中SPARS | E47: =IF(D48="","",IF(D48=F48,"△",IF(D48>F48,"〇","×"))) -> 〇 | H47: =IF(G48="","",IF(G48=I48,"△",IF(G48>I48,"〇","×"))) -> 〇 | M47: =CONCATENATE($A47,N40) -> D3D4 | N47: =IF(M48="","",IF(M48=O48,"△",IF(M48>O48,"〇","×"))) -> 〇 | O47: =CONCATENATE(N40,$A47) -> D4D3 | Y47: =COUNTIF($E47:$N47,"〇") -> 3 | Z47: =COUNTIF($E47:$N47,"×") -> 0 | AA47: =COUNTIF($E47:$N47,"△") -> 0 | AB47: =Y47*2+AA47 -> 6 | AC47: =IF(G48="","",D48+G48+M48+J48) -> 26 | AD47: =IF(AC47="","",AB47*100+AC47) -> 626 | AE47: =IF(AC47="","",F48+I48+L48+O48) -> 15 | AF47: =IF(AD47="","",RANK(AD47,AD43:AD50,0)) -> 1 | AH47: =CONCATENATE(A41,AF47) -> D1 | AI47: =B47 -> 山中SPARS
D48: =IF(L44="","",L44) -> 8 | E48: - | F48: =IF(J44="","",J44) -> 6 | G48: =IF(L46="","",L46) -> 9 | H48: - | I48: =IF(J46="","",J46) -> 8 | M48: =VLOOKUP(M47,対戦表!$AG:$AH,2,0) -> 9 | N48: - | O48: =VLOOKUP(O47,対戦表!$AG:$AH,2,0) -> 1
A49: =CONCATENATE(A41,4) -> D4 | B49: =VLOOKUP(A49,チーム表!C:D,2,FALSE) -> 三馬パワフル | E49: =IF(D50="","",IF(D50=F50,"△",IF(D50>F50,"〇","×"))) -> × | H49: =IF(G50="","",IF(G50=I50,"△",IF(G50>I50,"〇","×"))) -> × | K49: =IF(J50="","",IF(J50=L50,"△",IF(J50>L50,"〇","×"))) -> × | Y49: =COUNTIF($E49:$N49,"〇") -> 0 | Z49: =COUNTIF($E49:$N49,"×") -> 3 | AA49: =COUNTIF($E49:$N49,"△") -> 0 | AB49: =Y49*2+AA49 -> 0 | AC49: =IF(G50="","",D50+G50+M50+J50) -> 9 | AD49: =IF(AC49="","",AB49*100+AC49) -> 9 | AE49: =IF(AC49="","",F50+I50+L50+O50) -> 28 | AF49: =IF(AD49="","",RANK(AD49,AD43:AD50,0)) -> 4 | AH49: =CONCATENATE(A41,AF49) -> D4 | AI49: =B49 -> 三馬パワフル
D50: =IF(O44="","",O44) -> 5 | E50: - | F50: =IF(M44="","",M44) -> 9 | G50: =IF(O46="","",O46) -> 3 | H50: - | I50: =IF(M46="","",M46) -> 10 | J50: =IF(O48="","",O48) -> 1 | K50: - | L50: =IF(M48="","",M48) -> 9
B51: ｼﾞｭﾆｱ･ｷｯｽﾞの部
E52: =CONCATENATE(A53,"1") -> E1 | H52: =CONCATENATE(A53,"2") -> E2 | K52: =CONCATENATE(A53,"3") -> E3
A53: E | B53: チーム名 | D53: =B55 -> 鵜川フェニックスｷｯｽﾞ | G53: =B57 -> 千坂ロータスルート | J53: =B59 -> 寺井クラブJr | Y53: 勝 | Z53: 負 | AA53: 分 | AB53: 点 | AC53: 内野 | AD53: 順位決定点 | AE53: 相手内野 | AF53: 順位 | AG53: kaku
A55: =CONCATENATE(A53,1) -> E1 | B55: =VLOOKUP(A55,チーム表!C:D,2,FALSE) -> 鵜川フェニックスｷｯｽﾞ | G55: =CONCATENATE($A55,H52) -> E1E2 | H55: =IF(G56="","",IF(G56=I56,"△",IF(G56>I56,"〇","×"))) -> × | I55: =CONCATENATE(H52,$A55) -> E2E1 | J55: =CONCATENATE($A55,K52) -> E1E3 | K55: =IF(J56="","",IF(J56=L56,"△",IF(J56>L56,"〇","×"))) -> 〇 | L55: =CONCATENATE(K52,$A55) -> E3E1 | Y55: =COUNTIF($E55:$K55,"〇") -> 1 | Z55: =COUNTIF($E55:$K55,"×") -> 1 | AA55: =COUNTIF($E55:$W55,"△") -> 0 | AB55: =Y55*2+AA55 -> 2 | AC55: =IF(G56="","",D56+G56+J56) -> 8 | AD55: =IF(AC55="","",AB55*100+AC55) -> 208 | AE55: =IF(AC55="","",F56+I56+L56) -> 8 | AF55: =IF(AD55="","",RANK(AD55,AD55:AD60,0)) -> 2 | AH55: =CONCATENATE(A53,AF55) -> E2 | AI55: =B55 -> 鵜川フェニックスｷｯｽﾞ
G56: =VLOOKUP(G55,対戦表!$AG:$AH,2,0) -> 4 | H56: - | I56: =VLOOKUP(I55,対戦表!$AG:$AH,2,0) -> 5 | J56: =VLOOKUP(J55,対戦表!$AG:$AH,2,0) -> 4 | K56: - | L56: =VLOOKUP(L55,対戦表!$AG:$AH,2,0) -> 3
A57: =CONCATENATE(A53,2) -> E2 | B57: =VLOOKUP(A57,チーム表!C:D,2,FALSE) -> 千坂ロータスルート | E57: =IF(D58="","",IF(D58=F58,"△",IF(D58>F58,"〇","×"))) -> 〇 | J57: =CONCATENATE($A57,K52) -> E2E3 | K57: =IF(J58="","",IF(J58=L58,"△",IF(J58>L58,"〇","×"))) -> 〇 | L57: =CONCATENATE(K52,$A57) -> E3E2 | Y57: =COUNTIF($E57:$K57,"〇") -> 2 | Z57: =COUNTIF($E57:$K57,"×") -> 0 | AA57: =COUNTIF($E57:$W57,"△") -> 0 | AB57: =Y57*2+AA57 -> 4 | AC57: =IF(D58="","",D58+G58+J58) -> 9 | AD57: =IF(AC57="","",AB57*100+AC57) -> 409 | AE57: =IF(AC57="","",F58+I58+L58) -> 4 | AF57: =IF(AD57="","",RANK(AD57,AD55:AD60,0)) -> 1 | AH57: =CONCATENATE(A53,AF57) -> E1 | AI57: =B57 -> 千坂ロータスルート
D58: =IF(I56="","",I56) -> 5 | E58: - | F58: =IF(G56="","",G56) -> 4 | J58: =VLOOKUP(J57,対戦表!$AG:$AH,2,0) -> 4 | K58: - | L58: =VLOOKUP(L57,対戦表!$AG:$AH,2,0) -> 0
A59: =CONCATENATE(A53,3) -> E3 | B59: =VLOOKUP(A59,チーム表!C:D,2,FALSE) -> 寺井クラブJr | E59: =IF(D60="","",IF(D60=F60,"△",IF(D60>F60,"〇","×"))) -> × | H59: =IF(G60="","",IF(G60=I60,"△",IF(G60>I60,"〇","×"))) -> × | Y59: =COUNTIF($E59:$K59,"〇") -> 0 | Z59: =COUNTIF($E59:$K59,"×") -> 2 | AA59: =COUNTIF($E59:$W59,"△") -> 0 | AB59: =Y59*2+AA59 -> 0 | AC59: =IF(G60="","",D60+G60+J60) -> 3 | AD59: =IF(AC59="","",AB59*100+AC59) -> 3 | AE59: =IF(AC59="","",F60+I60+L60) -> 8 | AF59: =IF(AD59="","",RANK(AD59,AD55:AD60,0)) -> 3 | AH59: =CONCATENATE(A53,AF59) -> E3 | AI59: =B59 -> 寺井クラブJr
D60: =IF(L56="","",L56) -> 3 | E60: - | F60: =IF(J56="","",J56) -> 4 | G60: =IF(L58="","",L58) -> 0 | H60: - | I60: =IF(J58="","",J58) -> 4
E62: =CONCATENATE(A63,"1") -> F1 | H62: =CONCATENATE(A63,"2") -> F2 | K62: =CONCATENATE(A63,"3") -> F3
A63: F | B63: チーム名 | D63: =B65 -> 鳳至ジュニア | G63: =B67 -> 向本折クラブNew | J63: =B69 -> 鞍月アタッカーズジュニア | Y63: 勝 | Z63: 負 | AA63: 分 | AB63: 点 | AC63: 内野 | AD63: 順位決定点 | AE63: 相手内野 | AF63: 順位 | AG63: kaku
A65: =CONCATENATE(A63,1) -> F1 | B65: =VLOOKUP(A65,チーム表!C:D,2,FALSE) -> 鳳至ジュニア | G65: =CONCATENATE($A65,H62) -> F1F2 | H65: =IF(G66="","",IF(G66=I66,"△",IF(G66>I66,"〇","×"))) -> × | I65: =CONCATENATE(H62,$A65) -> F2F1 | J65: =CONCATENATE($A65,K62) -> F1F3 | K65: =IF(J66="","",IF(J66=L66,"△",IF(J66>L66,"〇","×"))) -> × | L65: =CONCATENATE(K62,$A65) -> F3F1 | Y65: =COUNTIF($E65:$K65,"〇") -> 0 | Z65: =COUNTIF($E65:$K65,"×") -> 2 | AA65: =COUNTIF($E65:$W65,"△") -> 0 | AB65: =Y65*2+AA65 -> 0 | AC65: =IF(G66="","",D66+G66+J66) -> 3 | AD65: =IF(AC65="","",AB65*100+AC65) -> 3 | AE65: =IF(AC65="","",F66+I66+L66) -> 10 | AF65: =IF(AD65="","",RANK(AD65,AD65:AD70,0)) -> 3 | AH65: =CONCATENATE(A63,AF65) -> F3 | AI65: =B65 -> 鳳至ジュニア
G66: =VLOOKUP(G65,対戦表!$AG:$AH,2,0) -> 0 | H66: - | I66: =VLOOKUP(I65,対戦表!$AG:$AH,2,0) -> 6 | J66: =VLOOKUP(J65,対戦表!$AG:$AH,2,0) -> 3 | K66: - | L66: =VLOOKUP(L65,対戦表!$AG:$AH,2,0) -> 4
A67: =CONCATENATE(A63,2) -> F2 | B67: =VLOOKUP(A67,チーム表!C:D,2,FALSE) -> 向本折クラブNew | E67: =IF(D68="","",IF(D68=F68,"△",IF(D68>F68,"〇","×"))) -> 〇 | J67: =CONCATENATE($A67,K62) -> F2F3 | K67: =IF(J68="","",IF(J68=L68,"△",IF(J68>L68,"〇","×"))) -> 〇 | L67: =CONCATENATE(K62,$A67) -> F3F2 | Y67: =COUNTIF($E67:$K67,"〇") -> 2 | Z67: =COUNTIF($E67:$K67,"×") -> 0 | AA67: =COUNTIF($E67:$W67,"△") -> 0 | AB67: =Y67*2+AA67 -> 4 | AC67: =IF(D68="","",D68+G68+J68) -> 13 | AD67: =IF(AC67="","",AB67*100+AC67) -> 413 | AE67: =IF(AC67="","",F68+I68+L68) -> 0 | AF67: =IF(AD67="","",RANK(AD67,AD65:AD70,0)) -> 1 | AH67: =CONCATENATE(A63,AF67) -> F1 | AI67: =B67 -> 向本折クラブNew
D68: =IF(I66="","",I66) -> 6 | E68: - | F68: =IF(G66="","",G66) -> 0 | J68: =VLOOKUP(J67,対戦表!$AG:$AH,2,0) -> 7 | K68: - | L68: =VLOOKUP(L67,対戦表!$AG:$AH,2,0) -> 0
A69: =CONCATENATE(A63,3) -> F3 | B69: =VLOOKUP(A69,チーム表!C:D,2,FALSE) -> 鞍月アタッカーズジュニア | E69: =IF(D70="","",IF(D70=F70,"△",IF(D70>F70,"〇","×"))) -> 〇 | H69: =IF(G70="","",IF(G70=I70,"△",IF(G70>I70,"〇","×"))) -> × | Y69: =COUNTIF($E69:$K69,"〇") -> 1 | Z69: =COUNTIF($E69:$K69,"×") -> 1 | AA69: =COUNTIF($E69:$W69,"△") -> 0 | AB69: =Y69*2+AA69 -> 2 | AC69: =IF(G70="","",D70+G70+J70) -> 4 | AD69: =IF(AC69="","",AB69*100+AC69) -> 204 | AE69: =IF(AC69="","",F70+I70+L70) -> 10 | AF69: =IF(AD69="","",RANK(AD69,AD65:AD70,0)) -> 2 | AH69: =CONCATENATE(A63,AF69) -> F2 | AI69: =B69 -> 鞍月アタッカーズジュニア
D70: =IF(L66="","",L66) -> 4 | E70: - | F70: =IF(J66="","",J66) -> 3 | G70: =IF(L68="","",L68) -> 0 | H70: - | I70: =IF(J68="","",J68) -> 7
E72: =CONCATENATE(A73,"1") -> G1 | H72: =CONCATENATE(A73,"2") -> G2 | K72: =CONCATENATE(A73,"3") -> G3
A73: G | B73: チーム名 | D73: =B75 -> 九十九クラブ | G73: =B77 -> 松任の大魔陣Jr | J73: =B79 -> ドッジの王子様 | Y73: 勝 | Z73: 負 | AA73: 分 | AB73: 点 | AC73: 内野 | AD73: 順位決定点 | AE73: 相手内野 | AF73: 順位 | AG73: kaku
A75: =CONCATENATE(A73,1) -> G1 | B75: =VLOOKUP(A75,チーム表!C:D,2,FALSE) -> 九十九クラブ | G75: =CONCATENATE($A75,H72) -> G1G2 | H75: =IF(G76="","",IF(G76=I76,"△",IF(G76>I76,"〇","×"))) ->  | I75: =CONCATENATE(H72,$A75) -> G2G1 | J75: =CONCATENATE($A75,K72) -> G1G3 | K75: =IF(J76="","",IF(J76=L76,"△",IF(J76>L76,"〇","×"))) ->  | L75: =CONCATENATE(K72,$A75) -> G3G1 | Y75: =COUNTIF($E75:$K75,"〇") -> 0 | Z75: =COUNTIF($E75:$K75,"×") -> 0 | AA75: =COUNTIF($E75:$W75,"△") -> 0 | AB75: =Y75*2+AA75 -> 0 | AC75: =IF(G76="","",D76+G76+J76) ->  | AD75: =IF(AC75="","",AB75*100+AC75) ->  | AE75: =IF(AC75="","",F76+I76+L76) ->  | AF75: =IF(AD75="","",RANK(AD75,AD75:AD80,0)) ->  | AH75: =CONCATENATE(A73,AF75) -> G | AI75: =B75 -> 九十九クラブ
G76: =VLOOKUP(G75,対戦表!$AG:$AH,2,0) ->  | H76: - | I76: =VLOOKUP(I75,対戦表!$AG:$AH,2,0) ->  | J76: =VLOOKUP(J75,対戦表!$AG:$AH,2,0) ->  | K76: - | L76: =VLOOKUP(L75,対戦表!$AG:$AH,2,0) -> 
A77: =CONCATENATE(A73,2) -> G2 | B77: =VLOOKUP(A77,チーム表!C:D,2,FALSE) -> 松任の大魔陣Jr | E77: =IF(D78="","",IF(D78=F78,"△",IF(D78>F78,"〇","×"))) ->  | J77: =CONCATENATE($A77,K72) -> G2G3 | K77: =IF(J78="","",IF(J78=L78,"△",IF(J78>L78,"〇","×"))) -> 〇 | L77: =CONCATENATE(K72,$A77) -> G3G2 | Y77: =COUNTIF($E77:$K77,"〇") -> 1 | Z77: =COUNTIF($E77:$K77,"×") -> 0 | AA77: =COUNTIF($E77:$W77,"△") -> 0 | AB77: =Y77*2+AA77 -> 2 | AC77: =IF(D78="","",D78+G78+J78) ->  | AD77: =IF(AC77="","",AB77*100+AC77) ->  | AE77: =IF(AC77="","",F78+I78+L78) ->  | AF77: 1 | AH77: =CONCATENATE(A73,AF77) -> G1 | AI77: =B77 -> 松任の大魔陣Jr
D78: =IF(I76="","",I76) ->  | E78: - | F78: =IF(G76="","",G76) ->  | J78: =VLOOKUP(J77,対戦表!$AG:$AH,2,0) -> 4 | K78: - | L78: =VLOOKUP(L77,対戦表!$AG:$AH,2,0) -> 2
A79: =CONCATENATE(A73,3) -> G3 | B79: =VLOOKUP(A79,チーム表!C:D,2,FALSE) -> ドッジの王子様 | E79: =IF(D80="","",IF(D80=F80,"△",IF(D80>F80,"〇","×"))) ->  | H79: =IF(G80="","",IF(G80=I80,"△",IF(G80>I80,"〇","×"))) -> × | Y79: =COUNTIF($E79:$K79,"〇") -> 0 | Z79: =COUNTIF($E79:$K79,"×") -> 1 | AA79: =COUNTIF($E79:$W79,"△") -> 0 | AB79: =Y79*2+AA79 -> 0 | AC79: =IF(G80="","",D80+G80+J80) ->  | AD79: =IF(AC79="","",AB79*100+AC79) ->  | AE79: =IF(AC79="","",F80+I80+L80) ->  | AF79: 2 | AH79: =CONCATENATE(A73,AF79) -> G2 | AI79: =B79 -> ドッジの王子様
D80: =IF(L76="","",L76) ->  | E80: - | F80: =IF(J76="","",J76) ->  | G80: =IF(L78="","",L78) -> 2 | H80: - | I80: =IF(J78="","",J78) -> 4
B81: 一般の部
E82: =CONCATENATE(A83,"1") -> H1 | H82: =CONCATENATE(A83,"2") -> H2 | K82: =CONCATENATE(A83,"3") -> H3
A83: H | B83: チーム名 | D83: =B85 -> THUNDER(ｻﾝﾀﾞｰ) | G83: =B87 -> ＳＫＩＰＰＥＲＳ | J83: =B89 -> 山中SPAーS | Y83: 勝 | Z83: 負 | AA83: 分 | AB83: 点 | AC83: 内野 | AD83: 順位決定点 | AE83: 相手内野 | AF83: 順位 | AG83: kaku
A85: =CONCATENATE(A83,1) -> H1 | B85: =VLOOKUP(A85,チーム表!C:D,2,FALSE) -> THUNDER(ｻﾝﾀﾞｰ) | G85: =CONCATENATE($A85,H82) -> H1H2 | H85: =IF(G86="","",IF(G86=I86,"△",IF(G86>I86,"〇","×"))) -> 〇 | I85: =CONCATENATE(H82,$A85) -> H2H1 | J85: =CONCATENATE($A85,K82) -> H1H3 | K85: =IF(J86="","",IF(J86=L86,"△",IF(J86>L86,"〇","×"))) -> 〇 | L85: =CONCATENATE(K82,$A85) -> H3H1 | Y85: =COUNTIF($E85:$K85,"〇") -> 2 | Z85: =COUNTIF($E85:$K85,"×") -> 0 | AA85: =COUNTIF($E85:$W85,"△") -> 0 | AB85: =Y85*2+AA85 -> 4 | AC85: =IF(G86="","",D86+G86+J86) -> 13 | AD85: =IF(AC85="","",AB85*100+AC85) -> 413 | AE85: =IF(AC85="","",F86+I86+L86) -> 6 | AF85: =IF(AD85="","",RANK(AD85,AD85:AD90,0)) -> 1 | AH85: =CONCATENATE(A83,AF85) -> H1 | AI85: =B85 -> THUNDER(ｻﾝﾀﾞｰ)
G86: =VLOOKUP(G85,対戦表!$AG:$AH,2,0) -> 7 | H86: - | I86: =VLOOKUP(I85,対戦表!$AG:$AH,2,0) -> 1 | J86: =VLOOKUP(J85,対戦表!$AG:$AH,2,0) -> 6 | K86: - | L86: =VLOOKUP(L85,対戦表!$AG:$AH,2,0) -> 5
A87: =CONCATENATE(A83,2) -> H2 | B87: =VLOOKUP(A87,チーム表!C:D,2,FALSE) -> ＳＫＩＰＰＥＲＳ | E87: =IF(D88="","",IF(D88=F88,"△",IF(D88>F88,"〇","×"))) -> × | J87: =CONCATENATE($A87,K82) -> H2H3 | K87: =IF(J88="","",IF(J88=L88,"△",IF(J88>L88,"〇","×"))) -> × | L87: =CONCATENATE(K82,$A87) -> H3H2 | Y87: =COUNTIF($E87:$K87,"〇") -> 0 | Z87: =COUNTIF($E87:$K87,"×") -> 2 | AA87: =COUNTIF($E87:$W87,"△") -> 0 | AB87: =Y87*2+AA87 -> 0 | AC87: =IF(D88="","",D88+G88+J88) -> 1 | AD87: =IF(AC87="","",AB87*100+AC87) -> 1 | AE87: =IF(AC87="","",F88+I88+L88) -> 13 | AF87: =IF(AD87="","",RANK(AD87,AD85:AD90,0)) -> 3 | AH87: =CONCATENATE(A83,AF87) -> H3 | AI87: =B87 -> ＳＫＩＰＰＥＲＳ
D88: =IF(I86="","",I86) -> 1 | E88: - | F88: =IF(G86="","",G86) -> 7 | J88: =VLOOKUP(J87,対戦表!$AG:$AH,2,0) -> 0 | K88: - | L88: =VLOOKUP(L87,対戦表!$AG:$AH,2,0) -> 6
A89: =CONCATENATE(A83,3) -> H3 | B89: =VLOOKUP(A89,チーム表!C:D,2,FALSE) -> 山中SPAーS | E89: =IF(D90="","",IF(D90=F90,"△",IF(D90>F90,"〇","×"))) -> × | H89: =IF(G90="","",IF(G90=I90,"△",IF(G90>I90,"〇","×"))) -> 〇 | Y89: =COUNTIF($E89:$K89,"〇") -> 1 | Z89: =COUNTIF($E89:$K89,"×") -> 1 | AA89: =COUNTIF($E89:$W89,"△") -> 0 | AB89: =Y89*2+AA89 -> 2 | AC89: =IF(G90="","",D90+G90+J90) -> 11 | AD89: =IF(AC89="","",AB89*100+AC89) -> 211 | AE89: =IF(AC89="","",F90+I90+L90) -> 6 | AF89: =IF(AD89="","",RANK(AD89,AD85:AD90,0)) -> 2 | AH89: =CONCATENATE(A83,AF89) -> H2 | AI89: =B89 -> 山中SPAーS
D90: =IF(L86="","",L86) -> 5 | E90: - | F90: =IF(J86="","",J86) -> 6 | G90: =IF(L88="","",L88) -> 6 | H90: - | I90: =IF(J88="","",J88) -> 0
E92: =CONCATENATE(A93,"1") -> I1 | H92: =CONCATENATE(A93,"2") -> I2 | K92: =CONCATENATE(A93,"3") -> I3
A93: I | B93: チーム名 | D93: =B95 -> ペヤング | G93: =B97 -> 鞍月アタッカーズＯＮＥ | J93: =B99 -> 新撰組 | Y93: 勝 | Z93: 負 | AA93: 分 | AB93: 点 | AC93: 内野 | AD93: 順位決定点 | AE93: 相手内野 | AF93: 順位 | AG93: kaku
A95: =CONCATENATE(A93,1) -> I1 | B95: =VLOOKUP(A95,チーム表!C:D,2,FALSE) -> ペヤング | G95: =CONCATENATE($A95,H92) -> I1I2 | H95: =IF(G96="","",IF(G96=I96,"△",IF(G96>I96,"〇","×"))) -> 〇 | I95: =CONCATENATE(H92,$A95) -> I2I1 | J95: =CONCATENATE($A95,K92) -> I1I3 | K95: =IF(J96="","",IF(J96=L96,"△",IF(J96>L96,"〇","×"))) -> × | L95: =CONCATENATE(K92,$A95) -> I3I1 | Y95: =COUNTIF($E95:$K95,"〇") -> 1 | Z95: =COUNTIF($E95:$K95,"×") -> 1 | AA95: =COUNTIF($E95:$W95,"△") -> 0 | AB95: =Y95*2+AA95 -> 2 | AC95: =IF(G96="","",D96+G96+J96) -> 11 | AD95: =IF(AC95="","",AB95*100+AC95) -> 211 | AE95: =IF(AC95="","",F96+I96+L96) -> 4 | AF95: =IF(AD95="","",RANK(AD95,AD95:AD100,0)) -> 2 | AH95: =CONCATENATE(A93,AF95) -> I2 | AI95: =B95 -> ペヤング
G96: =VLOOKUP(G95,対戦表!$AG:$AH,2,0) -> 8 | H96: - | I96: =VLOOKUP(I95,対戦表!$AG:$AH,2,0) -> 0 | J96: =VLOOKUP(J95,対戦表!$AG:$AH,2,0) -> 3 | K96: - | L96: =VLOOKUP(L95,対戦表!$AG:$AH,2,0) -> 4
A97: =CONCATENATE(A93,2) -> I2 | B97: =VLOOKUP(A97,チーム表!C:D,2,FALSE) -> 鞍月アタッカーズＯＮＥ | E97: =IF(D98="","",IF(D98=F98,"△",IF(D98>F98,"〇","×"))) -> × | J97: =CONCATENATE($A97,K92) -> I2I3 | K97: =IF(J98="","",IF(J98=L98,"△",IF(J98>L98,"〇","×"))) -> △ | L97: =CONCATENATE(K92,$A97) -> I3I2 | Y97: =COUNTIF($E97:$K97,"〇") -> 0 | Z97: =COUNTIF($E97:$K97,"×") -> 1 | AA97: =COUNTIF($E97:$W97,"△") -> 1 | AB97: =Y97*2+AA97 -> 1 | AC97: =IF(D98="","",D98+G98+J98) -> 4 | AD97: =IF(AC97="","",AB97*100+AC97) -> 104 | AE97: =IF(AC97="","",F98+I98+L98) -> 12 | AF97: =IF(AD97="","",RANK(AD97,AD95:AD100,0)) -> 3 | AH97: =CONCATENATE(A93,AF97) -> I3 | AI97: =B97 -> 鞍月アタッカーズＯＮＥ
D98: =IF(I96="","",I96) -> 0 | E98: - | F98: =IF(G96="","",G96) -> 8 | J98: =VLOOKUP(J97,対戦表!$AG:$AH,2,0) -> 4 | K98: - | L98: =VLOOKUP(L97,対戦表!$AG:$AH,2,0) -> 4
A99: =CONCATENATE(A93,3) -> I3 | B99: =VLOOKUP(A99,チーム表!C:D,2,FALSE) -> 新撰組 | E99: =IF(D100="","",IF(D100=F100,"△",IF(D100>F100,"〇","×"))) -> 〇 | H99: =IF(G100="","",IF(G100=I100,"△",IF(G100>I100,"〇","×"))) -> △ | Y99: =COUNTIF($E99:$K99,"〇") -> 1 | Z99: =COUNTIF($E99:$K99,"×") -> 0 | AA99: =COUNTIF($E99:$W99,"△") -> 1 | AB99: =Y99*2+AA99 -> 3 | AC99: =IF(G100="","",D100+G100+J100) -> 8 | AD99: =IF(AC99="","",AB99*100+AC99) -> 308 | AE99: =IF(AC99="","",F100+I100+L100) -> 7 | AF99: =IF(AD99="","",RANK(AD99,AD95:AD100,0)) -> 1 | AH99: =CONCATENATE(A93,AF99) -> I1 | AI99: =B99 -> 新撰組
D100: =IF(L96="","",L96) -> 4 | E100: - | F100: =IF(J96="","",J96) -> 3 | G100: =IF(L98="","",L98) -> 4 | H100: - | I100: =IF(J98="","",J98) -> 4
B101: パパさんの部
E102: =CONCATENATE(A103,"1") -> J1 | H102: =CONCATENATE(A103,"2") -> J2 | K102: =CONCATENATE(A103,"3") -> J3
A103: J | B103: チーム名 | D103: =B105 -> 杉っ子ダディー | G103: =B107 -> 松任の大魔陣オールディーズ | J103: =B109 -> パパ合同チーム | Y103: 勝 | Z103: 負 | AA103: 分 | AB103: 点 | AC103: 内野 | AD103: 順位決定点 | AE103: 相手内野 | AF103: 順位 | AG103: kaku
A105: =CONCATENATE(A103,1) -> J1 | B105: =VLOOKUP(A105,チーム表!C:D,2,FALSE) -> 杉っ子ダディー | G105: =CONCATENATE($A105,H102) -> J1J2 | H105: =IF(G106="","",IF(G106=I106,"△",IF(G106>I106,"〇","×"))) -> 〇 | I105: =CONCATENATE(H102,$A105) -> J2J1 | J105: =CONCATENATE($A105,K102) -> J1J3 | K105: =IF(J106="","",IF(J106=L106,"△",IF(J106>L106,"〇","×"))) -> △ | L105: =CONCATENATE(K102,$A105) -> J3J1 | Y105: =COUNTIF($E105:$K105,"〇") -> 1 | Z105: =COUNTIF($E105:$K105,"×") -> 0 | AA105: =COUNTIF($E105:$W105,"△") -> 1 | AB105: =Y105*2+AA105 -> 3 | AC105: =IF(G106="","",D106+G106+J106) -> 10 | AD105: =IF(AC105="","",AB105*100+AC105) -> 310 | AE105: =IF(AC105="","",F106+I106+L106) -> 8 | AF105: =IF(AD105="","",RANK(AD105,AD105:AD110,0)) -> 1 | AH105: =CONCATENATE(A103,AF105) -> J1 | AI105: =B105 -> 杉っ子ダディー
G106: =VLOOKUP(G105,対戦表!$AG:$AH,2,0) -> 5 | H106: - | I106: =VLOOKUP(I105,対戦表!$AG:$AH,2,0) -> 3 | J106: =VLOOKUP(J105,対戦表!$AG:$AH,2,0) -> 5 | K106: - | L106: =VLOOKUP(L105,対戦表!$AG:$AH,2,0) -> 5
A107: =CONCATENATE(A103,2) -> J2 | B107: =VLOOKUP(A107,チーム表!C:D,2,FALSE) -> 松任の大魔陣オールディーズ | E107: =IF(D108="","",IF(D108=F108,"△",IF(D108>F108,"〇","×"))) -> × | J107: =CONCATENATE($A107,K102) -> J2J3 | K107: =IF(J108="","",IF(J108=L108,"△",IF(J108>L108,"〇","×"))) -> 〇 | L107: =CONCATENATE(K102,$A107) -> J3J2 | Y107: =COUNTIF($E107:$K107,"〇") -> 1 | Z107: =COUNTIF($E107:$K107,"×") -> 1 | AA107: =COUNTIF($E107:$W107,"△") -> 0 | AB107: =Y107*2+AA107 -> 2 | AC107: =IF(D108="","",D108+G108+J108) -> 10 | AD107: =IF(AC107="","",AB107*100+AC107) -> 210 | AE107: =IF(AC107="","",F108+I108+L108) -> 8 | AF107: =IF(AD107="","",RANK(AD107,AD105:AD110,0)) -> 2 | AH107: =CONCATENATE(A103,AF107) -> J2 | AI107: =B107 -> 松任の大魔陣オールディーズ
D108: =IF(I106="","",I106) -> 3 | E108: - | F108: =IF(G106="","",G106) -> 5 | J108: =VLOOKUP(J107,対戦表!$AG:$AH,2,0) -> 7 | K108: - | L108: =VLOOKUP(L107,対戦表!$AG:$AH,2,0) -> 3
A109: =CONCATENATE(A103,3) -> J3 | B109: =VLOOKUP(A109,チーム表!C:D,2,FALSE) -> パパ合同チーム | E109: =IF(D110="","",IF(D110=F110,"△",IF(D110>F110,"〇","×"))) -> △ | H109: =IF(G110="","",IF(G110=I110,"△",IF(G110>I110,"〇","×"))) -> × | Y109: =COUNTIF($E109:$K109,"〇") -> 0 | Z109: =COUNTIF($E109:$K109,"×") -> 1 | AA109: =COUNTIF($E109:$W109,"△") -> 1 | AB109: =Y109*2+AA109 -> 1 | AC109: =IF(G110="","",D110+G110+J110) -> 8 | AD109: =IF(AC109="","",AB109*100+AC109) -> 108 | AE109: =IF(AC109="","",F110+I110+L110) -> 12 | AF109: =IF(AD109="","",RANK(AD109,AD105:AD110,0)) -> 3 | AH109: =CONCATENATE(A103,AF109) -> J3 | AI109: =B109 -> パパ合同チーム
D110: =IF(L106="","",L106) -> 5 | E110: - | F110: =IF(J106="","",J106) -> 5 | G110: =IF(L108="","",L108) -> 3 | H110: - | I110: =IF(J108="","",J108) -> 7
B111: ママさんの部
E112: =CONCATENATE(A113,"1") -> K1 | H112: =CONCATENATE(A113,"2") -> K2 | K112: =CONCATENATE(A113,"3") -> K3 | N112: =CONCATENATE(A113,"4") -> K4
A113: K | B113: チーム名 | D113: =B115 -> 松任の大魔陣Ladies | G113: =B117 -> 鞍月マミ～ズ | J113: =B119 -> 田上闘球HAPPYS | M113: =B121 -> ママ合同チーム | Y113: 勝 | Z113: 負 | AA113: 分 | AB113: 点 | AC113: 内野 | AD113: 順位決定点 | AE113: 相手内野 | AF113: 順位 | AG113: kaku
A115: =CONCATENATE(A113,1) -> K1 | B115: =VLOOKUP(A115,チーム表!C:D,2,FALSE) -> 松任の大魔陣Ladies | G115: =CONCATENATE($A115,H112) -> K1K2 | H115: =IF(G116="","",IF(G116=I116,"△",IF(G116>I116,"〇","×"))) -> × | I115: =CONCATENATE(H112,$A115) -> K2K1 | J115: =CONCATENATE($A115,K112) -> K1K3 | K115: =IF(J116="","",IF(J116=L116,"△",IF(J116>L116,"〇","×"))) -> × | L115: =CONCATENATE(K112,$A115) -> K3K1 | M115: =CONCATENATE($A115,N112) -> K1K4 | N115: =IF(M116="","",IF(M116=O116,"△",IF(M116>O116,"〇","×"))) -> 〇 | O115: =CONCATENATE(N112,$A115) -> K4K1 | Y115: =COUNTIF($E115:$N115,"〇") -> 1 | Z115: =COUNTIF($E115:$N115,"×") -> 2 | AA115: =COUNTIF($E115:$N115,"△") -> 0 | AB115: =Y115*2+AA115 -> 2 | AC115: =IF(G116="","",D116+G116+M116+J116) -> 6 | AD115: =IF(AC115="","",AB115*100+AC115) -> 206 | AE115: =IF(AC115="","",F116+I116+L116+O116) -> 14 | AF115: =IF(AD115="","",RANK(AD115,AD115:AD122,0)) -> 3 | AH115: =CONCATENATE(A113,AF115) -> K3 | AI115: =B115 -> 松任の大魔陣Ladies
G116: =VLOOKUP(G115,対戦表!$AG:$AH,2,0) -> 0 | H116: - | I116: =VLOOKUP(I115,対戦表!$AG:$AH,2,0) -> 7 | J116: =VLOOKUP(J115,対戦表!$AG:$AH,2,0) -> 3 | K116: - | L116: =VLOOKUP(L115,対戦表!$AG:$AH,2,0) -> 5 | M116: =VLOOKUP(M115,対戦表!$AG:$AH,2,0) -> 3 | N116: - | O116: =VLOOKUP(O115,対戦表!$AG:$AH,2,0) -> 2
A117: =CONCATENATE(A113,2) -> K2 | B117: =VLOOKUP(A117,チーム表!C:D,2,FALSE) -> 鞍月マミ～ズ | E117: =IF(D118="","",IF(D118=F118,"△",IF(D118>F118,"〇","×"))) -> 〇 | J117: =CONCATENATE($A117,K112) -> K2K3 | K117: =IF(J118="","",IF(J118=L118,"△",IF(J118>L118,"〇","×"))) -> 〇 | L117: =CONCATENATE(K112,$A117) -> K3K2 | M117: =CONCATENATE($A117,N112) -> K2K4 | N117: =IF(M118="","",IF(M118=O118,"△",IF(M118>O118,"〇","×"))) -> × | O117: =CONCATENATE(N112,$A117) -> K4K2 | Y117: =COUNTIF($E117:$N117,"〇") -> 2 | Z117: =COUNTIF($E117:$N117,"×") -> 1 | AA117: =COUNTIF($E117:$N117,"△") -> 0 | AB117: =Y117*2+AA117 -> 4 | AC117: =IF(D118="","",D118+G118+M118+J118) -> 13 | AD117: =IF(AC117="","",AB117*100+AC117) -> 413 | AE117: =IF(AC117="","",F118+I118+L118+O118) -> 2 | AF117: =IF(AD117="","",RANK(AD117,AD115:AD122,0)) -> 1 | AH117: =CONCATENATE(A113,AF117) -> K1 | AI117: =B117 -> 鞍月マミ～ズ
D118: =IF(I116="","",I116) -> 7 | E118: - | F118: =IF(G116="","",G116) -> 0 | J118: =VLOOKUP(J117,対戦表!$AG:$AH,2,0) -> 5 | K118: - | L118: =VLOOKUP(L117,対戦表!$AG:$AH,2,0) -> 0 | M118: =VLOOKUP(M117,対戦表!$AG:$AH,2,0) -> 1 | N118: - | O118: =VLOOKUP(O117,対戦表!$AG:$AH,2,0) -> 2
A119: =CONCATENATE(A113,3) -> K3 | B119: =VLOOKUP(A119,チーム表!C:D,2,FALSE) -> 田上闘球HAPPYS | E119: =IF(D120="","",IF(D120=F120,"△",IF(D120>F120,"〇","×"))) -> 〇 | H119: =IF(G120="","",IF(G120=I120,"△",IF(G120>I120,"〇","×"))) -> × | M119: =CONCATENATE($A119,N112) -> K3K4 | N119: =IF(M120="","",IF(M120=O120,"△",IF(M120>O120,"〇","×"))) -> × | O119: =CONCATENATE(N112,$A119) -> K4K3 | Y119: =COUNTIF($E119:$N119,"〇") -> 1 | Z119: =COUNTIF($E119:$N119,"×") -> 2 | AA119: =COUNTIF($E119:$N119,"△") -> 0 | AB119: =Y119*2+AA119 -> 2 | AC119: =IF(G120="","",D120+G120+M120+J120) -> 5 | AD119: =IF(AC119="","",AB119*100+AC119) -> 205 | AE119: =IF(AC119="","",F120+I120+L120+O120) -> 13 | AF119: =IF(AD119="","",RANK(AD119,AD115:AD122,0)) -> 4 | AH119: =CONCATENATE(A113,AF119) -> K4 | AI119: =B119 -> 田上闘球HAPPYS
D120: =IF(L116="","",L116) -> 5 | E120: - | F120: =IF(J116="","",J116) -> 3 | G120: =IF(L118="","",L118) -> 0 | H120: - | I120: =IF(J118="","",J118) -> 5 | M120: =VLOOKUP(M119,対戦表!$AG:$AH,2,0) -> 0 | N120: - | O120: =VLOOKUP(O119,対戦表!$AG:$AH,2,0) -> 5
A121: =CONCATENATE(A113,4) -> K4 | B121: =VLOOKUP(A121,チーム表!C:D,2,FALSE) -> ママ合同チーム | E121: =IF(D122="","",IF(D122=F122,"△",IF(D122>F122,"〇","×"))) -> × | H121: =IF(G122="","",IF(G122=I122,"△",IF(G122>I122,"〇","×"))) -> 〇 | K121: =IF(J122="","",IF(J122=L122,"△",IF(J122>L122,"〇","×"))) -> 〇 | Y121: =COUNTIF($E121:$N121,"〇") -> 2 | Z121: =COUNTIF($E121:$N121,"×") -> 1 | AA121: =COUNTIF($E121:$N121,"△") -> 0 | AB121: =Y121*2+AA121 -> 4 | AC121: =IF(G122="","",D122+G122+M122+J122) -> 9 | AD121: =IF(AC121="","",AB121*100+AC121) -> 409 | AE121: =IF(AC121="","",F122+I122+L122+O122) -> 4 | AF121: =IF(AD121="","",RANK(AD121,AD115:AD122,0)) -> 2 | AH121: =CONCATENATE(A113,AF121) -> K2 | AI121: =B121 -> ママ合同チーム
D122: =IF(O116="","",O116) -> 2 | E122: - | F122: =IF(M116="","",M116) -> 3 | G122: =IF(O118="","",O118) -> 2 | H122: - | I122: =IF(M118="","",M118) -> 1 | J122: =IF(O120="","",O120) -> 5 | K122: - | L122: =IF(M120="","",M120) -> 0
B123: 親子の部
E124: =CONCATENATE(A125,"1") -> L1 | H124: =CONCATENATE(A125,"2") -> L2 | K124: =CONCATENATE(A125,"3") -> L3 | N124: =CONCATENATE(A125,"4") -> L4
A125: L | B125: チーム名 | D125: =B127 -> 田上闘球親子 | G125: =B129 -> フェニックスと頑固なお父さん | J125: =B131 -> 松任の大魔陣ファミリー | M125: =B133 -> 三馬パワフルファミリー | Y125: 勝 | Z125: 負 | AA125: 分 | AB125: 点 | AC125: 内野 | AD125: 順位決定点 | AE125: 相手内野 | AF125: 順位 | AG125: kaku
A127: =CONCATENATE(A125,1) -> L1 | B127: =VLOOKUP(A127,チーム表!C:D,2,FALSE) -> 田上闘球親子 | G127: =CONCATENATE($A127,H124) -> L1L2 | H127: =IF(G128="","",IF(G128=I128,"△",IF(G128>I128,"〇","×"))) -> 〇 | I127: =CONCATENATE(H124,$A127) -> L2L1 | J127: =CONCATENATE($A127,K124) -> L1L3 | K127: =IF(J128="","",IF(J128=L128,"△",IF(J128>L128,"〇","×"))) -> × | L127: =CONCATENATE(K124,$A127) -> L3L1 | M127: =CONCATENATE($A127,N124) -> L1L4 | N127: =IF(M128="","",IF(M128=O128,"△",IF(M128>O128,"〇","×"))) -> 〇 | O127: =CONCATENATE(N124,$A127) -> L4L1 | Y127: =COUNTIF($E127:$N127,"〇") -> 2 | Z127: =COUNTIF($E127:$N127,"×") -> 1 | AA127: =COUNTIF($E127:$N127,"△") -> 0 | AB127: =Y127*2+AA127 -> 4 | AC127: =IF(G128="","",D128+G128+M128+J128) -> 10 | AD127: =IF(AC127="","",AB127*100+AC127) -> 410 | AE127: =IF(AC127="","",F128+I128+L128+O128) -> 11 | AF127: =IF(AD127="","",RANK(AD127,AD127:AD134,0)) -> 2 | AH127: =CONCATENATE(A125,AF127) -> L2 | AI127: =B127 -> 田上闘球親子
G128: =VLOOKUP(G127,対戦表!$AG:$AH,2,0) -> 4 | H128: - | I128: =VLOOKUP(I127,対戦表!$AG:$AH,2,0) -> 3 | J128: =VLOOKUP(J127,対戦表!$AG:$AH,2,0) -> 1 | K128: - | L128: =VLOOKUP(L127,対戦表!$AG:$AH,2,0) -> 5 | M128: =VLOOKUP(M127,対戦表!$AG:$AH,2,0) -> 5 | N128: - | O128: =VLOOKUP(O127,対戦表!$AG:$AH,2,0) -> 3
A129: =CONCATENATE(A125,2) -> L2 | B129: =VLOOKUP(A129,チーム表!C:D,2,FALSE) -> フェニックスと頑固なお父さん | E129: =IF(D130="","",IF(D130=F130,"△",IF(D130>F130,"〇","×"))) -> × | J129: =CONCATENATE($A129,K124) -> L2L3 | K129: =IF(J130="","",IF(J130=L130,"△",IF(J130>L130,"〇","×"))) -> △ | L129: =CONCATENATE(K124,$A129) -> L3L2 | M129: =CONCATENATE($A129,N124) -> L2L4 | N129: =IF(M130="","",IF(M130=O130,"△",IF(M130>O130,"〇","×"))) -> 〇 | O129: =CONCATENATE(N124,$A129) -> L4L2 | Y129: =COUNTIF($E129:$N129,"〇") -> 1 | Z129: =COUNTIF($E129:$N129,"×") -> 1 | AA129: =COUNTIF($E129:$N129,"△") -> 1 | AB129: =Y129*2+AA129 -> 3 | AC129: =IF(D130="","",D130+G130+M130+J130) -> 12 | AD129: =IF(AC129="","",AB129*100+AC129) -> 312 | AE129: =IF(AC129="","",F130+I130+L130+O130) -> 9 | AF129: =IF(AD129="","",RANK(AD129,AD127:AD134,0)) -> 3 | AH129: =CONCATENATE(A125,AF129) -> L3 | AI129: =B129 -> フェニックスと頑固なお父さん
D130: =IF(I128="","",I128) -> 3 | E130: - | F130: =IF(G128="","",G128) -> 4 | J130: =VLOOKUP(J129,対戦表!$AG:$AH,2,0) -> 3 | K130: - | L130: =VLOOKUP(L129,対戦表!$AG:$AH,2,0) -> 3 | M130: =VLOOKUP(M129,対戦表!$AG:$AH,2,0) -> 6 | N130: - | O130: =VLOOKUP(O129,対戦表!$AG:$AH,2,0) -> 2
A131: =CONCATENATE(A125,3) -> L3 | B131: =VLOOKUP(A131,チーム表!C:D,2,FALSE) -> 松任の大魔陣ファミリー | E131: =IF(D132="","",IF(D132=F132,"△",IF(D132>F132,"〇","×"))) -> 〇 | H131: =IF(G132="","",IF(G132=I132,"△",IF(G132>I132,"〇","×"))) -> △ | M131: =CONCATENATE($A131,N124) -> L3L4 | N131: =IF(M132="","",IF(M132=O132,"△",IF(M132>O132,"〇","×"))) -> 〇 | O131: =CONCATENATE(N124,$A131) -> L4L3 | Y131: =COUNTIF($E131:$N131,"〇") -> 2 | Z131: =COUNTIF($E131:$N131,"×") -> 0 | AA131: =COUNTIF($E131:$N131,"△") -> 1 | AB131: =Y131*2+AA131 -> 5 | AC131: =IF(G132="","",D132+G132+M132+J132) -> 15 | AD131: =IF(AC131="","",AB131*100+AC131) -> 515 | AE131: =IF(AC131="","",F132+I132+L132+O132) -> 4 | AF131: =IF(AD131="","",RANK(AD131,AD127:AD134,0)) -> 1 | AH131: =CONCATENATE(A125,AF131) -> L1 | AI131: =B131 -> 松任の大魔陣ファミリー
D132: =IF(L128="","",L128) -> 5 | E132: - | F132: =IF(J128="","",J128) -> 1 | G132: =IF(L130="","",L130) -> 3 | H132: - | I132: =IF(J130="","",J130) -> 3 | M132: =VLOOKUP(M131,対戦表!$AG:$AH,2,0) -> 7 | N132: - | O132: =VLOOKUP(O131,対戦表!$AG:$AH,2,0) -> 0
A133: =CONCATENATE(A125,4) -> L4 | B133: =VLOOKUP(A133,チーム表!C:D,2,FALSE) -> 三馬パワフルファミリー | E133: =IF(D134="","",IF(D134=F134,"△",IF(D134>F134,"〇","×"))) -> × | H133: =IF(G134="","",IF(G134=I134,"△",IF(G134>I134,"〇","×"))) -> × | K133: =IF(J134="","",IF(J134=L134,"△",IF(J134>L134,"〇","×"))) -> × | Y133: =COUNTIF($E133:$N133,"〇") -> 0 | Z133: =COUNTIF($E133:$N133,"×") -> 3 | AA133: =COUNTIF($E133:$N133,"△") -> 0 | AB133: =Y133*2+AA133 -> 0 | AC133: =IF(G134="","",D134+G134+M134+J134) -> 5 | AD133: =IF(AC133="","",AB133*100+AC133) -> 5 | AE133: =IF(AC133="","",F134+I134+L134+O134) -> 18 | AF133: =IF(AD133="","",RANK(AD133,AD127:AD134,0)) -> 4 | AH133: =CONCATENATE(A125,AF133) -> L4 | AI133: =B133 -> 三馬パワフルファミリー
D134: =IF(O128="","",O128) -> 3 | E134: - | F134: =IF(M128="","",M128) -> 5 | G134: =IF(O130="","",O130) -> 2 | H134: - | I134: =IF(M130="","",M130) -> 6 | J134: =IF(O132="","",O132) -> 0 | K134: - | L134: =IF(M132="","",M132) -> 7
E136: =CONCATENATE(A137,"1") -> M1 | H136: =CONCATENATE(A137,"2") -> M2 | K136: =CONCATENATE(A137,"3") -> M3 | N136: =CONCATENATE(A137,"4") -> M4
A137: M | B137: チーム名 | D137: =B139 -> NISHIファミリーズ | G137: =B141 -> 鳳至ファミリーズ | J137: =B143 -> テライFamily’＄ | M137: =B145 -> 鞍月ファミリーズ | Y137: 勝 | Z137: 負 | AA137: 分 | AB137: 点 | AC137: 内野 | AD137: 順位決定点 | AE137: 相手内野 | AF137: 順位 | AG137: kaku
A139: =CONCATENATE(A137,1) -> M1 | B139: =VLOOKUP(A139,チーム表!C:D,2,FALSE) -> NISHIファミリーズ | G139: =CONCATENATE($A139,H136) -> M1M2 | H139: =IF(G140="","",IF(G140=I140,"△",IF(G140>I140,"〇","×"))) -> 〇 | I139: =CONCATENATE(H136,$A139) -> M2M1 | J139: =CONCATENATE($A139,K136) -> M1M3 | K139: =IF(J140="","",IF(J140=L140,"△",IF(J140>L140,"〇","×"))) -> 〇 | L139: =CONCATENATE(K136,$A139) -> M3M1 | M139: =CONCATENATE($A139,N136) -> M1M4 | N139: =IF(M140="","",IF(M140=O140,"△",IF(M140>O140,"〇","×"))) -> × | O139: =CONCATENATE(N136,$A139) -> M4M1 | Y139: =COUNTIF($E139:$N139,"〇") -> 2 | Z139: =COUNTIF($E139:$N139,"×") -> 1 | AA139: =COUNTIF($E139:$N139,"△") -> 0 | AB139: =Y139*2+AA139 -> 4 | AC139: =IF(G140="","",D140+G140+M140+J140) -> 7 | AD139: =IF(AC139="","",AB139*100+AC139) -> 407 | AE139: =IF(AC139="","",F140+I140+L140+O140) -> 8 | AF139: =IF(AD139="","",RANK(AD139,AD139:AD146,0)) -> 2 | AH139: =CONCATENATE(A137,AF139) -> M2 | AI139: =B139 -> NISHIファミリーズ
G140: =VLOOKUP(G139,対戦表!$AG:$AH,2,0) -> 3 | H140: - | I140: =VLOOKUP(I139,対戦表!$AG:$AH,2,0) -> 0 | J140: =VLOOKUP(J139,対戦表!$AG:$AH,2,0) -> 3 | K140: - | L140: =VLOOKUP(L139,対戦表!$AG:$AH,2,0) -> 2 | M140: =VLOOKUP(M139,対戦表!$AG:$AH,2,0) -> 1 | N140: - | O140: =VLOOKUP(O139,対戦表!$AG:$AH,2,0) -> 6
A141: =CONCATENATE(A137,2) -> M2 | B141: =VLOOKUP(A141,チーム表!C:D,2,FALSE) -> 鳳至ファミリーズ | E141: =IF(D142="","",IF(D142=F142,"△",IF(D142>F142,"〇","×"))) -> × | J141: =CONCATENATE($A141,K136) -> M2M3 | K141: =IF(J142="","",IF(J142=L142,"△",IF(J142>L142,"〇","×"))) -> 〇 | L141: =CONCATENATE(K136,$A141) -> M3M2 | M141: =CONCATENATE($A141,N136) -> M2M4 | N141: =IF(M142="","",IF(M142=O142,"△",IF(M142>O142,"〇","×"))) -> × | O141: =CONCATENATE(N136,$A141) -> M4M2 | Y141: =COUNTIF($E141:$N141,"〇") -> 1 | Z141: =COUNTIF($E141:$N141,"×") -> 2 | AA141: =COUNTIF($E141:$N141,"△") -> 0 | AB141: =Y141*2+AA141 -> 2 | AC141: =IF(D142="","",D142+G142+M142+J142) -> 8 | AD141: =IF(AC141="","",AB141*100+AC141) -> 208 | AE141: =IF(AC141="","",F142+I142+L142+O142) -> 10 | AF141: =IF(AD141="","",RANK(AD141,AD139:AD146,0)) -> 3 | AH141: =CONCATENATE(A137,AF141) -> M3 | AI141: =B141 -> 鳳至ファミリーズ
D142: =IF(I140="","",I140) -> 0 | E142: - | F142: =IF(G140="","",G140) -> 3 | J142: =VLOOKUP(J141,対戦表!$AG:$AH,2,0) -> 5 | K142: - | L142: =VLOOKUP(L141,対戦表!$AG:$AH,2,0) -> 1 | M142: =VLOOKUP(M141,対戦表!$AG:$AH,2,0) -> 3 | N142: - | O142: =VLOOKUP(O141,対戦表!$AG:$AH,2,0) -> 6
A143: =CONCATENATE(A137,3) -> M3 | B143: =VLOOKUP(A143,チーム表!C:D,2,FALSE) -> テライFamily’＄ | E143: =IF(D144="","",IF(D144=F144,"△",IF(D144>F144,"〇","×"))) -> × | H143: =IF(G144="","",IF(G144=I144,"△",IF(G144>I144,"〇","×"))) -> × | M143: =CONCATENATE($A143,N136) -> M3M4 | N143: =IF(M144="","",IF(M144=O144,"△",IF(M144>O144,"〇","×"))) -> × | O143: =CONCATENATE(N136,$A143) -> M4M3 | Y143: =COUNTIF($E143:$N143,"〇") -> 0 | Z143: =COUNTIF($E143:$N143,"×") -> 3 | AA143: =COUNTIF($E143:$N143,"△") -> 0 | AB143: =Y143*2+AA143 -> 0 | AC143: =IF(G144="","",D144+G144+M144+J144) -> 6 | AD143: =IF(AC143="","",AB143*100+AC143) -> 6 | AE143: =IF(AC143="","",F144+I144+L144+O144) -> 12 | AF143: =IF(AD143="","",RANK(AD143,AD139:AD146,0)) -> 4 | AH143: =CONCATENATE(A137,AF143) -> M4 | AI143: =B143 -> テライFamily’＄
D144: =IF(L140="","",L140) -> 2 | E144: - | F144: =IF(J140="","",J140) -> 3 | G144: =IF(L142="","",L142) -> 1 | H144: - | I144: =IF(J142="","",J142) -> 5 | M144: =VLOOKUP(M143,対戦表!$AG:$AH,2,0) -> 3 | N144: - | O144: =VLOOKUP(O143,対戦表!$AG:$AH,2,0) -> 4
A145: =CONCATENATE(A137,4) -> M4 | B145: =VLOOKUP(A145,チーム表!C:D,2,FALSE) -> 鞍月ファミリーズ | E145: =IF(D146="","",IF(D146=F146,"△",IF(D146>F146,"〇","×"))) -> 〇 | H145: =IF(G146="","",IF(G146=I146,"△",IF(G146>I146,"〇","×"))) -> 〇 | K145: =IF(J146="","",IF(J146=L146,"△",IF(J146>L146,"〇","×"))) -> 〇 | Y145: =COUNTIF($E145:$N145,"〇") -> 3 | Z145: =COUNTIF($E145:$N145,"×") -> 0 | AA145: =COUNTIF($E145:$N145,"△") -> 0 | AB145: =Y145*2+AA145 -> 6 | AC145: =IF(G146="","",D146+G146+M146+J146) -> 16 | AD145: =IF(AC145="","",AB145*100+AC145) -> 616 | AE145: =IF(AC145="","",F146+I146+L146+O146) -> 7 | AF145: =IF(AD145="","",RANK(AD145,AD139:AD146,0)) -> 1 | AH145: =CONCATENATE(A137,AF145) -> M1 | AI145: =B145 -> 鞍月ファミリーズ
D146: =IF(O140="","",O140) -> 6 | E146: - | F146: =IF(M140="","",M140) -> 1 | G146: =IF(O142="","",O142) -> 6 | H146: - | I146: =IF(M142="","",M142) -> 3 | J146: =IF(O144="","",O144) -> 4 | K146: - | L146: =IF(M144="","",M144) -> 3
B147: ミドル親子の部
E148: =CONCATENATE(A149,"1") -> N1 | H148: =CONCATENATE(A149,"2") -> N2 | K148: =CONCATENATE(A149,"3") -> N3
A149: N | B149: チーム名 | D149: =B151 -> 田上闘球ミドル | G149: =B153 -> 鳳至あまさんず | J149: =B155 -> 松任の大魔陣ミドルファミリー | Y149: 勝 | Z149: 負 | AA149: 分 | AB149: 点 | AC149: 内野 | AD149: 順位決定点 | AE149: 相手内野 | AF149: 順位 | AG149: kaku
A151: =CONCATENATE(A149,1) -> N1 | B151: =VLOOKUP(A151,チーム表!C:D,2,FALSE) -> 田上闘球ミドル | G151: =CONCATENATE($A151,H148) -> N1N2 | H151: =IF(G152="","",IF(G152=I152,"△",IF(G152>I152,"〇","×"))) -> 〇 | I151: =CONCATENATE(H148,$A151) -> N2N1 | J151: =CONCATENATE($A151,K148) -> N1N3 | K151: =IF(J152="","",IF(J152=L152,"△",IF(J152>L152,"〇","×"))) -> × | L151: =CONCATENATE(K148,$A151) -> N3N1 | Y151: =COUNTIF($E151:$K151,"〇") -> 1 | Z151: =COUNTIF($E151:$K151,"×") -> 1 | AA151: =COUNTIF($E151:$W151,"△") -> 0 | AB151: =Y151*2+AA151 -> 2 | AC151: =IF(G152="","",D152+G152+J152) -> 11 | AD151: =IF(AC151="","",AB151*100+AC151) -> 211 | AE151: =IF(AC151="","",F152+I152+L152) -> 5 | AF151: =IF(AD151="","",RANK(AD151,AD151:AD156,0)) -> 2 | AH151: =CONCATENATE(A149,AF151) -> N2 | AI151: =B151 -> 田上闘球ミドル
G152: =VLOOKUP(G151,対戦表!$AG:$AH,2,0) -> 8 | H152: - | I152: =VLOOKUP(I151,対戦表!$AG:$AH,2,0) -> 0 | J152: =VLOOKUP(J151,対戦表!$AG:$AH,2,0) -> 3 | K152: - | L152: =VLOOKUP(L151,対戦表!$AG:$AH,2,0) -> 5
A153: =CONCATENATE(A149,2) -> N2 | B153: =VLOOKUP(A153,チーム表!C:D,2,FALSE) -> 鳳至あまさんず | E153: =IF(D154="","",IF(D154=F154,"△",IF(D154>F154,"〇","×"))) -> × | J153: =CONCATENATE($A153,K148) -> N2N3 | K153: =IF(J154="","",IF(J154=L154,"△",IF(J154>L154,"〇","×"))) -> × | L153: =CONCATENATE(K148,$A153) -> N3N2 | Y153: =COUNTIF($E153:$K153,"〇") -> 0 | Z153: =COUNTIF($E153:$K153,"×") -> 2 | AA153: =COUNTIF($E153:$W153,"△") -> 0 | AB153: =Y153*2+AA153 -> 0 | AC153: =IF(D154="","",D154+G154+J154) -> 2 | AD153: =IF(AC153="","",AB153*100+AC153) -> 2 | AE153: =IF(AC153="","",F154+I154+L154) -> 13 | AF153: =IF(AD153="","",RANK(AD153,AD151:AD156,0)) -> 3 | AH153: =CONCATENATE(A149,AF153) -> N3 | AI153: =B153 -> 鳳至あまさんず
D154: =IF(I152="","",I152) -> 0 | E154: - | F154: =IF(G152="","",G152) -> 8 | J154: =VLOOKUP(J153,対戦表!$AG:$AH,2,0) -> 2 | K154: - | L154: =VLOOKUP(L153,対戦表!$AG:$AH,2,0) -> 5
A155: =CONCATENATE(A149,3) -> N3 | B155: =VLOOKUP(A155,チーム表!C:D,2,FALSE) -> 松任の大魔陣ミドルファミリー | E155: =IF(D156="","",IF(D156=F156,"△",IF(D156>F156,"〇","×"))) -> 〇 | H155: =IF(G156="","",IF(G156=I156,"△",IF(G156>I156,"〇","×"))) -> 〇 | Y155: =COUNTIF($E155:$K155,"〇") -> 2 | Z155: =COUNTIF($E155:$K155,"×") -> 0 | AA155: =COUNTIF($E155:$W155,"△") -> 0 | AB155: =Y155*2+AA155 -> 4 | AC155: =IF(G156="","",D156+G156+J156) -> 10 | AD155: =IF(AC155="","",AB155*100+AC155) -> 410 | AE155: =IF(AC155="","",F156+I156+L156) -> 5 | AF155: =IF(AD155="","",RANK(AD155,AD151:AD156,0)) -> 1 | AH155: =CONCATENATE(A149,AF155) -> N1 | AI155: =B155 -> 松任の大魔陣ミドルファミリー
D156: =IF(L152="","",L152) -> 5 | E156: - | F156: =IF(J152="","",J152) -> 3 | G156: =IF(L154="","",L154) -> 5 | H156: - | I156: =IF(J154="","",J154) -> 2
E158: =CONCATENATE(A159,"1") -> O1 | H158: =CONCATENATE(A159,"2") -> O2 | K158: =CONCATENATE(A159,"3") -> O3
A159: O | B159: チーム名 | D159: =B161 -> 宇出津っ子と優しいお母さん | G159: =B163 -> 向本折ファミリー | J159: =B165 -> 鞍月ミドルファミリーズ | Y159: 勝 | Z159: 負 | AA159: 分 | AB159: 点 | AC159: 内野 | AD159: 順位決定点 | AE159: 相手内野 | AF159: 順位 | AG159: kaku
A161: =CONCATENATE(A159,1) -> O1 | B161: =VLOOKUP(A161,チーム表!C:D,2,FALSE) -> 宇出津っ子と優しいお母さん | G161: =CONCATENATE($A161,H158) -> O1O2 | H161: =IF(G162="","",IF(G162=I162,"△",IF(G162>I162,"〇","×"))) -> × | I161: =CONCATENATE(H158,$A161) -> O2O1 | J161: =CONCATENATE($A161,K158) -> O1O3 | K161: =IF(J162="","",IF(J162=L162,"△",IF(J162>L162,"〇","×"))) -> × | L161: =CONCATENATE(K158,$A161) -> O3O1 | Y161: =COUNTIF($E161:$K161,"〇") -> 0 | Z161: =COUNTIF($E161:$K161,"×") -> 2 | AA161: =COUNTIF($E161:$W161,"△") -> 0 | AB161: =Y161*2+AA161 -> 0 | AC161: =IF(G162="","",D162+G162+J162) -> 4 | AD161: =IF(AC161="","",AB161*100+AC161) -> 4 | AE161: =IF(AC161="","",F162+I162+L162) -> 12 | AF161: =IF(AD161="","",RANK(AD161,AD161:AD166,0)) -> 3 | AH161: =CONCATENATE(A159,AF161) -> O3 | AI161: =B161 -> 宇出津っ子と優しいお母さん
G162: =VLOOKUP(G161,対戦表!$AG:$AH,2,0) -> 4 | H162: - | I162: =VLOOKUP(I161,対戦表!$AG:$AH,2,0) -> 6 | J162: =VLOOKUP(J161,対戦表!$AG:$AH,2,0) -> 0 | K162: - | L162: =VLOOKUP(L161,対戦表!$AG:$AH,2,0) -> 6
A163: =CONCATENATE(A159,2) -> O2 | B163: =VLOOKUP(A163,チーム表!C:D,2,FALSE) -> 向本折ファミリー | E163: =IF(D164="","",IF(D164=F164,"△",IF(D164>F164,"〇","×"))) -> 〇 | J163: =CONCATENATE($A163,K158) -> O2O3 | K163: =IF(J164="","",IF(J164=L164,"△",IF(J164>L164,"〇","×"))) -> × | L163: =CONCATENATE(K158,$A163) -> O3O2 | Y163: =COUNTIF($E163:$K163,"〇") -> 1 | Z163: =COUNTIF($E163:$K163,"×") -> 1 | AA163: =COUNTIF($E163:$W163,"△") -> 0 | AB163: =Y163*2+AA163 -> 2 | AC163: =IF(D164="","",D164+G164+J164) -> 8 | AD163: =IF(AC163="","",AB163*100+AC163) -> 208 | AE163: =IF(AC163="","",F164+I164+L164) -> 8 | AF163: =IF(AD163="","",RANK(AD163,AD161:AD166,0)) -> 2 | AH163: =CONCATENATE(A159,AF163) -> O2 | AI163: =B163 -> 向本折ファミリー
D164: =IF(I162="","",I162) -> 6 | E164: - | F164: =IF(G162="","",G162) -> 4 | J164: =VLOOKUP(J163,対戦表!$AG:$AH,2,0) -> 2 | K164: - | L164: =VLOOKUP(L163,対戦表!$AG:$AH,2,0) -> 4
A165: =CONCATENATE(A159,3) -> O3 | B165: =VLOOKUP(A165,チーム表!C:D,2,FALSE) -> 鞍月ミドルファミリーズ | E165: =IF(D166="","",IF(D166=F166,"△",IF(D166>F166,"〇","×"))) -> 〇 | H165: =IF(G166="","",IF(G166=I166,"△",IF(G166>I166,"〇","×"))) -> 〇 | Y165: =COUNTIF($E165:$K165,"〇") -> 2 | Z165: =COUNTIF($E165:$K165,"×") -> 0 | AA165: =COUNTIF($E165:$W165,"△") -> 0 | AB165: =Y165*2+AA165 -> 4 | AC165: =IF(G166="","",D166+G166+J166) -> 10 | AD165: =IF(AC165="","",AB165*100+AC165) -> 410 | AE165: =IF(AC165="","",F166+I166+L166) -> 2 | AF165: =IF(AD165="","",RANK(AD165,AD161:AD166,0)) -> 1 | AH165: =CONCATENATE(A159,AF165) -> O1 | AI165: =B165 -> 鞍月ミドルファミリーズ
D166: =IF(L162="","",L162) -> 6 | E166: - | F166: =IF(J162="","",J162) -> 0 | G166: =IF(L164="","",L164) -> 4 | H166: - | I166: =IF(J164="","",J164) -> 2
E168: =CONCATENATE(A169,"1") -> P1 | H168: =CONCATENATE(A169,"2") -> P2 | K168: =CONCATENATE(A169,"3") -> P3
A169: P | B169: チーム名 | D169: =B171 -> 千坂ゼブラーズG | G169: =B173 -> 小木クLOVE♡楽球会 | J169: =B175 -> Ｊ－テライｆａｍｉｌｙ’＄ | Y169: 勝 | Z169: 負 | AA169: 分 | AB169: 点 | AC169: 内野 | AD169: 順位決定点 | AE169: 相手内野 | AF169: 順位 | AG169: kaku
A171: =CONCATENATE(A169,1) -> P1 | B171: =VLOOKUP(A171,チーム表!C:D,2,FALSE) -> 千坂ゼブラーズG | G171: =CONCATENATE($A171,H168) -> P1P2 | H171: =IF(G172="","",IF(G172=I172,"△",IF(G172>I172,"〇","×"))) -> × | I171: =CONCATENATE(H168,$A171) -> P2P1 | J171: =CONCATENATE($A171,K168) -> P1P3 | K171: =IF(J172="","",IF(J172=L172,"△",IF(J172>L172,"〇","×"))) -> × | L171: =CONCATENATE(K168,$A171) -> P3P1 | Y171: =COUNTIF($E171:$K171,"〇") -> 0 | Z171: =COUNTIF($E171:$K171,"×") -> 2 | AA171: =COUNTIF($E171:$W171,"△") -> 0 | AB171: =Y171*2+AA171 -> 0 | AC171: =IF(G172="","",D172+G172+J172) -> 7 | AD171: =IF(AC171="","",AB171*100+AC171) -> 7 | AE171: =IF(AC171="","",F172+I172+L172) -> 12 | AF171: =IF(AD171="","",RANK(AD171,AD171:AD176,0)) -> 3 | AH171: =CONCATENATE(A169,AF171) -> P3 | AI171: =B171 -> 千坂ゼブラーズG
G172: =VLOOKUP(G171,対戦表!$AG:$AH,2,0) -> 5 | H172: - | I172: =VLOOKUP(I171,対戦表!$AG:$AH,2,0) -> 6 | J172: =VLOOKUP(J171,対戦表!$AG:$AH,2,0) -> 2 | K172: - | L172: =VLOOKUP(L171,対戦表!$AG:$AH,2,0) -> 6
A173: =CONCATENATE(A169,2) -> P2 | B173: =VLOOKUP(A173,チーム表!C:D,2,FALSE) -> 小木クLOVE♡楽球会 | E173: =IF(D174="","",IF(D174=F174,"△",IF(D174>F174,"〇","×"))) -> 〇 | J173: =CONCATENATE($A173,K168) -> P2P3 | K173: =IF(J174="","",IF(J174=L174,"△",IF(J174>L174,"〇","×"))) -> 〇 | L173: =CONCATENATE(K168,$A173) -> P3P2 | Y173: =COUNTIF($E173:$K173,"〇") -> 2 | Z173: =COUNTIF($E173:$K173,"×") -> 0 | AA173: =COUNTIF($E173:$W173,"△") -> 0 | AB173: =Y173*2+AA173 -> 4 | AC173: =IF(D174="","",D174+G174+J174) -> 14 | AD173: =IF(AC173="","",AB173*100+AC173) -> 414 | AE173: =IF(AC173="","",F174+I174+L174) -> 5 | AF173: =IF(AD173="","",RANK(AD173,AD171:AD176,0)) -> 1 | AH173: =CONCATENATE(A169,AF173) -> P1 | AI173: =B173 -> 小木クLOVE♡楽球会
D174: =IF(I172="","",I172) -> 6 | E174: - | F174: =IF(G172="","",G172) -> 5 | J174: =VLOOKUP(J173,対戦表!$AG:$AH,2,0) -> 8 | K174: - | L174: =VLOOKUP(L173,対戦表!$AG:$AH,2,0) -> 0
A175: =CONCATENATE(A169,3) -> P3 | B175: =VLOOKUP(A175,チーム表!C:D,2,FALSE) -> Ｊ－テライｆａｍｉｌｙ’＄ | E175: =IF(D176="","",IF(D176=F176,"△",IF(D176>F176,"〇","×"))) -> 〇 | H175: =IF(G176="","",IF(G176=I176,"△",IF(G176>I176,"〇","×"))) -> × | Y175: =COUNTIF($E175:$K175,"〇") -> 1 | Z175: =COUNTIF($E175:$K175,"×") -> 1 | AA175: =COUNTIF($E175:$W175,"△") -> 0 | AB175: =Y175*2+AA175 -> 2 | AC175: =IF(G176="","",D176+G176+J176) -> 6 | AD175: =IF(AC175="","",AB175*100+AC175) -> 206 | AE175: =IF(AC175="","",F176+I176+L176) -> 10 | AF175: =IF(AD175="","",RANK(AD175,AD171:AD176,0)) -> 2 | AH175: =CONCATENATE(A169,AF175) -> P2 | AI175: =B175 -> Ｊ－テライｆａｍｉｌｙ’＄
D176: =IF(L172="","",L172) -> 6 | E176: - | F176: =IF(J172="","",J172) -> 2 | G176: =IF(L174="","",L174) -> 0 | H176: - | I176: =IF(J174="","",J174) -> 8

Sheet トーナメント表
B1: 決勝トーナメント 小学生の部
C3: 決勝戦は１セットマッチとする
B4: A1
A5: A1位 | B5: =VLOOKUP(B4,リーグ戦表!AH:AI,2,0) -> 下関福光サンダージュニア | K5: 10
L7: Ａ⑩ | P7: 10
B8: C1
A9: C１位 | B9: =VLOOKUP(B8,リーグ戦表!AH:AI,2,0) -> 千坂ドッジファイヤーズ
K10: 4 | T10: 優勝
O11: Ａ⑪ | U11: 下関福光サンダージュニア
B12: B1
A13: B１位 | B13: =VLOOKUP(B12,リーグ戦表!AH:AI,2,0) -> 杉っ子ドッジファイターズ | K13: 10
L15: Ｂ⑩
B16: D1 | P16: 8 | U16: 杉っ子ドッジファイターズ
A17: D１位 | B17: =VLOOKUP(B16,リーグ戦表!AH:AI,2,0) -> 山中SPARS
K18: 5
J20: 千坂ドッジファイヤーズ | S20: 10
V21: 3位
S22: Ｂ⑪
V23: 千坂ドッジファイヤーズ
J24: 山中SPARS
S25: 8
B28: 決勝トーナメント ジュニア・キッズの部
C30: 決勝戦は１セットマッチとする | O30: ※ | P30: １位は抽選とする
B31: F1
A32: 1位 | B32: =VLOOKUP(B31,リーグ戦表!AH:AI,2,0) -> 向本折クラブNew | P32: 1
T34: 優勝
B35: G1 | O35: B② | U35: 松任の大魔陣Jr
A36: 1位 | B36: =VLOOKUP(B35,リーグ戦表!AH:AI,2,0) -> 松任の大魔陣Jr | K36: 4
L38: B①
B39: E1 | P39: 4 | T39: 準優勝
A40: 1位 | B40: =VLOOKUP(B39,リーグ戦表!AH:AI,2,0) -> 千坂ロータスルート
K41: 2 | U41: 向本折クラブNew
T43: 3位
U45: 千坂ロータスルート
B50: 決勝トーナメント 一般の部
C52: 決勝戦は１セットマッチとする
B53: H1
A54: H１位 | B54: =VLOOKUP(B53,リーグ戦表!AH:AI,2,0) -> THUNDER(ｻﾝﾀﾞｰ) | N54: 7
B57: H3 | M57: A③ | Q57: 5
A58: H３位 | B58: =VLOOKUP(B57,リーグ戦表!AH:AI,2,0) -> ＳＫＩＰＰＥＲＳ | K58: 5
K60: A①
B61: I2 | N61: 0
A62: I２位 | B62: =VLOOKUP(B61,リーグ戦表!AH:AI,2,0) -> ペヤング
K63: 3 | T63: 優勝
P64: Ａ④ | U64: THUNDER(ｻﾝﾀﾞｰ)
B65: H2
A66: H２位 | B66: =VLOOKUP(B65,リーグ戦表!AH:AI,2,0) -> 山中SPAーS | K66: 4
K68: A② | N68: 4 | T68: 準優勝
B69: I3
A70: I３位 | B70: =VLOOKUP(B69,リーグ戦表!AH:AI,2,0) -> 鞍月アタッカーズＯＮＥ | U70: 鞍月アタッカーズＯＮＥ
K71: 5 | M71: Ｂ③
Q72: 2
B73: I1
A74: I１位 | B74: =VLOOKUP(B73,リーグ戦表!AH:AI,2,0) -> 新撰組
N75: 3
J77: ＳＫＩＰＰＥＲＳ | T77: 6
V78: 3位
S79: Ｂ④
W80: ＳＫＩＰＰＥＲＳ
J81: 新撰組
T82: 0
B85: 決勝トーナメント 親子の部
B86: L1
A87: L１位 | B87: =VLOOKUP(B86,リーグ戦表!AH:AI,2,0) -> 松任の大魔陣ファミリー | M87: 5 | N87: 6S
L89: Ａ⑤ | P89: 5 | Q89: 5S
B90: M2
A91: M２位 | B91: =VLOOKUP(B90,リーグ戦表!AH:AI,2,0) -> NISHIファミリーズ
M92: 5 | N92: 4S | S92: 優勝
O93: Ａ⑥ | T93: 松任の大魔陣ファミリー
B94: L2
A95: L２位 | B95: =VLOOKUP(B94,リーグ戦表!AH:AI,2,0) -> 田上闘球親子 | K95: 4
T96: 準優勝
L97: B⑤ | T97: 田上闘球親子
B98: M1 | P98: 5 | Q98: 4S
A99: M１位 | B99: =VLOOKUP(B98,リーグ戦表!AH:AI,2,0) -> 鞍月ファミリーズ
K100: 3 | S100: 3位 | T100: NISHIファミリーズ
S102: 3位 | T102: 鞍月ファミリーズ
B103: 決勝トーナメント ミドル親子の部 | O103: ※ | P103: １位は抽選とする
B105: O1
A106: １位 | B106: =VLOOKUP(B105,リーグ戦表!AH:AI,2,0) -> 鞍月ミドルファミリーズ | N106: 7
B109: P2 | M109: Ａ⑧ | Q109: 0
A110: P２位 | B110: =VLOOKUP(B109,リーグ戦表!AH:AI,2,0) -> Ｊ－テライｆａｍｉｌｙ’＄ | K110: 0
K112: A⑦
B113: N1 | N113: 3
A114: １位 | B114: =VLOOKUP(B113,リーグ戦表!AH:AI,2,0) -> 松任の大魔陣ミドルファミリー
K115: 7 | T115: 優勝
P116: Ｂ⑨ | U116: 向本折ファミリー
B117: N2
A118: N２位 | B118: =VLOOKUP(B117,リーグ戦表!AH:AI,2,0) -> 田上闘球ミドル | K118: 2
K120: Ｂ⑦ | N120: 7 | T120: 準優勝
B121: O2
A122: O２位 | B122: =VLOOKUP(B121,リーグ戦表!AH:AI,2,0) -> 向本折ファミリー | U122: 鞍月ミドルファミリーズ
K123: 3 | M123: Ｂ⑧
Q124: 6
B125: P1
A126: １位 | B126: =VLOOKUP(B125,リーグ戦表!AH:AI,2,0) -> 小木クLOVE♡楽球会 | R126: 3位 | S126: 松任の大魔陣ミドルファミリー
N127: 1
R128: 3位 | S128: 小木クLOVE♡楽球会
H131: 優勝 | J131: 杉っ子ダディー
B132: パパさんの部
H136: 優勝 | J136: 鞍月マミ～ズ
B137: ママさんの部

Sheet 表彰状

Sheet DATA
E4: =CONCATENATE(A5,"1") -> 1 | H4: =CONCATENATE(A5,"2") -> 2 | K4: =CONCATENATE(A5,"3") -> 3 | N4: =CONCATENATE(A5,"4") -> 4 | Q4: =CONCATENATE(A5,"5") -> 5 | T4: =CONCATENATE(A5,"6") -> 6 | W4: =CONCATENATE(A5,"7") -> 7
B5: チーム名 | D5: =B7 ->  | G5: =B9 ->  | J5: =B11 ->  | M5: =B13 ->  | P5: =B15 ->  | S5: =B17 ->  | V5: =B19 ->  | Y5: 勝 | Z5: 負 | AA5: 分 | AB5: 点 | AC5: 内野 | AD5: 順位決定点 | AE5: 相手内野 | AF5: 順位 | AG5: kaku
A7: =CONCATENATE(A5,1) -> 1 | B7: =VLOOKUP(A7,チーム表!C:D,2,FALSE) ->  | G7: =CONCATENATE($A7,H4) -> 12 | H7: =IF(G8="","",IF(G8=I8,"△",IF(G8>I8,"〇","×"))) ->  | I7: =CONCATENATE(H4,$A7) -> 21 | J7: =CONCATENATE($A7,K4) -> 13 | K7: =IF(J8="","",IF(J8=L8,"△",IF(J8>L8,"〇","×"))) ->  | L7: =CONCATENATE(K4,$A7) -> 31 | M7: =CONCATENATE($A7,N4) -> 14 | N7: =IF(M8="","",IF(M8=O8,"△",IF(M8>O8,"〇","×"))) ->  | O7: =CONCATENATE(N4,$A7) -> 41 | P7: =CONCATENATE($A7,Q4) -> 15 | Q7: =IF(P8="","",IF(P8=R8,"△",IF(P8>R8,"〇","×"))) ->  | R7: =CONCATENATE(Q4,$A7) -> 51 | S7: =CONCATENATE($A7,T4) -> 16 | T7: =IF(S8="","",IF(S8=U8,"△",IF(S8>U8,"〇","×"))) ->  | U7: =CONCATENATE(T4,$A7) -> 61 | V7: =CONCATENATE($A7,W4) -> 17 | W7: =IF(V8="","",IF(V8=X8,"△",IF(V8>X8,"〇","×"))) ->  | X7: =CONCATENATE(W4,$A7) -> 71 | Y7: =COUNTIF($E7:$W7,"〇") -> 0 | Z7: =COUNTIF($E7:$W7,"×") -> 0 | AA7: =COUNTIF($E7:$W7,"△") -> 0 | AB7: =Y7*2+AA7 -> 0 | AC7: =IF(G8="","",D8+G8+M8+P8+J8+S8+V8) ->  | AD7: =IF(AC7="","",AB7*100+AC7) ->  | AE7: =IF(AC7="","",F8+I8+L8+O8+R8+U8+X8) ->  | AF7: =IF(AD7="","",RANK(AD7,AD7:AD20,0)) ->  | AH7: =CONCATENATE(A5,AF7) ->  | AI7: =B7 ->  | AK7: =CONCATENATE(A$5,AF7) ->  | AL7: =$B7 -> 
G8: =VLOOKUP(G7,対戦表!$AG:$AH,2,0) ->  | H8: - | I8: =VLOOKUP(I7,対戦表!$AG:$AH,2,0) ->  | J8: =VLOOKUP(J7,対戦表!$AG:$AH,2,0) ->  | K8: - | L8: =VLOOKUP(L7,対戦表!$AG:$AH,2,0) ->  | M8: =VLOOKUP(M7,対戦表!$AG:$AH,2,0) ->  | N8: - | O8: =VLOOKUP(O7,対戦表!$AG:$AH,2,0) ->  | P8: =VLOOKUP(P7,対戦表!$AG:$AH,2,0) ->  | Q8: - | R8: =VLOOKUP(R7,対戦表!$AG:$AH,2,0) ->  | S8: =VLOOKUP(S7,対戦表!$AG:$AH,2,0) ->  | T8: - | U8: =VLOOKUP(U7,対戦表!$AG:$AH,2,0) ->  | V8: =VLOOKUP(V7,対戦表!$AG:$AH,2,0) ->  | W8: - | X8: =VLOOKUP(X7,対戦表!$AG:$AH,2,0) ->  | AK8: =CONCATENATE(A$5,AF8) ->  | AL8: =$B8 -> 0
A9: =CONCATENATE(A5,2) -> 2 | B9: =VLOOKUP(A9,チーム表!C:D,2,FALSE) ->  | E9: =IF(D10="","",IF(D10=F10,"△",IF(D10>F10,"〇","×"))) ->  | J9: =CONCATENATE($A9,K4) -> 23 | K9: =IF(J10="","",IF(J10=L10,"△",IF(J10>L10,"〇","×"))) ->  | L9: =CONCATENATE(K4,$A9) -> 32 | M9: =CONCATENATE($A9,N4) -> 24 | N9: =IF(M10="","",IF(M10=O10,"△",IF(M10>O10,"〇","×"))) ->  | O9: =CONCATENATE(N4,$A9) -> 42 | P9: =CONCATENATE($A9,Q4) -> 25 | Q9: =IF(P10="","",IF(P10=R10,"△",IF(P10>R10,"〇","×"))) ->  | R9: =CONCATENATE(Q4,$A9) -> 52 | S9: =CONCATENATE($A9,T4) -> 26 | T9: =IF(S10="","",IF(S10=U10,"△",IF(S10>U10,"〇","×"))) ->  | U9: =CONCATENATE(T4,$A9) -> 62 | V9: =CONCATENATE($A9,W4) -> 27 | W9: =IF(V10="","",IF(V10=X10,"△",IF(V10>X10,"〇","×"))) ->  | X9: =CONCATENATE(W4,$A9) -> 72 | Y9: =COUNTIF($E9:$W9,"〇") -> 0 | Z9: =COUNTIF($E9:$W9,"×") -> 0 | AA9: =COUNTIF($E9:$W9,"△") -> 0 | AB9: =Y9*2+AA9 -> 0 | AC9: =IF(D10="","",D10+G10+M10+P10+J10+S10+V10) ->  | AD9: =IF(AC9="","",AB9*100+AC9) ->  | AE9: =IF(AC9="","",F10+I10+L10+O10+R10+U10+X10) ->  | AF9: =IF(AD9="","",RANK(AD9,AD7:AD20,0)) ->  | AH9: =CONCATENATE(A5,AF9) ->  | AI9: =B9 -> 
D10: =IF(I8="","",I8) ->  | E10: - | F10: =IF(G8="","",G8) ->  | J10: =VLOOKUP(J9,対戦表!$AG:$AH,2,0) ->  | K10: - | L10: =VLOOKUP(L9,対戦表!$AG:$AH,2,0) ->  | M10: =VLOOKUP(M9,対戦表!$AG:$AH,2,0) ->  | N10: - | O10: =VLOOKUP(O9,対戦表!$AG:$AH,2,0) ->  | P10: =VLOOKUP(P9,対戦表!$AG:$AH,2,0) ->  | Q10: - | R10: =VLOOKUP(R9,対戦表!$AG:$AH,2,0) ->  | S10: =VLOOKUP(S9,対戦表!$AG:$AH,2,0) ->  | T10: - | U10: =VLOOKUP(U9,対戦表!$AG:$AH,2,0) ->  | V10: =VLOOKUP(V9,対戦表!$AG:$AH,2,0) ->  | W10: - | X10: =VLOOKUP(X9,対戦表!$AG:$AH,2,0) ->  | AL10: 0
A11: =CONCATENATE(A5,3) -> 3 | B11: =VLOOKUP(A11,チーム表!C:D,2,FALSE) ->  | E11: =IF(D12="","",IF(D12=F12,"△",IF(D12>F12,"〇","×"))) ->  | H11: =IF(G12="","",IF(G12=I12,"△",IF(G12>I12,"〇","×"))) ->  | M11: =CONCATENATE($A11,N4) -> 34 | N11: =IF(M12="","",IF(M12=O12,"△",IF(M12>O12,"〇","×"))) ->  | O11: =CONCATENATE(N4,$A11) -> 43 | P11: =CONCATENATE($A11,Q4) -> 35 | Q11: =IF(P12="","",IF(P12=R12,"△",IF(P12>R12,"〇","×"))) ->  | R11: =CONCATENATE(Q4,$A11) -> 53 | S11: =CONCATENATE($A11,T4) -> 36 | T11: =IF(S12="","",IF(S12=U12,"△",IF(S12>U12,"〇","×"))) ->  | U11: =CONCATENATE(T4,$A11) -> 63 | V11: =CONCATENATE($A11,W4) -> 37 | W11: =IF(V12="","",IF(V12=X12,"△",IF(V12>X12,"〇","×"))) ->  | X11: =CONCATENATE(W4,$A11) -> 73 | Y11: =COUNTIF($E11:$W11,"〇") -> 0 | Z11: =COUNTIF($E11:$W11,"×") -> 0 | AA11: =COUNTIF($E11:$W11,"△") -> 0 | AB11: =Y11*2+AA11 -> 0 | AC11: =IF(D12="","",D12+G12+M12+P12+J12+S12+V12) ->  | AD11: =IF(AC11="","",AB11*100+AC11) ->  | AE11: =IF(AC11="","",F12+I12+L12+O12+R12+U12+X12) ->  | AF11: =IF(AD11="","",RANK(AD11,AD7:AD20,0)) ->  | AH11: =CONCATENATE(A5,AF11) ->  | AI11: =B11 -> 
D12: =IF(L8="","",L8) ->  | E12: - | F12: =IF(J8="","",J8) ->  | G12: =IF(L10="","",L10) ->  | H12: - | I12: =IF(J10="","",J10) ->  | M12: =VLOOKUP(M11,対戦表!$AG:$AH,2,0) ->  | N12: - | O12: =VLOOKUP(O11,対戦表!$AG:$AH,2,0) ->  | P12: =VLOOKUP(P11,対戦表!$AG:$AH,2,0) ->  | Q12: - | R12: =VLOOKUP(R11,対戦表!$AG:$AH,2,0) ->  | S12: =VLOOKUP(S11,対戦表!$AG:$AH,2,0) ->  | T12: - | U12: =VLOOKUP(U11,対戦表!$AG:$AH,2,0) ->  | V12: =VLOOKUP(V11,対戦表!$AG:$AH,2,0) ->  | W12: - | X12: =VLOOKUP(X11,対戦表!$AG:$AH,2,0) ->  | AL12: 0
A13: =CONCATENATE(A5,4) -> 4 | B13: =VLOOKUP(A13,チーム表!C:D,2,FALSE) ->  | E13: =IF(D14="","",IF(D14=F14,"△",IF(D14>F14,"〇","×"))) ->  | H13: =IF(G14="","",IF(G14=I14,"△",IF(G14>I14,"〇","×"))) ->  | K13: =IF(J14="","",IF(J14=L14,"△",IF(J14>L14,"〇","×"))) ->  | P13: =CONCATENATE($A13,Q4) -> 45 | Q13: =IF(P14="","",IF(P14=R14,"△",IF(P14>R14,"〇","×"))) ->  | R13: =CONCATENATE(Q4,$A13) -> 54 | S13: =CONCATENATE($A13,T4) -> 46 | T13: =IF(S14="","",IF(S14=U14,"△",IF(S14>U14,"〇","×"))) ->  | U13: =CONCATENATE(T4,$A13) -> 64 | V13: =CONCATENATE($A13,W4) -> 47 | W13: =IF(V14="","",IF(V14=X14,"△",IF(V14>X14,"〇","×"))) ->  | X13: =CONCATENATE(W4,$A13) -> 74 | Z13: =COUNTIF($E13:$W13,"×") -> 0 | AA13: =COUNTIF($E13:$W13,"△") -> 0 | AB13: =Y13*2+AA13 -> 0 | AC13: =IF(D14="","",D14+G14+M14+P14+J14+S14+V14) ->  | AD13: =IF(AC13="","",AB13*100+AC13) ->  | AE13: =IF(AC13="","",F14+I14+L14+O14+R14+U14+X14) ->  | AF13: =IF(AD13="","",RANK(AD13,AD7:AD20,0)) ->  | AH13: =CONCATENATE(A5,AF13) ->  | AI13: =B13 -> 
D14: =IF(O8="","",O8) ->  | E14: - | F14: =IF(M8="","",M8) ->  | G14: =IF(O10="","",O10) ->  | H14: - | I14: =IF(M10="","",M10) ->  | J14: =IF(O12="","",O12) ->  | K14: - | L14: =IF(M12="","",M12) ->  | P14: =VLOOKUP(P13,対戦表!$AG:$AH,2,0) ->  | Q14: - | R14: =VLOOKUP(R13,対戦表!$AG:$AH,2,0) ->  | S14: =VLOOKUP(S13,対戦表!$AG:$AH,2,0) ->  | T14: - | U14: =VLOOKUP(U13,対戦表!$AG:$AH,2,0) ->  | V14: =VLOOKUP(V13,対戦表!$AG:$AH,2,0) ->  | W14: - | X14: =VLOOKUP(X13,対戦表!$AG:$AH,2,0) ->  | AL14: 0
A15: =CONCATENATE(A5,5) -> 5 | B15: =VLOOKUP(A15,チーム表!C:D,2,FALSE) ->  | E15: =IF(D16="","",IF(D16=F16,"△",IF(D16>F16,"〇","×"))) ->  | H15: =IF(G16="","",IF(G16=I16,"△",IF(G16>I16,"〇","×"))) ->  | K15: =IF(J16="","",IF(J16=L16,"△",IF(J16>L16,"〇","×"))) ->  | N15: =IF(M16="","",IF(M16=O16,"△",IF(M16>O16,"〇","×"))) ->  | P15: =IF(P16="","",IF(P16=R16,"△",IF(P16>R16,"〇","×"))) ->  | S15: =CONCATENATE($A15,T4) -> 56 | T15: =IF(S16="","",IF(S16=U16,"△",IF(S16>U16,"〇","×"))) ->  | U15: =CONCATENATE(T4,$A15) -> 65 | V15: =CONCATENATE($A15,W4) -> 57 | W15: =IF(V16="","",IF(V16=X16,"△",IF(V16>X16,"〇","×"))) ->  | X15: =CONCATENATE(W4,$A15) -> 75 | Y15: =COUNTIF($E15:$W15,"〇") -> 0 | Z15: =COUNTIF($E15:$W15,"×") -> 0 | AA15: =COUNTIF($E15:$W15,"△") -> 0 | AB15: =Y15*2+AA15 -> 0 | AC15: =IF(D16="","",D16+G16+M16+P16+J16+S16+V16) ->  | AD15: =IF(AC15="","",AB15*100+AC15) ->  | AE15: =IF(AC15="","",F16+I16+L16+O16+R16+U16+X16) ->  | AF15: =IF(AD15="","",RANK(AD15,AD7:AD20,0)) ->  | AH15: =CONCATENATE(A5,AF15) ->  | AI15: =B15 -> 
D16: =IF($R8="","",$R8) ->  | E16: - | F16: =IF($P8="","",$P8) ->  | G16: =IF($R10="","",$R10) ->  | H16: - | I16: =IF($P10="","",$P10) ->  | J16: =IF($R12="","",$R12) ->  | K16: - | L16: =IF($P12="","",$P12) ->  | M16: =IF($R14="","",$R14) ->  | N16: - | O16: =IF($P14="","",$P14) ->  | S16: =VLOOKUP(S15,対戦表!$AG:$AH,2,0) ->  | T16: - | U16: =VLOOKUP(U15,対戦表!$AG:$AH,2,0) ->  | V16: =VLOOKUP(V15,対戦表!$AG:$AH,2,0) ->  | W16: - | X16: =VLOOKUP(X15,対戦表!$AG:$AH,2,0) ->  | AL16: 0
A17: =CONCATENATE(A5,6) -> 6 | B17: =VLOOKUP(A17,チーム表!C:D,2,FALSE) ->  | E17: =IF(D18="","",IF(D18=F18,"△",IF(D18>F18,"〇","×"))) ->  | H17: =IF(G18="","",IF(G18=I18,"△",IF(G18>I18,"〇","×"))) ->  | K17: =IF(J18="","",IF(J18=L18,"△",IF(J18>L18,"〇","×"))) ->  | N17: =IF(M18="","",IF(M18=O18,"△",IF(M18>O18,"〇","×"))) ->  | Q17: =IF(P18="","",IF(P18=R18,"△",IF(P18>R18,"〇","×"))) ->  | V17: =CONCATENATE($A17,W4) -> 67 | W17: =IF(V18="","",IF(V18=X18,"△",IF(V18>X18,"〇","×"))) ->  | X17: =CONCATENATE(W4,$A17) -> 76 | Y17: =COUNTIF($E17:$W17,"〇") -> 0 | Z17: =COUNTIF($E17:$W17,"×") -> 0 | AA17: =COUNTIF($E17:$W17,"△") -> 0 | AB17: =Y17*2+AA17 -> 0 | AC17: =IF(D18="","",D18+G18+M18+P18+J18+S18+V18) ->  | AD17: =IF(AC17="","",AB17*100+AC17) ->  | AE17: =IF(AC17="","",F18+I18+L18+O18+R18+U18+X18) ->  | AF17: =IF(AD17="","",RANK(AD17,AD7:AD20,0)) ->  | AH17: =CONCATENATE(A5,AF17) ->  | AI17: =B17 -> 
D18: =IF($U8="","",$U8) ->  | E18: - | F18: =IF($S8="","",$S8) ->  | G18: =IF($U10="","",$U10) ->  | H18: - | I18: =IF($S10="","",$S10) ->  | J18: =IF($U12="","",$U12) ->  | K18: - | L18: =IF($S12="","",$S12) ->  | M18: =IF($U14="","",$U14) ->  | N18: - | O18: =IF($S14="","",$S14) ->  | P18: =IF($U16="","",$U16) ->  | Q18: - | R18: =IF($S16="","",$S16) ->  | V18: =VLOOKUP(V17,対戦表!$AG:$AH,2,0) ->  | W18: - | X18: =VLOOKUP(X17,対戦表!$AG:$AH,2,0) ->  | AL18: 0
A19: =CONCATENATE(A5,7) -> 7 | B19: =VLOOKUP(A19,チーム表!C:D,2,FALSE) ->  | E19: =IF(D20="","",IF(D20=F20,"△",IF(D20>F20,"〇","×"))) ->  | H19: =IF(G20="","",IF(G20=I20,"△",IF(G20>I20,"〇","×"))) ->  | K19: =IF(J20="","",IF(J20=L20,"△",IF(J20>L20,"〇","×"))) ->  | N19: =IF(M20="","",IF(M20=O20,"△",IF(M20>O20,"〇","×"))) ->  | Q19: =IF(P20="","",IF(P20=R20,"△",IF(P20>R20,"〇","×"))) ->  | T19: =IF(S20="","",IF(S20=U20,"△",IF(S20>U20,"〇","×"))) ->  | Y19: =COUNTIF($E19:$W19,"〇") -> 0 | Z19: =COUNTIF($E19:$W19,"×") -> 0 | AA19: =COUNTIF($E19:$W19,"△") -> 0 | AB19: =Y19*2+AA19 -> 0 | AC19: =IF(D20="","",D20+G20+M20+P20+J20+S20+V20) ->  | AD19: =IF(AC19="","",AB19*100+AC19) ->  | AE19: =IF(AC19="","",F20+I20+L20+O20+R20+U20+X20) ->  | AF19: =IF(AD19="","",RANK(AD19,AD7:AD20,0)) ->  | AH19: =CONCATENATE(A5,AF19) ->  | AI19: =B19 -> 
D20: =IF($X8="","",$X8) ->  | E20: - | F20: =IF($V8="","",$V8) ->  | G20: =IF($X10="","",$X10) ->  | H20: - | I20: =IF($V10="","",$V10) ->  | J20: =IF($X12="","",$X12) ->  | K20: - | L20: =IF($V12="","",$V12) ->  | M20: =IF($X14="","",$X14) ->  | N20: - | O20: =IF($V14="","",$V14) ->  | P20: =IF($X16="","",$X16) ->  | Q20: - | R20: =IF($V16="","",$V16) ->  | S20: =IF($X18="","",$X18) ->  | T20: - | U20: =IF($V18="","",$V18) ->  | AL20: 0
E23: =CONCATENATE(A24,"1") -> 1 | H23: =CONCATENATE(A24,"2") -> 2 | K23: =CONCATENATE(A24,"3") -> 3 | N23: =CONCATENATE(A24,"4") -> 4 | Q23: =CONCATENATE(A24,"5") -> 5 | T23: =CONCATENATE(A24,"6") -> 6
B24: チーム名 | D24: =B26 ->  | G24: =B28 ->  | J24: =B30 ->  | M24: =B32 ->  | P24: =B34 ->  | S24: =B36 ->  | Y24: 勝 | Z24: 負 | AA24: 分 | AB24: 点 | AC24: 内野 | AD24: 順位決定点 | AE24: 相手内野 | AF24: 順位 | AG24: kaku
A26: =CONCATENATE(A24,1) -> 1 | B26: =VLOOKUP(A26,チーム表!C:D,2,FALSE) ->  | G26: =CONCATENATE($A26,H23) -> 12 | H26: =IF(G27="","",IF(G27=I27,"△",IF(G27>I27,"〇","×"))) ->  | I26: =CONCATENATE(H23,$A26) -> 21 | J26: =CONCATENATE($A26,K23) -> 13 | K26: =IF(J27="","",IF(J27=L27,"△",IF(J27>L27,"〇","×"))) ->  | L26: =CONCATENATE(K23,$A26) -> 31 | M26: =CONCATENATE($A26,N23) -> 14 | N26: =IF(M27="","",IF(M27=O27,"△",IF(M27>O27,"〇","×"))) ->  | O26: =CONCATENATE(N23,$A26) -> 41 | P26: =CONCATENATE($A26,Q23) -> 15 | Q26: =IF(P27="","",IF(P27=R27,"△",IF(P27>R27,"〇","×"))) ->  | R26: =CONCATENATE(Q23,$A26) -> 51 | S26: =CONCATENATE($A26,T23) -> 16 | T26: =IF(S27="","",IF(S27=U27,"△",IF(S27>U27,"〇","×"))) ->  | U26: =CONCATENATE(T23,$A26) -> 61 | Y26: =COUNTIF($E26:$T26,"〇") -> 0 | Z26: =COUNTIF($E26:$T26,"×") -> 0 | AA26: =COUNTIF($E26:$T26,"△") -> 0 | AB26: =Y26*2+AA26 -> 0 | AC26: =IF(G27="","",D27+G27+M27+P27+J27+S27) ->  | AD26: =IF(AC26="","",AB26*100+AC26) ->  | AE26: =IF(AC26="","",F27+I27+L27+O27+R27+U27) ->  | AF26: =IF(AD26="","",RANK(AD26,AD26:AD37,0)) ->  | AH26: =CONCATENATE(A24,AF26) ->  | AI26: =B26 ->  | AK26: =CONCATENATE(A$5,AF26) ->  | AL26: =$B26 -> 
G27: =VLOOKUP(G26,対戦表!$AG:$AH,2,0) ->  | H27: - | I27: =VLOOKUP(I26,対戦表!$AG:$AH,2,0) ->  | J27: =VLOOKUP(J26,対戦表!$AG:$AH,2,0) ->  | K27: - | L27: =VLOOKUP(L26,対戦表!$AG:$AH,2,0) ->  | M27: =VLOOKUP(M26,対戦表!$AG:$AH,2,0) ->  | N27: - | O27: =VLOOKUP(O26,対戦表!$AG:$AH,2,0) ->  | P27: =VLOOKUP(P26,対戦表!$AG:$AH,2,0) ->  | Q27: - | R27: =VLOOKUP(R26,対戦表!$AG:$AH,2,0) ->  | S27: =VLOOKUP(S26,対戦表!$AG:$AH,2,0) ->  | T27: - | U27: =VLOOKUP(U26,対戦表!$AG:$AH,2,0) ->  | AK27: =CONCATENATE(A$5,AF27) ->  | AL27: =$B27 -> 0
A28: =CONCATENATE(A24,2) -> 2 | B28: =VLOOKUP(A28,チーム表!C:D,2,FALSE) ->  | E28: =IF(D29="","",IF(D29=F29,"△",IF(D29>F29,"〇","×"))) ->  | J28: =CONCATENATE($A28,K23) -> 23 | K28: =IF(J29="","",IF(J29=L29,"△",IF(J29>L29,"〇","×"))) ->  | L28: =CONCATENATE(K23,$A28) -> 32 | M28: =CONCATENATE($A28,N23) -> 24 | N28: =IF(M29="","",IF(M29=O29,"△",IF(M29>O29,"〇","×"))) ->  | O28: =CONCATENATE(N23,$A28) -> 42 | P28: =CONCATENATE($A28,Q23) -> 25 | Q28: =IF(P29="","",IF(P29=R29,"△",IF(P29>R29,"〇","×"))) ->  | R28: =CONCATENATE(Q23,$A28) -> 52 | S28: =CONCATENATE($A28,T23) -> 26 | T28: =IF(S29="","",IF(S29=U29,"△",IF(S29>U29,"〇","×"))) ->  | U28: =CONCATENATE(T23,$A28) -> 62 | Y28: =COUNTIF($E28:$T28,"〇") -> 0 | Z28: =COUNTIF($E28:$T28,"×") -> 0 | AA28: =COUNTIF($E28:$T28,"△") -> 0 | AB28: =Y28*2+AA28 -> 0 | AC28: =IF(D29="","",D29+G29+M29+P29+J29+S29) ->  | AD28: =IF(AC28="","",AB28*100+AC28) ->  | AE28: =IF(AC28="","",F29+I29+L29+O29+R29+U29) ->  | AF28: =IF(AD28="","",RANK(AD28,AD26:AD37,0)) ->  | AH28: =CONCATENATE(A24,AF28) ->  | AI28: =B28 -> 
D29: =IF(I27="","",I27) ->  | E29: - | F29: =IF(G27="","",G27) ->  | J29: =VLOOKUP(J28,対戦表!$AG:$AH,2,0) ->  | K29: - | L29: =VLOOKUP(L28,対戦表!$AG:$AH,2,0) ->  | M29: =VLOOKUP(M28,対戦表!$AG:$AH,2,0) ->  | N29: - | O29: =VLOOKUP(O28,対戦表!$AG:$AH,2,0) ->  | P29: =VLOOKUP(P28,対戦表!$AG:$AH,2,0) ->  | Q29: - | R29: =VLOOKUP(R28,対戦表!$AG:$AH,2,0) ->  | S29: =VLOOKUP(S28,対戦表!$AG:$AH,2,0) ->  | T29: - | U29: =VLOOKUP(U28,対戦表!$AG:$AH,2,0) ->  | AL29: 0
A30: =CONCATENATE(A24,3) -> 3 | B30: =VLOOKUP(A30,チーム表!C:D,2,FALSE) ->  | E30: =IF(D31="","",IF(D31=F31,"△",IF(D31>F31,"〇","×"))) ->  | H30: =IF(G31="","",IF(G31=I31,"△",IF(G31>I31,"〇","×"))) ->  | M30: =CONCATENATE($A30,N23) -> 34 | N30: =IF(M31="","",IF(M31=O31,"△",IF(M31>O31,"〇","×"))) ->  | O30: =CONCATENATE(N23,$A30) -> 43 | P30: =CONCATENATE($A30,Q23) -> 35 | Q30: =IF(P31="","",IF(P31=R31,"△",IF(P31>R31,"〇","×"))) ->  | R30: =CONCATENATE(Q23,$A30) -> 53 | S30: =CONCATENATE($A30,T23) -> 36 | T30: =IF(S31="","",IF(S31=U31,"△",IF(S31>U31,"〇","×"))) ->  | U30: =CONCATENATE(T23,$A30) -> 63 | Y30: =COUNTIF($E30:$T30,"〇") -> 0 | Z30: =COUNTIF($E30:$T30,"×") -> 0 | AA30: =COUNTIF($E30:$T30,"△") -> 0 | AB30: =Y30*2+AA30 -> 0 | AC30: =IF(G31="","",D31+G31+M31+P31+J31+S31) ->  | AD30: =IF(AC30="","",AB30*100+AC30) ->  | AE30: =IF(AC30="","",F31+I31+L31+O31+R31+U31) ->  | AF30: =IF(AD30="","",RANK(AD30,AD26:AD37,0)) ->  | AH30: =CONCATENATE(A24,AF30) ->  | AI30: =B30 -> 
D31: =IF(L27="","",L27) ->  | E31: - | F31: =IF(J27="","",J27) ->  | G31: =IF(L29="","",L29) ->  | H31: - | I31: =IF(J29="","",J29) ->  | M31: =VLOOKUP(M30,対戦表!$AG:$AH,2,0) ->  | N31: - | O31: =VLOOKUP(O30,対戦表!$AG:$AH,2,0) ->  | P31: =VLOOKUP(P30,対戦表!$AG:$AH,2,0) ->  | Q31: - | R31: =VLOOKUP(R30,対戦表!$AG:$AH,2,0) ->  | S31: =VLOOKUP(S30,対戦表!$AG:$AH,2,0) ->  | T31: - | U31: =VLOOKUP(U30,対戦表!$AG:$AH,2,0) ->  | AL31: 0
A32: =CONCATENATE(A24,4) -> 4 | B32: =VLOOKUP(A32,チーム表!C:D,2,FALSE) ->  | E32: =IF(D33="","",IF(D33=F33,"△",IF(D33>F33,"〇","×"))) ->  | H32: =IF(G33="","",IF(G33=I33,"△",IF(G33>I33,"〇","×"))) ->  | K32: =IF(J33="","",IF(J33=L33,"△",IF(J33>L33,"〇","×"))) ->  | P32: =CONCATENATE($A32,Q23) -> 45 | Q32: =IF(P33="","",IF(P33=R33,"△",IF(P33>R33,"〇","×"))) ->  | R32: =CONCATENATE(Q23,$A32) -> 54 | S32: =CONCATENATE($A32,T23) -> 46 | T32: =IF(S33="","",IF(S33=U33,"△",IF(S33>U33,"〇","×"))) ->  | U32: =CONCATENATE(T23,$A32) -> 64 | Y32: =COUNTIF($E32:$T32,"〇") -> 0 | Z32: =COUNTIF($E32:$T32,"×") -> 0 | AA32: =COUNTIF($E32:$T32,"△") -> 0 | AB32: =Y32*2+AA32 -> 0 | AC32: =IF(G33="","",D33+G33+M33+P33+J33+S33) ->  | AD32: =IF(AC32="","",AB32*100+AC32) ->  | AE32: =IF(AC32="","",F33+I33+L33+O33+R33+U33) ->  | AF32: =IF(AD32="","",RANK(AD32,AD26:AD37,0)) ->  | AH32: =CONCATENATE(A24,AF32) ->  | AI32: =B32 -> 
D33: =IF(O27="","",O27) ->  | E33: - | F33: =IF(M27="","",M27) ->  | G33: =IF(O29="","",O29) ->  | H33: - | I33: =IF(M29="","",M29) ->  | J33: =IF(O31="","",O31) ->  | K33: - | L33: =IF(M31="","",M31) ->  | P33: =VLOOKUP(P32,対戦表!$AG:$AH,2,0) ->  | Q33: - | R33: =VLOOKUP(R32,対戦表!$AG:$AH,2,0) ->  | S33: =VLOOKUP(S32,対戦表!$AG:$AH,2,0) ->  | T33: - | U33: =VLOOKUP(U32,対戦表!$AG:$AH,2,0) ->  | AL33: 0
A34: =CONCATENATE(A24,5) -> 5 | B34: =VLOOKUP(A34,チーム表!C:D,2,FALSE) ->  | E34: =IF(D35="","",IF(D35=F35,"△",IF(D35>F35,"〇","×"))) ->  | H34: =IF(G35="","",IF(G35=I35,"△",IF(G35>I35,"〇","×"))) ->  | K34: =IF(J35="","",IF(J35=L35,"△",IF(J35>L35,"〇","×"))) ->  | N34: =IF(M35="","",IF(M35=O35,"△",IF(M35>O35,"〇","×"))) ->  | P34: =IF(P35="","",IF(P35=R35,"△",IF(P35>R35,"〇","×"))) ->  | S34: =CONCATENATE($A34,T23) -> 56 | T34: =IF(S35="","",IF(S35=U35,"△",IF(S35>U35,"〇","×"))) ->  | U34: =CONCATENATE(T23,$A34) -> 65 | Y34: =COUNTIF($E34:$T34,"〇") -> 0 | Z34: =COUNTIF($E34:$T34,"×") -> 0 | AA34: =COUNTIF($E34:$T34,"△") -> 0 | AB34: =Y34*2+AA34 -> 0 | AC34: =IF(G35="","",D35+G35+M35+P35+J35+S35) ->  | AD34: =IF(AC34="","",AB34*100+AC34) ->  | AE34: =IF(AC34="","",F35+I35+L35+O35+R35+U35) ->  | AF34: =IF(AD34="","",RANK(AD34,AD26:AD37,0)) ->  | AH34: =CONCATENATE(A24,AF34) ->  | AI34: =B34 -> 
D35: =IF($R27="","",$R27) ->  | E35: - | F35: =IF($P27="","",$P27) ->  | G35: =IF($R29="","",$R29) ->  | H35: - | I35: =IF($P29="","",$P29) ->  | J35: =IF($R31="","",$R31) ->  | K35: - | L35: =IF($P31="","",$P31) ->  | M35: =IF($R33="","",$R33) ->  | N35: - | O35: =IF($P33="","",$P33) ->  | S35: =VLOOKUP(S34,対戦表!$AG:$AH,2,0) ->  | T35: - | U35: =VLOOKUP(U34,対戦表!$AG:$AH,2,0) ->  | AH35: =CONCATENATE($A$5,AF35) ->  | AL35: 0
A36: =CONCATENATE(A24,6) -> 6 | B36: =VLOOKUP(A36,チーム表!C:D,2,FALSE) ->  | E36: =IF(D37="","",IF(D37=F37,"△",IF(D37>F37,"〇","×"))) ->  | H36: =IF(G37="","",IF(G37=I37,"△",IF(G37>I37,"〇","×"))) ->  | K36: =IF(J37="","",IF(J37=L37,"△",IF(J37>L37,"〇","×"))) ->  | N36: =IF(M37="","",IF(M37=O37,"△",IF(M37>O37,"〇","×"))) ->  | Q36: =IF(P37="","",IF(P37=R37,"△",IF(P37>R37,"〇","×"))) ->  | Y36: =COUNTIF($E36:$T36,"〇") -> 0 | Z36: =COUNTIF($E36:$T36,"×") -> 0 | AA36: =COUNTIF($E36:$T36,"△") -> 0 | AB36: =Y36*2+AA36 -> 0 | AC36: =IF(G37="","",D37+G37+M37+P37+J37+S37) ->  | AD36: =IF(AC36="","",AB36*100+AC36) ->  | AE36: =IF(AC36="","",F37+I37+L37+O37+R37+U37) ->  | AF36: =IF(AD36="","",RANK(AD36,AD26:AD37,0)) ->  | AH36: =CONCATENATE(A24,AF36) ->  | AI36: =B36 -> 
D37: =IF($U27="","",$U27) ->  | E37: - | F37: =IF($S27="","",$S27) ->  | G37: =IF($U29="","",$U29) ->  | H37: - | I37: =IF($S29="","",$S29) ->  | J37: =IF($U31="","",$U31) ->  | K37: - | L37: =IF($S31="","",$S31) ->  | M37: =IF($U33="","",$U33) ->  | N37: - | O37: =IF($S33="","",$S33) ->  | P37: =IF($U35="","",$U35) ->  | Q37: - | R37: =IF($S35="","",$S35) ->  | AL37: 0
E40: =CONCATENATE(#REF!,"1") ->  | H40: =CONCATENATE(#REF!,"2") ->  | K40: =CONCATENATE(#REF!,"3") ->  | N40: =CONCATENATE(#REF!,"4") ->  | Q40: =CONCATENATE(#REF!,"5") -> 

Sheet DATA1

Sheet 対戦表1
AG75: =#REF! ->  | AH75: =IF(#REF!="","",#REF!) -> 
AG76: =#REF! ->  | AH76: =IF(#REF!="","",#REF!) -> 
AG77: =#REF! ->  | AH77: =IF(#REF!="","",#REF!) -> 
AG78: =#REF! ->  | AH78: =IF(#REF!="","",#REF!) -> 
AG79: =#REF! ->  | AH79: =IF(#REF!="","",#REF!) -> 
AG80: =#REF! ->  | AH80: =IF(#REF!="","",#REF!) -> 
AG81: =#REF! ->  | AH81: =IF(#REF!="","",#REF!) -> 
AG82: =#REF! ->  | AH82: =IF(#REF!="","",#REF!) -> 
AG83: =#REF! ->  | AH83: =IF(#REF!="","",#REF!) -> 
AG84: =#REF! ->  | AH84: =IF(#REF!="","",#REF!) -> 
AG85: =#REF! ->  | AH85: =IF(#REF!="","",#REF!) -> 

Sheet 対戦表2
K1: =チーム表!$B$1 -> 第２７回 いしかわスポーツ・レクリエーション交流大会 「第１１回ふれあいドッジボール大会」
A3: 試合スケジュール
B5: 時間 | E5: 点 | F5: Ａコート | J5: 点 | K5: Ａコート | O5: 点 | P5: Ｂコート | T5: 点 | U5: Ｂコート
A6: 1 | C6: =組合表!AG4 -> A1 | D6: =CONCATENATE(C6,H6) -> A1A2 | F6: =VLOOKUP(C6,チーム表!C:D,2,FALSE) -> 下関福光サンダージュニア | G6: × | H6: =組合表!AH4 -> A2 | I6: =CONCATENATE(H6,C6) -> A2A1 | K6: =VLOOKUP(H6,チーム表!C:D,2,FALSE) -> NISHIファイヤースターズ | M6: =組合表!AI4 -> B1 | N6: =CONCATENATE(M6,R6) -> B1B2 | P6: =VLOOKUP(M6,チーム表!C:D,2,FALSE) -> 杉っ子ドッジファイターズ | Q6: × | R6: =組合表!AJ4 -> B2 | S6: =CONCATENATE(R6,M6) -> B2B1 | U6: =VLOOKUP(R6,チーム表!C:D,2,FALSE) -> 鵜川ミラクルフェニックス | AG6: =D6 -> A1A2 | AH6: =IF(E6="","",E6) -> 
A7: 2 | C7: =組合表!AG5 -> C1 | D7: =CONCATENATE(C7,H7) -> C1C2 | F7: =VLOOKUP(C7,チーム表!C:D,2,FALSE) -> 田上闘球DREAMS | G7: × | H7: =組合表!AH5 -> C2 | I7: =CONCATENATE(H7,C7) -> C2C1 | K7: =VLOOKUP(H7,チーム表!C:D,2,FALSE) -> 千坂ドッジファイヤーズ | M7: =組合表!AI5 -> D1 | N7: =CONCATENATE(M7,R7) -> D1D2 | P7: =VLOOKUP(M7,チーム表!C:D,2,FALSE) -> 大門ドッジボールクラブ | Q7: × | R7: =組合表!AJ5 -> D2 | S7: =CONCATENATE(R7,M7) -> D2D1 | U7: =VLOOKUP(R7,チーム表!C:D,2,FALSE) -> 鳳至ドッジボールクラブ | AG7: C1C2 | AH7: =IF(E7="","",E7) -> 
A8: 3 | C8: =組合表!AG6 -> K1 | D8: K1K2 | F8: =VLOOKUP(C8,チーム表!C:D,2,FALSE) -> 松任の大魔陣Ladies | G8: × | H8: =組合表!AH6 -> K2 | I8: K2K1 | K8: =VLOOKUP(H8,チーム表!C:D,2,FALSE) -> 鞍月マミ～ズ | M8: =組合表!AI6 -> L1 | N8: L1L2 | P8: =VLOOKUP(M8,チーム表!C:D,2,FALSE) -> 田上闘球親子 | Q8: × | R8: =組合表!AJ6 -> L2 | S8: L2L1 | U8: =VLOOKUP(R8,チーム表!C:D,2,FALSE) -> フェニックスと頑固なお父さん | AG8: K1K2
A9: 4 | C9: =組合表!AG7 -> M1 | D9: M1M2 | F9: =VLOOKUP(C9,チーム表!C:D,2,FALSE) -> NISHIファミリーズ | G9: × | H9: =組合表!AH7 -> M2 | I9: M2M1 | K9: =VLOOKUP(H9,チーム表!C:D,2,FALSE) -> 鳳至ファミリーズ | M9: =組合表!AI7 -> E1 | N9: E1E2 | P9: =VLOOKUP(M9,チーム表!C:D,2,FALSE) -> 鵜川フェニックスｷｯｽﾞ | Q9: × | R9: =組合表!AJ7 -> E2 | S9: E2E1 | U9: =VLOOKUP(R9,チーム表!C:D,2,FALSE) -> 千坂ロータスルート | AG9: M1M2
A10: 5 | C10: =組合表!AG8 -> F1 | D10: F1F2 | F10: =VLOOKUP(C10,チーム表!C:D,2,FALSE) -> 鳳至ジュニア | G10: × | H10: =組合表!AH8 -> F2 | I10: F2F1 | K10: =VLOOKUP(H10,チーム表!C:D,2,FALSE) -> 向本折クラブNew | M10: =組合表!AI8 -> G1 | N10: G1G2 | P10: =VLOOKUP(M10,チーム表!C:D,2,FALSE) -> 九十九クラブ | Q10: × | R10: =組合表!AJ8 -> G2 | S10: G2G1 | U10: =VLOOKUP(R10,チーム表!C:D,2,FALSE) -> 松任の大魔陣Jr | AG10: F1F2
A11: 6 | C11: =組合表!AG9 -> H1 | D11: H1H2 | F11: =VLOOKUP(C11,チーム表!C:D,2,FALSE) -> THUNDER(ｻﾝﾀﾞｰ) | G11: × | H11: =組合表!AH9 -> H2 | I11: H2H1 | K11: =VLOOKUP(H11,チーム表!C:D,2,FALSE) -> ＳＫＩＰＰＥＲＳ | M11: =組合表!AI9 -> I1 | N11: I1I2 | P11: =VLOOKUP(M11,チーム表!C:D,2,FALSE) -> ペヤング | Q11: × | R11: =組合表!AJ9 -> I2 | S11: I2I1 | U11: =VLOOKUP(R11,チーム表!C:D,2,FALSE) -> 鞍月アタッカーズＯＮＥ | AG11: H1H2
A12: 7 | C12: =組合表!AG10 -> J1 | D12: J1J2 | F12: =VLOOKUP(C12,チーム表!C:D,2,FALSE) -> 杉っ子ダディー | G12: × | H12: =組合表!AH10 -> J2 | I12: J2J1 | K12: =VLOOKUP(H12,チーム表!C:D,2,FALSE) -> 松任の大魔陣オールディーズ | M12: =組合表!AI10 -> N1 | N12: N1N2 | P12: =VLOOKUP(M12,チーム表!C:D,2,FALSE) -> 田上闘球ミドル | Q12: × | R12: =組合表!AJ10 -> N2 | S12: N2N1 | U12: =VLOOKUP(R12,チーム表!C:D,2,FALSE) -> 鳳至あまさんず | AG12: J1J2
A13: 8 | C13: =組合表!AG11 -> O1 | D13: O1O2 | F13: =VLOOKUP(C13,チーム表!C:D,2,FALSE) -> 宇出津っ子と優しいお母さん | G13: × | H13: =組合表!AH11 -> O2 | I13: O2O1 | K13: =VLOOKUP(H13,チーム表!C:D,2,FALSE) -> 向本折ファミリー | M13: =組合表!AI11 -> P1 | N13: P1P2 | P13: =VLOOKUP(M13,チーム表!C:D,2,FALSE) -> 千坂ゼブラーズG | Q13: × | R13: =組合表!AJ11 -> P2 | S13: P2P1 | U13: =VLOOKUP(R13,チーム表!C:D,2,FALSE) -> 小木クLOVE♡楽球会 | AG13: O1O2
A14: 9 | C14: =組合表!AG12 -> A3 | D14: A3A4 | F14: =VLOOKUP(C14,チーム表!C:D,2,FALSE) -> 小木クラブ | G14: × | H14: =組合表!AH12 -> A4 | I14: A4A3 | K14: =VLOOKUP(H14,チーム表!C:D,2,FALSE) -> 松任の大魔陣 | M14: =組合表!AI12 -> B3 | N14: B3B4 | P14: =VLOOKUP(M14,チーム表!C:D,2,FALSE) -> 向本折クラブA | Q14: × | R14: =組合表!AJ12 -> B4 | S14: B4B3 | U14: =VLOOKUP(R14,チーム表!C:D,2,FALSE) -> 鞍月アタッカーズ | AG14: A3A4
A15: 10 | C15: =組合表!AG13 -> C3 | D15: C3C4 | F15: =VLOOKUP(C15,チーム表!C:D,2,FALSE) -> あさひスーパーファイターズ | G15: × | H15: =組合表!AH13 -> C4 | I15: C4C3 | K15: =VLOOKUP(H15,チーム表!C:D,2,FALSE) -> 寺井クラブ | M15: =組合表!AI13 -> D3 | N15: D3D4 | P15: =VLOOKUP(M15,チーム表!C:D,2,FALSE) -> 山中SPARS | Q15: × | R15: =組合表!AJ13 -> D4 | S15: D4D3 | U15: =VLOOKUP(R15,チーム表!C:D,2,FALSE) -> 三馬パワフル | AG15: C3C4
AG81: =#REF! ->  | AH81: =IF(#REF!="","",#REF!) -> 
AG82: =#REF! ->  | AH82: =IF(#REF!="","",#REF!) -> 
AG83: =#REF! ->  | AH83: =IF(#REF!="","",#REF!) -> 
AG84: =#REF! ->  | AH84: =IF(#REF!="","",#REF!) -> 
AG85: =#REF! ->  | AH85: =IF(#REF!="","",#REF!) -> 
AG86: =N6 -> B1B2 | AH86: =IF(O6="","",O6) -> 
AG87: D1D2 | AH87: =IF(O7="","",O7) -> 
AG88: L1L2
AG89: E1E2
AG90: G1G2
AG91: I1I2
AG92: N1N2
AG93: P1P2
AG94: B3B4
AG95: D3D4
AG96: =#REF! ->  | AH96: =IF(#REF!="","",#REF!) -> 
AG97: =#REF! ->  | AH97: =IF(#REF!="","",#REF!) -> 
AG98: =#REF! ->  | AH98: =IF(#REF!="","",#REF!) -> 
AG99: =#REF! ->  | AH99: =IF(#REF!="","",#REF!) -> 
AG100: =#REF! ->  | AH100: =IF(#REF!="","",#REF!) -> 
AG101: =#REF! ->  | AH101: =IF(#REF!="","",#REF!) -> 
AG102: =#REF! ->  | AH102: =IF(#REF!="","",#REF!) -> 
AG103: =#REF! ->  | AH103: =IF(#REF!="","",#REF!) -> 
AG104: =#REF! ->  | AH104: =IF(#REF!="","",#REF!) -> 
AG105: =#REF! ->  | AH105: =IF(#REF!="","",#REF!) -> 
AG106: =#REF! ->  | AH106: =IF(#REF!="","",#REF!) -> 
AG107: =#REF! ->  | AH107: =IF(#REF!="","",#REF!) -> 
AG108: =#REF! ->  | AH108: =IF(#REF!="","",#REF!) -> 
AG109: =#REF! ->  | AH109: =IF(#REF!="","",#REF!) -> 
AG110: =#REF! ->  | AH110: =IF(#REF!="","",#REF!) -> 
AG111: =#REF! ->  | AH111: =IF(#REF!="","",#REF!) -> 
AG112: =#REF! ->  | AH112: =IF(#REF!="","",#REF!) -> 
AG113: =#REF! ->  | AH113: =IF(#REF!="","",#REF!) -> 
AG114: =#REF! ->  | AH114: =IF(#REF!="","",#REF!) -> 
AG115: =#REF! ->  | AH115: =IF(#REF!="","",#REF!) -> 
AG116: =#REF! ->  | AH116: =IF(#REF!="","",#REF!) -> 
AG117: =#REF! ->  | AH117: =IF(#REF!="","",#REF!) -> 
AG118: =#REF! ->  | AH118: =IF(#REF!="","",#REF!) -> 
AG119: =#REF! ->  | AH119: =IF(#REF!="","",#REF!) -> 
AG120: =#REF! ->  | AH120: =IF(#REF!="","",#REF!) -> 
AG121: =#REF! ->  | AH121: =IF(#REF!="","",#REF!) -> 
AG122: =#REF! ->  | AH122: =IF(#REF!="","",#REF!) -> 
AG123: =#REF! ->  | AH123: =IF(#REF!="","",#REF!) -> 
AG124: =#REF! ->  | AH124: =IF(#REF!="","",#REF!) -> 
AG125: =#REF! ->  | AH125: =IF(#REF!="","",#REF!) -> 
AG126: =S6 -> B2B1 | AH126: =IF(T6="","",T6) -> 
AG127: D2D1 | AH127: =IF(T7="","",T7) -> 
AG128: L2L1
AG129: E2E1
AG130: G2G1
AG131: I2I1
AG132: N2N1
AG133: P2P1
AG134: B4B3
AG135: D4D3
AG136: =#REF! ->  | AH136: =IF(#REF!="","",#REF!) -> 
AG137: =#REF! ->  | AH137: =IF(#REF!="","",#REF!) -> 
AG138: =#REF! ->  | AH138: =IF(#REF!="","",#REF!) -> 
AG139: =#REF! ->  | AH139: =IF(#REF!="","",#REF!) -> 
AG140: =#REF! ->  | AH140: =IF(#REF!="","",#REF!) -> 
AG141: =#REF! ->  | AH141: =IF(#REF!="","",#REF!) -> 
AG142: =#REF! ->  | AH142: =IF(#REF!="","",#REF!) -> 
AG143: =#REF! ->  | AH143: =IF(#REF!="","",#REF!) -> 
AG144: =#REF! ->  | AH144: =IF(#REF!="","",#REF!) -> 
AG145: =#REF! ->  | AH145: =IF(#REF!="","",#REF!) -> 
AG146: =#REF! ->  | AH146: =IF(#REF!="","",#REF!) -> 
AG147: =#REF! ->  | AH147: =IF(#REF!="","",#REF!) -> 
AG148: =#REF! ->  | AH148: =IF(#REF!="","",#REF!) -> 
AG149: =#REF! ->  | AH149: =IF(#REF!="","",#REF!) -> 
AG150: =#REF! ->  | AH150: =IF(#REF!="","",#REF!) -> 
AG151: =#REF! ->  | AH151: =IF(#REF!="","",#REF!) -> 
AG152: =#REF! ->  | AH152: =IF(#REF!="","",#REF!) -> 
AG153: =#REF! ->  | AH153: =IF(#REF!="","",#REF!) -> 
AG154: =#REF! ->  | AH154: =IF(#REF!="","",#REF!) -> 
AG155: =#REF! ->  | AH155: =IF(#REF!="","",#REF!) -> 
AG156: =#REF! ->  | AH156: =IF(#REF!="","",#REF!) -> 
AG157: =#REF! ->  | AH157: =IF(#REF!="","",#REF!) -> 
AG158: =#REF! ->  | AH158: =IF(#REF!="","",#REF!) -> 
AG159: =#REF! ->  | AH159: =IF(#REF!="","",#REF!) -> 
AG160: =#REF! ->  | AH160: =IF(#REF!="","",#REF!) -> 
AG161: =#REF! ->  | AH161: =IF(#REF!="","",#REF!) -> 
AG162: =#REF! ->  | AH162: =IF(#REF!="","",#REF!) -> 
AG163: =#REF! ->  | AH163: =IF(#REF!="","",#REF!) -> 
AG164: =#REF! ->  | AH164: =IF(#REF!="","",#REF!) -> 
AG165: =#REF! ->  | AH165: =IF(#REF!="","",#REF!) -> 

Sheet 対戦表3
AG100: =#REF! ->  | AH100: =IF(#REF!="","",#REF!) -> 
AG101: =#REF! ->  | AH101: =IF(#REF!="","",#REF!) -> 
AG102: =#REF! ->  | AH102: =IF(#REF!="","",#REF!) -> 
AG103: =#REF! ->  | AH103: =IF(#REF!="","",#REF!) -> 
AG104: =#REF! ->  | AH104: =IF(#REF!="","",#REF!) -> 
AG105: =#REF! ->  | AH105: =IF(#REF!="","",#REF!) -> 
AG106: =#REF! ->  | AH106: =IF(#REF!="","",#REF!) -> 
AG107: =#REF! ->  | AH107: =IF(#REF!="","",#REF!) -> 
AG108: =#REF! ->  | AH108: =IF(#REF!="","",#REF!) -> 
AG109: =#REF! ->  | AH109: =IF(#REF!="","",#REF!) -> 
AG110: =#REF! ->  | AH110: =IF(#REF!="","",#REF!) -> 
AG111: =#REF! ->  | AH111: =IF(#REF!="","",#REF!) -> 
AG112: =#REF! ->  | AH112: =IF(#REF!="","",#REF!) -> 
AG113: =#REF! ->  | AH113: =IF(#REF!="","",#REF!) -> 
AG114: =#REF! ->  | AH114: =IF(#REF!="","",#REF!) -> 
AG115: =#REF! ->  | AH115: =IF(#REF!="","",#REF!) -> 
AG116: =#REF! ->  | AH116: =IF(#REF!="","",#REF!) -> 
AG117: =#REF! ->  | AH117: =IF(#REF!="","",#REF!) -> 
AG118: =#REF! ->  | AH118: =IF(#REF!="","",#REF!) -> 
AG119: =#REF! ->  | AH119: =IF(#REF!="","",#REF!) -> 
AG120: =#REF! ->  | AH120: =IF(#REF!="","",#REF!) -> 
AG121: =#REF! ->  | AH121: =IF(#REF!="","",#REF!) -> 
AG122: =#REF! ->  | AH122: =IF(#REF!="","",#REF!) -> 
AG123: =#REF! ->  | AH123: =IF(#REF!="","",#REF!) -> 
AG124: =#REF! ->  | AH124: =IF(#REF!="","",#REF!) -> 
AG125: =#REF! ->  | AH125: =IF(#REF!="","",#REF!) -> 
AG126: =#REF! ->  | AH126: =IF(#REF!="","",#REF!) -> 
AG127: =#REF! ->  | AH127: =IF(#REF!="","",#REF!) -> 
AG128: =#REF! ->  | AH128: =IF(#REF!="","",#REF!) -> 
AG129: =#REF! ->  | AH129: =IF(#REF!="","",#REF!) -> 
AG130: =#REF! ->  | AH130: =IF(#REF!="","",#REF!) -> 
AG131: =#REF! ->  | AH131: =IF(#REF!="","",#REF!) -> 
AG132: =#REF! ->  | AH132: =IF(#REF!="","",#REF!) -> 
AG133: =#REF! ->  | AH133: =IF(#REF!="","",#REF!) -> 
AG134: =#REF! ->  | AH134: =IF(#REF!="","",#REF!) -> 
AG135: =#REF! ->  | AH135: =IF(#REF!="","",#REF!) -> 
AG136: =#REF! ->  | AH136: =IF(#REF!="","",#REF!) -> 
AG137: =#REF! ->  | AH137: =IF(#REF!="","",#REF!) -> 
AG138: =#REF! ->  | AH138: =IF(#REF!="","",#REF!) -> 
AG139: =#REF! ->  | AH139: =IF(#REF!="","",#REF!) -> 
AG140: =#REF! ->  | AH140: =IF(#REF!="","",#REF!) -> 
AG141: =#REF! ->  | AH141: =IF(#REF!="","",#REF!) -> 
AG142: =#REF! ->  | AH142: =IF(#REF!="","",#REF!) -> 
AG143: =#REF! ->  | AH143: =IF(#REF!="","",#REF!) -> 
AG144: =#REF! ->  | AH144: =IF(#REF!="","",#REF!) -> 
AG145: =#REF! ->  | AH145: =IF(#REF!="","",#REF!) -> 
AG146: =#REF! ->  | AH146: =IF(#REF!="","",#REF!) -> 
AG147: =#REF! ->  | AH147: =IF(#REF!="","",#REF!) -> 
AG148: =#REF! ->  | AH148: =IF(#REF!="","",#REF!) -> 
AG149: =#REF! ->  | AH149: =IF(#REF!="","",#REF!) -> 
AG150: =#REF! ->  | AH150: =IF(#REF!="","",#REF!) -> 
AG151: =#REF! ->  | AH151: =IF(#REF!="","",#REF!) -> 
AG152: =#REF! ->  | AH152: =IF(#REF!="","",#REF!) -> 
AG153: =#REF! ->  | AH153: =IF(#REF!="","",#REF!) -> 
AG154: =#REF! ->  | AH154: =IF(#REF!="","",#REF!) -> 
AG155: =#REF! ->  | AH155: =IF(#REF!="","",#REF!) -> 
AG156: =#REF! ->  | AH156: =IF(#REF!="","",#REF!) -> 
AG157: =#REF! ->  | AH157: =IF(#REF!="","",#REF!) -> 
AG158: =#REF! ->  | AH158: =IF(#REF!="","",#REF!) -> 
AG159: =#REF! ->  | AH159: =IF(#REF!="","",#REF!) -> 
AG160: =#REF! ->  | AH160: =IF(#REF!="","",#REF!) -> 
AG161: =#REF! ->  | AH161: =IF(#REF!="","",#REF!) -> 
AG162: =#REF! ->  | AH162: =IF(#REF!="","",#REF!) -> 
AG163: =#REF! ->  | AH163: =IF(#REF!="","",#REF!) -> 
AG164: =#REF! ->  | AH164: =IF(#REF!="","",#REF!) -> 
AG165: =#REF! ->  | AH165: =IF(#REF!="","",#REF!) -> 
AG166: =#REF! ->  | AH166: =IF(#REF!="","",#REF!) -> 
AG167: =#REF! ->  | AH167: =IF(#REF!="","",#REF!) -> 
AG168: =#REF! ->  | AH168: =IF(#REF!="","",#REF!) -> 
AG169: =#REF! ->  | AH169: =IF(#REF!="","",#REF!) -> 
AG170: =#REF! ->  | AH170: =IF(#REF!="","",#REF!) -> 
AG171: =#REF! ->  | AH171: =IF(#REF!="","",#REF!) -> 
AG172: =#REF! ->  | AH172: =IF(#REF!="","",#REF!) -> 
AG173: =#REF! ->  | AH173: =IF(#REF!="","",#REF!) -> 
AG174: =#REF! ->  | AH174: =IF(#REF!="","",#REF!) -> 
AG175: =#REF! ->  | AH175: =IF(#REF!="","",#REF!) -> 
AG176: =#REF! ->  | AH176: =IF(#REF!="","",#REF!) -> 
AG177: =#REF! ->  | AH177: =IF(#REF!="","",#REF!) -> 
AG178: =#REF! ->  | AH178: =IF(#REF!="","",#REF!) -> 
AG179: =#REF! ->  | AH179: =IF(#REF!="","",#REF!) -> 
AG180: =#REF! ->  | AH180: =IF(#REF!="","",#REF!) -> 
AG181: =#REF! ->  | AH181: =IF(#REF!="","",#REF!) -> 
AG182: =#REF! ->  | AH182: =IF(#REF!="","",#REF!) -> 
AG183: =#REF! ->  | AH183: =IF(#REF!="","",#REF!) -> 
AG184: =#REF! ->  | AH184: =IF(#REF!="","",#REF!) -> 
AG185: =#REF! ->  | AH185: =IF(#REF!="","",#REF!) -> 
AG186: =#REF! ->  | AH186: =IF(#REF!="","",#REF!) -> 
AG187: =#REF! ->  | AH187: =IF(#REF!="","",#REF!) -> 
AG188: =#REF! ->  | AH188: =IF(#REF!="","",#REF!) -> 
AG189: =#REF! ->  | AH189: =IF(#REF!="","",#REF!) -> 
AG190: =#REF! ->  | AH190: =IF(#REF!="","",#REF!) -> 
AG191: =#REF! ->  | AH191: =IF(#REF!="","",#REF!) -> 
AG192: =#REF! ->  | AH192: =IF(#REF!="","",#REF!) -> 
AG193: =#REF! ->  | AH193: =IF(#REF!="","",#REF!) -> 
AG194: =#REF! ->  | AH194: =IF(#REF!="","",#REF!) -> 
AG195: =#REF! ->  | AH195: =IF(#REF!="","",#REF!) -> 
AG196: =#REF! ->  | AH196: =IF(#REF!="","",#REF!) -> 
AG197: =#REF! ->  | AH197: =IF(#REF!="","",#REF!) -> 
AG198: =#REF! ->  | AH198: =IF(#REF!="","",#REF!) -> 
AG199: =#REF! ->  | AH199: =IF(#REF!="","",#REF!) -> 
AG200: =#REF! ->  | AH200: =IF(#REF!="","",#REF!) -> 
AG201: =#REF! ->  | AH201: =IF(#REF!="","",#REF!) -> 
AG202: =#REF! ->  | AH202: =IF(#REF!="","",#REF!) -> 
AG203: =#REF! ->  | AH203: =IF(#REF!="","",#REF!) -> 
AG204: =#REF! ->  | AH204: =IF(#REF!="","",#REF!) -> 
AG205: =#REF! ->  | AH205: =IF(#REF!="","",#REF!) -> 
AG206: =#REF! ->  | AH206: =IF(#REF!="","",#REF!) -> 
AG207: =#REF! ->  | AH207: =IF(#REF!="","",#REF!) -> 
AG208: =#REF! ->  | AH208: =IF(#REF!="","",#REF!) -> 
AG209: =#REF! ->  | AH209: =IF(#REF!="","",#REF!) -> 
AG210: =#REF! ->  | AH210: =IF(#REF!="","",#REF!) -> 
AG211: =#REF! ->  | AH211: =IF(#REF!="","",#REF!) -> 
AG212: =#REF! ->  | AH212: =IF(#REF!="","",#REF!) -> 
AG213: =#REF! ->  | AH213: =IF(#REF!="","",#REF!) -> 
AG214: =#REF! ->  | AH214: =IF(#REF!="","",#REF!) -> 
AG215: =#REF! ->  | AH215: =IF(#REF!="","",#REF!) -> 
AG216: =#REF! ->  | AH216: =IF(#REF!="","",#REF!) -> 
AG217: =#REF! ->  | AH217: =IF(#REF!="","",#REF!) -> 
AG218: =#REF! ->  | AH218: =IF(#REF!="","",#REF!) -> 
AG219: =#REF! ->  | AH219: =IF(#REF!="","",#REF!) -> 
AG220: =#REF! ->  | AH220: =IF(#REF!="","",#REF!) -> 
AG221: =#REF! ->  | AH221: =IF(#REF!="","",#REF!) -> 
AG222: =#REF! ->  | AH222: =IF(#REF!="","",#REF!) -> 
AG223: =#REF! ->  | AH223: =IF(#REF!="","",#REF!) -> 
AG224: =#REF! ->  | AH224: =IF(#REF!="","",#REF!) -> 
AG225: =#REF! ->  | AH225: =IF(#REF!="","",#REF!) -> 
AG226: =#REF! ->  | AH226: =IF(#REF!="","",#REF!) -> 
AG227: =#REF! ->  | AH227: =IF(#REF!="","",#REF!) -> 
AG228: =#REF! ->  | AH228: =IF(#REF!="","",#REF!) -> 
AG229: =#REF! ->  | AH229: =IF(#REF!="","",#REF!) -> 
AG230: =#REF! ->  | AH230: =IF(#REF!="","",#REF!) -> 
AG231: =#REF! ->  | AH231: =IF(#REF!="","",#REF!) -> 
AG232: =#REF! ->  | AH232: =IF(#REF!="","",#REF!) -> 
AG233: =#REF! ->  | AH233: =IF(#REF!="","",#REF!) -> 
AG234: =#REF! ->  | AH234: =IF(#REF!="","",#REF!) -> 
AG235: =#REF! ->  | AH235: =IF(#REF!="","",#REF!) -> 
AG236: =#REF! ->  | AH236: =IF(#REF!="","",#REF!) -> 
AG237: =#REF! ->  | AH237: =IF(#REF!="","",#REF!) -> 
AG238: =#REF! ->  | AH238: =IF(#REF!="","",#REF!) -> 
AG239: =#REF! ->  | AH239: =IF(#REF!="","",#REF!) -> 
AG240: =#REF! ->  | AH240: =IF(#REF!="","",#REF!) -> 
AG241: =#REF! ->  | AH241: =IF(#REF!="","",#REF!) -> 
AG242: =#REF! ->  | AH242: =IF(#REF!="","",#REF!) -> 
AG243: =#REF! ->  | AH243: =IF(#REF!="","",#REF!) -> 
AG244: =#REF! ->  | AH244: =IF(#REF!="","",#REF!) -> 
AG245: =#REF! ->  | AH245: =IF(#REF!="","",#REF!) -> 

Sheet 組合表
Z1: 35
Z2: 69
A3: 1 | B3: 2 | C3: 3 | D3: 4 | E3: 5 | F3: 6 | G3: 7 | H3: 8 | I3: 9 | J3: 10 | K3: 11 | L3: 12 | M3: 13 | N3: 14 | O3: 15 | P3: 16 | Q3: 17 | R3: 18 | S3: 19 | T3: 20 | U3: 21 | V3: 22 | W3: 23 | X3: 24 | Y3: 25 | AG3: Bート | AI3: Cコート | AK3: Dコート
B4: 4 | C4: A | D4: A1A2 | E4: A3A4 | F4: A2A3 | G4: A1A4 | H4: A1A3 | I4: A2A4 | AA4: A1A2 | AC4: A1A2 | AD4: B1B2 | AG4: =LEFT(AC4,2) -> A1 | AH4: =RIGHT(AC4,2) -> A2 | AI4: =LEFT(AD4,2) -> B1 | AJ4: =RIGHT(AD4,2) -> B2 | AK4: =LEFT(AE4,2) ->  | AL4: =RIGHT(AE4,2) ->  | AM4: 1
B5: 4 | C5: B | D5: B1B2 | E5: B3B4 | F5: B2B3 | G5: B1B4 | H5: B1B3 | I5: B2B4 | AA5: B1B2 | AC5: C1C2 | AD5: D1D2 | AG5: =LEFT(AC5,2) -> C1 | AH5: =RIGHT(AC5,2) -> C2 | AI5: =LEFT(AD5,2) -> D1 | AJ5: =RIGHT(AD5,2) -> D2 | AK5: =LEFT(AE5,2) ->  | AL5: =RIGHT(AE5,2) ->  | AM5: 2
B6: 4 | C6: C | D6: C1C2 | E6: C3C4 | F6: C2C3 | G6: C1C4 | H6: C1C3 | I6: C2C4 | AA6: C1C2 | AC6: K1K2 | AD6: L1L2 | AG6: K1 | AH6: K2 | AI6: L1 | AJ6: L2 | AM6: 3
B7: 4 | C7: D | D7: D1D2 | E7: D3D4 | F7: D2D3 | G7: D1D4 | H7: D1D3 | I7: D2D4 | AA7: D1D2 | AC7: M1M2 | AD7: E1E2 | AG7: M1 | AH7: M2 | AI7: E1 | AJ7: E2 | AM7: 4
B8: 4 | C8: K | D8: K1K2 | E8: K3K4 | F8: K2K3 | G8: K1K4 | H8: K1K3 | I8: K2K4 | AA8: K1K2 | AC8: F1F2 | AD8: G1G2 | AG8: F1 | AH8: F2 | AI8: G1 | AJ8: G2 | AM8: 5
B9: 4 | C9: L | D9: L1L2 | E9: L3L4 | F9: L2L3 | G9: L1L4 | H9: L1L3 | I9: L2L4 | AA9: L1L2 | AC9: H1H2 | AD9: I1I2 | AG9: H1 | AH9: H2 | AI9: I1 | AJ9: I2 | AM9: 6
B10: 4 | C10: M | D10: M1M2 | E10: M3M4 | F10: M2M3 | G10: M1M4 | H10: M1M3 | I10: M2M4 | AA10: M1M2 | AC10: J1J2 | AD10: N1N2 | AG10: J1 | AH10: J2 | AI10: N1 | AJ10: N2 | AM10: 7
B11: 3 | C11: E | D11: E1E2 | E11: E2E3 | F11: E1E3 | AA11: E1E2 | AC11: O1O2 | AD11: P1P2 | AG11: O1 | AH11: O2 | AI11: P1 | AJ11: P2 | AM11: 8
B12: 3 | C12: F | D12: F1F2 | E12: F2F3 | F12: F1F3 | AA12: F1F2 | AC12: A3A4 | AD12: B3B4 | AG12: A3 | AH12: A4 | AI12: B3 | AJ12: B4 | AM12: 9
B13: 3 | C13: G | D13: G1G2 | E13: G2G3 | F13: G1G3 | AA13: G1G2 | AC13: C3C4 | AD13: D3D4 | AG13: C3 | AH13: C4 | AI13: D3 | AJ13: D4 | AM13: 10
B14: 3 | C14: H | D14: H1H2 | E14: H2H3 | F14: H1H3 | AA14: H1H2 | AC14: K3K4 | AD14: L3L4 | AG14: K3 | AH14: K4 | AI14: L3 | AJ14: L4 | AM14: 11
B15: 3 | C15: I | D15: I1I2 | E15: I2I3 | F15: I1I3 | AA15: I1I2 | AC15: M3M4 | AD15: E2E3 | AG15: M3 | AH15: M4 | AI15: E2 | AJ15: E3 | AM15: 12
B16: 3 | C16: J | D16: J1J2 | E16: J2J3 | F16: J1J3 | AA16: J1J2 | AC16: F2F3 | AD16: G2G3 | AG16: F2 | AH16: F3 | AI16: G2 | AJ16: G3 | AM16: 13
B17: 3 | C17: N | D17: N1N2 | E17: N2N3 | F17: N1N3 | AA17: N1N2 | AC17: H2H3 | AD17: I2I3 | AG17: H2 | AH17: H3 | AI17: I2 | AJ17: I3 | AM17: 14
B18: 3 | C18: O | D18: O1O2 | E18: O2O3 | F18: O1O3 | AA18: O1O2 | AC18: J2J3 | AD18: N2N3 | AG18: J2 | AH18: J3 | AI18: N2 | AJ18: N3 | AM18: 15
B19: 3 | C19: P | D19: P1P2 | E19: P2P3 | F19: P1P3 | AA19: P1P2 | AC19: O2O3 | AD19: P2P3 | AG19: O2 | AH19: O3 | AI19: P2 | AJ19: P3 | AM19: 16
AA20: A3A4 | AC20: A2A3 | AD20: B2B3 | AG20: A2 | AH20: A3 | AI20: B2 | AJ20: B3 | AM20: 17
AA21: B3B4 | AC21: C2C3 | AD21: D2D3 | AG21: C2 | AH21: C3 | AI21: D2 | AJ21: D3 | AM21: 18
AA22: C3C4 | AC22: K2K3 | AD22: L2L3 | AG22: K2 | AH22: K3 | AI22: L2 | AJ22: L3 | AM22: 19
AA23: D3D4 | AC23: M2M3 | AD23: E1E3 | AG23: M2 | AH23: M3 | AI23: E1 | AJ23: E3 | AM23: 20
AA24: K3K4 | AC24: F1F3 | AD24: G1G3 | AG24: F1 | AH24: F3 | AI24: G1 | AJ24: G3 | AM24: 21
AA25: L3L4 | AC25: H1H3 | AD25: I1I3 | AG25: H1 | AH25: H3 | AI25: I1 | AJ25: I3 | AM25: 22
AA26: M3M4 | AC26: J1J3 | AD26: N1N3 | AG26: J1 | AH26: J3 | AI26: N1 | AJ26: N3 | AM26: 23
D27: 1 | E27: 2 | F27: 3 | G27: 4 | H27: 5 | I27: 6 | J27: 7 | K27: 8 | L27: 9 | M27: 10 | N27: 11 | O27: 12 | P27: 13 | Q27: 14 | R27: 15 | S27: 16 | T27: 17 | U27: 18 | V27: 19 | W27: 20 | X27: 21 | AA27: E2E3 | AC27: O1O3 | AD27: P1P3 | AG27: O1 | AH27: O3 | AI27: P1 | AJ27: P3 | AM27: 24
A28: ７チーム | C28: C | D28: =CONCATENATE(C28,1,C28,2) -> C1C2 | E28: =CONCATENATE(C28,3,C28,4) -> C3C4 | F28: =CONCATENATE(C28,5,C28,6) -> C5C6 | G28: =CONCATENATE(C28,1,C28,7) -> C1C7 | H28: =CONCATENATE(C28,2,C28,3) -> C2C3 | I28: =CONCATENATE(C28,4,C28,5) -> C4C5 | J28: =CONCATENATE(C28,6,C28,7) -> C6C7 | K28: =CONCATENATE(C28,1,C28,4) -> C1C4 | L28: =CONCATENATE(C28,2,C28,5) -> C2C5 | M28: =CONCATENATE(C28,3,C28,6) -> C3C6 | N28: =CONCATENATE(C28,4,C28,7) -> C4C7 | O28: =CONCATENATE(C28,1,C28,6) -> C1C6 | P28: =CONCATENATE(C28,5,C28,7) -> C5C7 | Q28: =CONCATENATE(C28,1,C28,3) -> C1C3 | R28: =CONCATENATE(C28,2,C28,4) -> C2C4 | S28: =CONCATENATE(C28,3,C28,5) -> C3C5 | T28: =CONCATENATE(C28,4,C28,6) -> C4C6 | U28: =CONCATENATE(C28,2,C28,7) -> C2C7 | V28: =CONCATENATE(C28,1,C28,5) -> C1C5 | W28: =CONCATENATE(C28,2,C28,6) -> C2C6 | X28: =CONCATENATE(C28,3,C28,7) -> C3C7 | AA28: F2F3 | AC28: A1A4 | AD28: B1B4 | AG28: A1 | AH28: A4 | AI28: B1 | AJ28: B4 | AM28: 25
A29: 6チーム | C29: B | D29: =CONCATENATE(C29,1,C29,2) -> B1B2 | E29: =CONCATENATE(C29,3,C29,4) -> B3B4 | F29: =CONCATENATE(C29,5,C29,6) -> B5B6 | G29: =CONCATENATE(C29,1,C29,3) -> B1B3 | H29: =CONCATENATE(C29,2,C29,4) -> B2B4 | I29: =CONCATENATE(C29,3,C29,5) -> B3B5 | J29: =CONCATENATE(C29,4,C29,6) -> B4B6 | K29: =CONCATENATE(C29,1,C29,5) -> B1B5 | L29: =CONCATENATE(C29,2,C29,6) -> B2B6 | M29: =CONCATENATE(C29,1,C29,4) -> B1B4 | N29: =CONCATENATE(C29,2,C29,5) -> B2B5 | O29: =CONCATENATE(C29,3,C29,6) -> B3B6 | P29: =CONCATENATE(C29,4,C29,5) -> B4B5 | Q29: =CONCATENATE(C29,2,C29,3) -> B2B3 | R29: =CONCATENATE(C29,1,C29,6) -> B1B6 | AA29: G2G3 | AC29: C1C4 | AD29: D1D4 | AG29: C1 | AH29: C4 | AI29: D1 | AJ29: D4 | AM29: 26
A30: 5チーム | C30: N | D30: =CONCATENATE(C30,1,C30,2) -> N1N2 | E30: =CONCATENATE(C30,3,C30,4) -> N3N4 | F30: =CONCATENATE(C30,1,C30,5) -> N1N5 | G30: =CONCATENATE(C30,2,C30,3) -> N2N3 | H30: =CONCATENATE(C30,4,C30,5) -> N4N5 | I30: =CONCATENATE(C30,1,C30,4) -> N1N4 | J30: =CONCATENATE(C30,2,C30,5) -> N2N5 | K30: =CONCATENATE(C30,1,C30,3) -> N1N3 | L30: =CONCATENATE(C30,2,C30,4) -> N2N4 | M30: =CONCATENATE(C30,3,C30,5) -> N3N5 | AA30: H2H3 | AC30: K1K4 | AD30: L1L4 | AG30: K1 | AH30: K4 | AI30: L1 | AJ30: L4 | AM30: 27
A31: 4チーム | C31: M | D31: =CONCATENATE(C31,1,C31,2) -> M1M2 | E31: =CONCATENATE(C31,3,C31,4) -> M3M4 | F31: =CONCATENATE(C31,2,C31,3) -> M2M3 | G31: =CONCATENATE(C31,1,C31,4) -> M1M4 | H31: =CONCATENATE(C31,1,C31,3) -> M1M3 | I31: =CONCATENATE(C31,2,C31,4) -> M2M4 | AA31: I2I3 | AC31: M1M4 | AD31: A1A3 | AG31: M1 | AH31: M4 | AI31: A1 | AJ31: A3 | AM31: 28
A32: 3チーム | C32: P | D32: =CONCATENATE(C32,1,C32,2) -> P1P2 | E32: =CONCATENATE(C32,2,C32,3) -> P2P3 | F32: =CONCATENATE(C32,1,C32,3) -> P1P3 | AA32: J2J3 | AC32: B1B3 | AD32: C1C3 | AG32: B1 | AH32: B3 | AI32: C1 | AJ32: C3 | AM32: 29
AA33: N2N3 | AC33: D1D3 | AD33: K1K3 | AG33: D1 | AH33: D3 | AI33: K1 | AJ33: K3 | AM33: 30
AA34: O2O3 | AC34: L1L3 | AD34: M1M3 | AG34: L1 | AH34: L3 | AI34: M1 | AJ34: M3 | AM34: 31
AA35: P2P3 | AC35: A2A4 | AD35: B2B4 | AG35: A2 | AH35: A4 | AI35: B2 | AJ35: B4 | AM35: 32
AA36: A2A3 | AC36: C2C4 | AD36: D2D4 | AG36: C2 | AH36: C4 | AI36: D2 | AJ36: D4 | AM36: 33
AA37: B2B3 | AC37: K2K4 | AD37: L2L4 | AG37: K2 | AH37: K4 | AI37: L2 | AJ37: L4 | AM37: 34
AA38: C2C3 | AC38: M2M4 | AG38: =LEFT(AC38,2) -> M2 | AH38: =RIGHT(AC38,2) -> M4 | AI38: =LEFT(AD38,2) ->  | AJ38: =RIGHT(AD38,2) ->  | AK38: =LEFT(AE38,2) ->  | AL38: =RIGHT(AE38,2) ->  | AM38: 35
AA39: D2D3 | AM39: 36
AA40: K2K3 | AM40: 37
AA41: L2L3 | AM41: 38
AA42: M2M3 | AM42: 39
AA43: E1E3 | AM43: 40
AA44: F1F3
AA45: G1G3
AA46: H1H3
AA47: I1I3
AA48: J1J3
AA49: N1N3
AA50: O1O3
AA51: P1P3
AA52: A1A4
AA53: B1B4
AA54: C1C4
AA55: D1D4
AA56: K1K4
AA57: L1L4
AA58: M1M4
AA59: A1A3
AA60: B1B3
AA61: C1C3
AA62: D1D3
AA63: K1K3
AA64: L1L3
AA65: M1M3
AA66: A2A4
AA67: B2B4
AA68: C2C4
AA69: D2D4
AA70: K2K4
AA71: L2L4
AA72: M2M4
